Service Area,Service Division,Expense Type,Expense Code,Detailed Expense Type,Payment Date,Transaction Number,Amount Exc VAT,Supplier Name
"Regeneration, Economy and Growth",Transport and Contracted Services,Employees,080025,Agency Staff,01/10/2020,3786730-9593,690.00,SURVEY & MARKETING SERVICES LTD T/A SMS MARKET RESEARCH.
Children and Young Peoples Services,Head of Childrens Social Care,Employees,080025,Agency Staff,01/10/2020,3786563-2442207,"135,223.10",GEOMETRIC RESULTS INTERNATIONAL.
Resources BK0010,Legal & Democratic Services,Supplies and Services,338042,Services,01/10/2020,3786530-358583/INVCGI260,700.00,DERE STREET BARRISTERS.
Resources BK0010,Legal & Democratic Services,Supplies and Services,338042,Services,01/10/2020,3786666-313900-2020,"3,525.00",PARKLANE PLOWDEN CHAMBERS (BARRISTERS).
Children and Young Peoples Services,Head of Childrens Social Care,Third Party Payments,440046,Other third party payments E440,01/10/2020,3786654-181900,897.00,NOVA PAYROLL MANAGEMENT SERVICES LTD T/A PIN POINT RECRUITMENT.
Children and Young Peoples Services,Head of Childrens Social Care,Third Party Payments,440046,Other third party payments E440,01/10/2020,3786585-HUNT/COGHLAN16,792.00,INCLUDE IN AUTISM.
"Regeneration, Economy and Growth",Culture Sport and Tourism,Supplies and Services,312017,Newspapers books and periodicals E312,01/10/2020,3786476-6340126,542.59,ASKEWS & HOLTS LIBRARY SERVICES LTD.
Neighbourhoods and Climate Change,Technical Services CM0300,Other expenses A914,914002,Capital - Advertisments,01/10/2020,3786645-34588205,885.07,NEWSQUEST (YORKSHIRE & NORTH EAST) LTD.
"Regeneration, Economy and Growth",Culture Sport and Tourism,Fees,901004,Capital - Detailed Design,01/10/2020,3786466-169679,"1,360.00",ALBANY OFFICE EQUIPMENT (WHOLESALE) LTD.
Non-Service Specific,Non Service Specific-Financing,Long Term Debtors,924001,Car loans,01/10/2020,3786565-74486,765.00,GO GATESHEAD LTD.
Resources BK0010,Finance & Transactional Services,Supplies and Services,384180,Miscellaneous Expenses,01/10/2020,3786617-0397661,"1,537.82",LOOMIS UK LTD.
"Regeneration, Economy and Growth",Culture Sport and Tourism,Premises,145023,Cleaning and Domestic Supplies,01/10/2020,3786496-22SI2263363,767.37,BRENNTAG UK LTD.
"Regeneration, Economy and Growth",Culture Sport and Tourism,Construction work A908,908105,Construction work,01/10/2020,3786723-00375270,"15,518.15",STAGE ELECTRICS PARTNERSHIP LTD.
"Regeneration, Economy and Growth",Development and Housing,Construction work A908,908105,Construction work,01/10/2020,3786708-22274,"89,583.54",SEYMOUR (CIVIL ENGINEERING CONTRACTORS) LTD.
Children and Young Peoples Services,Head of Education and Skills,Construction work A908,908105,Construction work,01/10/2020,3786678-900897297,"22,847.75",PORTAKABIN LTD.
Neighbourhoods and Climate Change,Community Protection,Supplies and Services,338027,Services,01/10/2020,3786462-28437757,972.75,AECOM LTD.
Neighbourhoods and Climate Change,Environmental Services,Supplies and Services,338027,Services,01/10/2020,3786715-0000842462,"1,091.50",SOCOTEC UK LTD.
Neighbourhoods and Climate Change,Environmental Services,Supplies and Services,338027,Services,01/10/2020,3786715-0000841086,"3,200.00",SOCOTEC UK LTD.
Adult and Health Services,Adults Excluded,Supplies and Services,338027,Services,01/10/2020,3786762-VB0010,750.00,VANESSA BAINBRIDGE (CONSULTANT).
"Regeneration, Economy and Growth",Culture Sport and Tourism,Fees,901002,Consultants fees 901002,01/10/2020,3786477-20039934,"1,930.00",ATKINS GLOBAL.
Children and Young Peoples Services,Head of Education and Skills,Fees,901002,Consultants fees 901002,01/10/2020,3786477-20039021,"2,519.72",ATKINS GLOBAL.
Resources BK0010,Digital and Customer Services,Supplies and Services,304337,Equipment and Materials,01/10/2020,3786781-KX39311,514.06,XMA LTD.
Children and Young Peoples Services,Head of Education and Skills,Transport,230008,Contract Hire,01/10/2020,3786460-GAP-SEPT20,"1,758.00",ADVANCE TRAVEL.
Children and Young Peoples Services,Head of Education and Skills,Transport,230008,Contract Hire,01/10/2020,3786507-INV-047,"1,300.00",CLARE LYNSEY STEWART T/A K&C TAXIS.
Children and Young Peoples Services,Head of Education and Skills,Transport,230008,Contract Hire,01/10/2020,3786630-INV194,"1,288.00",MICHAEL COBB T/A HAIL TAXIS.
Neighbourhoods and Climate Change,Technical Services CM0300,Third Party Payments,460503,Contract Payments,01/10/2020,3786645-34588672,938.39,NEWSQUEST (YORKSHIRE & NORTH EAST) LTD.
Neighbourhoods and Climate Change,Technical Services CM0300,Third Party Payments,460350,Contract Payments,01/10/2020,3786760-201017002,"3,975.00",VAISALA LTD.
Neighbourhoods and Climate Change,Environmental Services,Third Party Payments,430119,Rendered by Private Contractors,01/10/2020,3786683-10184,"3,659.50",PROBE INDUSTRIES LTD.
"Regeneration, Economy and Growth",Development and Housing,Supplies and Services,384899,Miscellaneous Expenses,01/10/2020,3786517-SD009/2,"3,992.67",CORNFORTH PARTNERSHIP.
Adult and Health Services,Head of Adults,Third Party Payments,473101,Purchase of Care,01/10/2020,3786500-STABILITYPAYMENT6/22B,"2,356.20",BULLION COMMUNITY RESOURCE CENTRE.
Adult and Health Services,Head of Adults,Third Party Payments,473101,Purchase of Care,01/10/2020,3786527-STABILITYPAYMENT6/8,"16,684.05",DEACONSTAR LTD.
Adult and Health Services,Head of Adults,Third Party Payments,473101,Purchase of Care,01/10/2020,3786531-STABILITYPAYMENT6/20B,"7,950.60",DIRECT STEPS.
Adult and Health Services,Head of Adults,Third Party Payments,473101,Purchase of Care,01/10/2020,3786534-STABILITYPAYMENT6/3,"17,796.45",DURHAM ALLIANCE FOR COMMUNITY CARE.
Adult and Health Services,Head of Adults,Third Party Payments,473101,Purchase of Care,01/10/2020,3786538-STABILITYPAYMENT6/23B,"2,079.00",EAST DURHAM COLLEGE.
Adult and Health Services,Head of Adults,Third Party Payments,473101,Purchase of Care,01/10/2020,3786540-STABILITYPAYMENT6/13B,"8,474.55",EBONEY HOME CARE LTD.
Adult and Health Services,Head of Adults,Third Party Payments,473101,Purchase of Care,01/10/2020,3786547-STABILITYPAYMENT6/19B,"20,649.85",ETHICARE (DURHAM) LTD.
Adult and Health Services,Head of Adults,Third Party Payments,473101,Purchase of Care,01/10/2020,3786561-STABILITYPAYMENT6/5,"50,879.35",GAPPS DAY SERVICES LTD.
Adult and Health Services,Head of Adults,Third Party Payments,473101,Purchase of Care,01/10/2020,3786570-STABILITYPAYMENT6/9,"11,116.35",GROWING TOGETHER DURHAM LTD.
Adult and Health Services,Head of Adults,Third Party Payments,473101,Purchase of Care,01/10/2020,3786572-STABILITYPAYMENT6/14B,"28,728.98",HASWELL & DISTRICT MENCAP SOCIETY.
Adult and Health Services,Head of Adults,Third Party Payments,473101,Purchase of Care,01/10/2020,3786599-STABILITYPAYMENT6/6,"16,004.23",JOURNEY ENTERPRISES LTD.
Adult and Health Services,Head of Adults,Third Party Payments,473101,Purchase of Care,01/10/2020,3786615-STABILITYPAYMENT6/12B,"10,486.88",LION MOUTH COMMUNITY INTEREST COMPANY.
Adult and Health Services,Head of Adults,Third Party Payments,473101,Purchase of Care,01/10/2020,3786633-STABILITYPAYMENT6/10,"22,947.97",MR & MRS BURNS.
Adult and Health Services,Head of Adults,Third Party Payments,473101,Purchase of Care,01/10/2020,3786643-STABILITYPAYMENT6/11,"12,693.91",NEW STEPS CARE IN THE COMMUNITY LLP.
Adult and Health Services,Head of Adults,Third Party Payments,473101,Purchase of Care,01/10/2020,3786649-STABILITYPAYMENT6/27B,734.19,NORTH EAST AUTISM SOCIETY.
Adult and Health Services,Head of Adults,Third Party Payments,473101,Purchase of Care,01/10/2020,3786650-STABILITYPAYMENT6/4,"40,621.36",NORTH EAST AUTISM SOCIETY.
Adult and Health Services,Head of Adults,Third Party Payments,473101,Purchase of Care,01/10/2020,3786655-STABILITYPAYMENT6/15B,"11,138.40",OBJECT QUEST LTD.
Adult and Health Services,Head of Adults,Third Party Payments,473101,Purchase of Care,01/10/2020,3786672-STABILITYPAYMENT6/21B,"2,984.10",PHOENIX DAY CENTRE CIC.
Adult and Health Services,Head of Adults,Third Party Payments,473101,Purchase of Care,01/10/2020,3786675-STABILITYPAYMENT6/17B,"7,942.57",PIONEERING CARE PARTNERSHIP.
Adult and Health Services,Head of Adults,Third Party Payments,473101,Purchase of Care,01/10/2020,3786690-STABILITYPAYMENT6/1,"4,439.35",REAL CARE LTD.
Adult and Health Services,Head of Adults,Third Party Payments,473101,Purchase of Care,01/10/2020,3786695-STABILITYPAYMENT6/26B,"2,335.20",RIDING CENTRE FOR SPECIAL PEOPLE LTD..
Adult and Health Services,Head of Adults,Third Party Payments,473101,Purchase of Care,01/10/2020,3786710-STABILITYPAYMENT6/18B,"12,255.16",SHAW TRUST GARDEN PROJECT.*
Adult and Health Services,Head of Adults,Third Party Payments,473101,Purchase of Care,01/10/2020,3786743-STABILITYPAYMENT6/16B,"3,712.80",THE HOSPITAL OF GOD AT GREATHAM.
Adult and Health Services,Head of Adults,Third Party Payments,473101,Purchase of Care,01/10/2020,3786747-STABILITYPAYMENT6/2,"238,053.98",THOMPSON & HOWE LTD.
Adult and Health Services,Head of Adults,Third Party Payments,473101,Purchase of Care,01/10/2020,3786771-STABILITYPAYMENT6/7,"13,276.20",WEAR 1 CARE LTD.
Adult and Health Services,Head of Adults,Third Party Payments,473101,Purchase of Care,01/10/2020,3786772-STABILITYPAYMENT6/25B,"1,145.30",WEAR VALLEY ANGLING CIC.
Adult and Health Services,Head of Adults,Third Party Payments,473101,Purchase of Care,01/10/2020,3786780-STABILITYPAYMENT6/24B,"9,451.51",WOODCRAFT FOR LANDSCAPES CIC.
Neighbourhoods and Climate Change,Environmental Services,Transport,215005,Running Costs of Vehicles,01/10/2020,3786658-638812,"31,096.08",OIL NRG LTD.
Neighbourhoods and Climate Change,Environmental Services,Transport,215005,Running Costs of Vehicles,01/10/2020,3786658-638637,"8,243.25",OIL NRG LTD.
Neighbourhoods and Climate Change,Environmental Services,Transport,215005,Running Costs of Vehicles,01/10/2020,3786658-639444,"12,127.80",OIL NRG LTD.
Neighbourhoods and Climate Change,Environmental Services,Transport,215005,Running Costs of Vehicles,01/10/2020,3786658-639447,"7,819.23",OIL NRG LTD.
Neighbourhoods and Climate Change,Environmental Services,Supplies and Services,304221,Equipment and Materials,01/10/2020,3786696-RSIN0349152,"1,325.00",RIGBY TAYLOR LTD.
Neighbourhoods and Climate Change,Environmental Services,Supplies and Services,304221,Equipment and Materials,01/10/2020,3786539-0000055240,"1,875.00",EAST RIDING HORTICULTURE LTD.
Neighbourhoods and Climate Change,Technical Services CM0300,Supplies and Services,304221,Equipment and Materials,01/10/2020,3786550-134102,"5,370.51",FABRIKAT (NOTTINGHAM) LTD.
Neighbourhoods and Climate Change,Technical Services CM0300,Supplies and Services,304221,Equipment and Materials,01/10/2020,3786685-237859,"1,206.18",PUDSEY DIAMOND ENGINEERING LTD.
Neighbourhoods and Climate Change,Technical Services CM0300,Supplies and Services,304221,Equipment and Materials,01/10/2020,3786761-2020/DEF-CINV000002133,"1,901.60",VALMONT STAINTON LTD.
Neighbourhoods and Climate Change,Technical Services CM0300,Supplies and Services,304221,Equipment and Materials,01/10/2020,3786568-1014492,540.00,GRAB & DELIVER LTD.
Neighbourhoods and Climate Change,Technical Services CM0300,Supplies and Services,304221,Equipment and Materials,01/10/2020,3786593-00187609,"3,720.00",JAMES A JOBLING & CO LTD T/A JOBLING PURSER LTD.
Neighbourhoods and Climate Change,Technical Services CM0300,Supplies and Services,304221,Equipment and Materials,01/10/2020,3786601-0113/00164379,564.84,JT DOVE LTD.
Neighbourhoods and Climate Change,Technical Services CM0300,Supplies and Services,304221,Equipment and Materials,01/10/2020,3786601-0303/00182284,847.50,JT DOVE LTD.
Neighbourhoods and Climate Change,Technical Services CM0300,Supplies and Services,304221,Equipment and Materials,01/10/2020,3786756-213675,556.72,TYNEDALE ROADSTONE LTD.
Neighbourhoods and Climate Change,Technical Services CM0300,Supplies and Services,304221,Equipment and Materials,01/10/2020,3786756-213678,519.76,TYNEDALE ROADSTONE LTD.
Neighbourhoods and Climate Change,Technical Services CM0300,Supplies and Services,304221,Equipment and Materials,01/10/2020,3786756-213683,"1,068.22",TYNEDALE ROADSTONE LTD.
Neighbourhoods and Climate Change,Technical Services CM0300,Supplies and Services,304221,Equipment and Materials,01/10/2020,3786756-213842,"1,075.15",TYNEDALE ROADSTONE LTD.
Neighbourhoods and Climate Change,Technical Services CM0300,Supplies and Services,304221,Equipment and Materials,01/10/2020,3786756-213851,994.96,TYNEDALE ROADSTONE LTD.
Neighbourhoods and Climate Change,Technical Services CM0300,Supplies and Services,304221,Equipment and Materials,01/10/2020,3786756-213853,"1,041.49",TYNEDALE ROADSTONE LTD.
Neighbourhoods and Climate Change,Technical Services CM0300,Supplies and Services,304221,Equipment and Materials,01/10/2020,3786756-213855,948.57,TYNEDALE ROADSTONE LTD.
Neighbourhoods and Climate Change,Technical Services CM0300,Supplies and Services,304221,Equipment and Materials,01/10/2020,3786756-213859,948.43,TYNEDALE ROADSTONE LTD.
Neighbourhoods and Climate Change,Technical Services CM0300,Supplies and Services,304221,Equipment and Materials,01/10/2020,3786756-213944,"1,069.29",TYNEDALE ROADSTONE LTD.
Neighbourhoods and Climate Change,Technical Services CM0300,Supplies and Services,304221,Equipment and Materials,01/10/2020,3786756-213946,"1,043.47",TYNEDALE ROADSTONE LTD.
Neighbourhoods and Climate Change,Technical Services CM0300,Supplies and Services,304221,Equipment and Materials,01/10/2020,3786756-213949,"1,072.56",TYNEDALE ROADSTONE LTD.
Neighbourhoods and Climate Change,Technical Services CM0300,Supplies and Services,304221,Equipment and Materials,01/10/2020,3786756-213953,760.86,TYNEDALE ROADSTONE LTD.
Neighbourhoods and Climate Change,Technical Services CM0300,Supplies and Services,304221,Equipment and Materials,01/10/2020,3786756-214029,"1,046.44",TYNEDALE ROADSTONE LTD.
Neighbourhoods and Climate Change,Technical Services CM0300,Supplies and Services,304221,Equipment and Materials,01/10/2020,3786756-214031,619.76,TYNEDALE ROADSTONE LTD.
Neighbourhoods and Climate Change,Technical Services CM0300,Supplies and Services,304221,Equipment and Materials,01/10/2020,3786756-214032,"1,073.65",TYNEDALE ROADSTONE LTD.
Neighbourhoods and Climate Change,Technical Services CM0300,Supplies and Services,304221,Equipment and Materials,01/10/2020,3786756-214185,"1,044.46",TYNEDALE ROADSTONE LTD.
Neighbourhoods and Climate Change,Technical Services CM0300,Supplies and Services,304221,Equipment and Materials,01/10/2020,3786756-214187,"1,048.42",TYNEDALE ROADSTONE LTD.
Neighbourhoods and Climate Change,Technical Services CM0300,Supplies and Services,304221,Equipment and Materials,01/10/2020,3786756-214194,"1,048.42",TYNEDALE ROADSTONE LTD.
Neighbourhoods and Climate Change,Technical Services CM0300,Supplies and Services,304221,Equipment and Materials,01/10/2020,3786756-214197,756.54,TYNEDALE ROADSTONE LTD.
Neighbourhoods and Climate Change,Technical Services CM0300,Supplies and Services,304221,Equipment and Materials,01/10/2020,3786756-214202,697.72,TYNEDALE ROADSTONE LTD.
Neighbourhoods and Climate Change,Technical Services CM0300,Supplies and Services,304221,Equipment and Materials,01/10/2020,3786756-214204,"1,061.29",TYNEDALE ROADSTONE LTD.
Neighbourhoods and Climate Change,Technical Services CM0300,Supplies and Services,304221,Equipment and Materials,01/10/2020,3786756-214205,951.16,TYNEDALE ROADSTONE LTD.
Neighbourhoods and Climate Change,Technical Services CM0300,Supplies and Services,304221,Equipment and Materials,01/10/2020,3786756-214206,850.42,TYNEDALE ROADSTONE LTD.
Neighbourhoods and Climate Change,Technical Services CM0300,Supplies and Services,304221,Equipment and Materials,01/10/2020,3786756-214314,"1,050.40",TYNEDALE ROADSTONE LTD.
Neighbourhoods and Climate Change,Technical Services CM0300,Supplies and Services,304221,Equipment and Materials,01/10/2020,3786756-214315,957.22,TYNEDALE ROADSTONE LTD.
Neighbourhoods and Climate Change,Technical Services CM0300,Supplies and Services,304221,Equipment and Materials,01/10/2020,3786756-214316,"1,047.43",TYNEDALE ROADSTONE LTD.
Neighbourhoods and Climate Change,Technical Services CM0300,Supplies and Services,304221,Equipment and Materials,01/10/2020,3786756-214318,700.31,TYNEDALE ROADSTONE LTD.
Neighbourhoods and Climate Change,Technical Services CM0300,Supplies and Services,304221,Equipment and Materials,01/10/2020,3786756-214412,542.88,TYNEDALE ROADSTONE LTD.
Neighbourhoods and Climate Change,Technical Services CM0300,Supplies and Services,304221,Equipment and Materials,01/10/2020,3786756-214423,"1,049.41",TYNEDALE ROADSTONE LTD.
Neighbourhoods and Climate Change,Technical Services CM0300,Supplies and Services,304221,Equipment and Materials,01/10/2020,3786756-214424,500.95,TYNEDALE ROADSTONE LTD.
Neighbourhoods and Climate Change,Technical Services CM0300,Supplies and Services,304221,Equipment and Materials,01/10/2020,3786756-214425,"1,077.13",TYNEDALE ROADSTONE LTD.
Neighbourhoods and Climate Change,Technical Services CM0300,Supplies and Services,304221,Equipment and Materials,01/10/2020,3786756-214426,548.94,TYNEDALE ROADSTONE LTD.
Neighbourhoods and Climate Change,Technical Services CM0300,Supplies and Services,304221,Equipment and Materials,01/10/2020,3786756-214427,600.94,TYNEDALE ROADSTONE LTD.
Neighbourhoods and Climate Change,Technical Services CM0300,Supplies and Services,304221,Equipment and Materials,01/10/2020,3786756-214495,949.43,TYNEDALE ROADSTONE LTD.
Neighbourhoods and Climate Change,Technical Services CM0300,Supplies and Services,304221,Equipment and Materials,01/10/2020,3786756-214497,959.81,TYNEDALE ROADSTONE LTD.
Neighbourhoods and Climate Change,Technical Services CM0300,Supplies and Services,304221,Equipment and Materials,01/10/2020,3786756-214498,943.38,TYNEDALE ROADSTONE LTD.
Neighbourhoods and Climate Change,Technical Services CM0300,Supplies and Services,304221,Equipment and Materials,01/10/2020,3786756-214499,953.76,TYNEDALE ROADSTONE LTD.
Neighbourhoods and Climate Change,Technical Services CM0300,Supplies and Services,304221,Equipment and Materials,01/10/2020,3786756-214503,949.43,TYNEDALE ROADSTONE LTD.
"Regeneration, Economy and Growth",Corporate Property and Land,Supplies and Services,304221,Equipment and Materials,01/10/2020,3786601-0108/00182285,"3,217.82",JT DOVE LTD.
"Regeneration, Economy and Growth",Corporate Property and Land,Supplies and Services,304221,Equipment and Materials,01/10/2020,3786542-059-268764,709.86,EDMUNDSON ELECTRICAL LTD.
Regeneration and Local Services,COVID19 - Regeneration Economy and Growth,Supplies and Services,338047,Services,01/10/2020,3786725-GALATHEATRE,"1,000.00",STEVE BYRON (THEATRE CONTRACTOR).
Neighbourhoods and Climate Change,Environmental Services,Supplies and Services,304259,Equipment and Materials,01/10/2020,3786480-INV141033,"1,087.00",AZTEC CHEMICALS LTD.
"Regeneration, Economy and Growth",Culture Sport and Tourism,Supplies and Services,304259,Equipment and Materials,01/10/2020,3786698-SI646529-1,"1,155.00",RLSS UK ENTERPRISES LTD T/A LIFESAVERS DIRECT.
Children and Young Peoples Services,Head of Early Help Inclusion & Vulnerable Children.,Supplies and Services,304259,Equipment and Materials,01/10/2020,3786647-55325,513.00,NLS SECURITY LTD T/A ESAFES.
Neighbourhoods and Climate Change,Environmental Services,Supplies and Services,304252,Equipment and Materials,01/10/2020,3786750-12021267,850.00,TQ ENVIRONMENTAL LTD.
Neighbourhoods and Climate Change,Technical Services CM0300,Supplies and Services,338044,Services,01/10/2020,3786462-28437497,"10,105.41",AECOM LTD.
Children and Young Peoples Services,Head of Childrens Social Care,Supplies and Services,338044,Services,01/10/2020,3786612-181414,725.00,LEXTOX.
Neighbourhoods and Climate Change,Environmental Services,Transport,215022,Running Costs of Vehicles,01/10/2020,3786658-639445,"1,619.20",OIL NRG LTD.
Neighbourhoods and Climate Change,Environmental Services,Transport,215022,Running Costs of Vehicles,01/10/2020,3786658-639451,833.77,OIL NRG LTD.
Neighbourhoods and Climate Change,Environmental Services,Transport,215022,Running Costs of Vehicles,01/10/2020,3786658-639034,"1,228.58",OIL NRG LTD.
Neighbourhoods and Climate Change,Environmental Services,Premises,108099,Service Repairs and Maintenance,01/10/2020,3786597-425,"1,294.00",JN KEARTON.
Neighbourhoods and Climate Change,Environmental Services,Premises,108099,Service Repairs and Maintenance,01/10/2020,3786683-10185,"3,988.00",PROBE INDUSTRIES LTD.
Adult and Health Services,Commissioning inc Supporting People,Third Party Payments,441001,Supporting People E441,01/10/2020,3786720-1059,"40,953.00",ST MARGARETS CENTRE.
Adult and Health Services,Head of Adults,Third Party Payments,472101,Purchase of Care,01/10/2020,3786582-CAS-09-2020-146,"1,137.50",HUMANKIND CHARITY.
Neighbourhoods and Climate Change,Technical Services CM0300,Supplies and Services,304357,Equipment and Materials,01/10/2020,3786560-DCC060920,"10,063.84",GAP GROUP LTD.
"Regeneration, Economy and Growth",Transport and Contracted Services,Supplies and Services,304245,Equipment and Materials,01/10/2020,3786754-3IN/10360778,"15,025.85",TUNSTALL HEALTHCARE (UK) LTD.
Resources BK0010,Legal & Democratic Services,Supplies and Services,344014,Telephones,01/10/2020,3786768-OL55714,774.70,VODAFONE LTD.
Resources BK0010,Digital and Customer Services,Supplies and Services,344015,Telephones,01/10/2020,3786768-OL36235,791.00,VODAFONE LTD.
Adult and Health Services,Commissioning inc Supporting People,Third Party Payments,479102,Purchase of Care,01/10/2020,3786484-146519771,644.26,BARNARDO SERVICES LTD.
Adult and Health Services,Commissioning inc Supporting People,Third Party Payments,479102,Purchase of Care,01/10/2020,3786484-146521575,"2,720.20",BARNARDO SERVICES LTD.
Neighbourhoods and Climate Change,Environmental Services,Supplies and Services,384199,Miscellaneous Expenses,01/10/2020,3786688-092004,"1,370.00",RACHEL HEPBURN T/A RH ECOLOGICAL SERVICES.
"Regeneration, Economy and Growth",Corporate Property and Land,Supplies and Services,384199,Miscellaneous Expenses,01/10/2020,3786472-2392,"1,220.00",ARGUS ECOLOGY LTD.
Children and Young Peoples Services,Head of Education and Skills,Supplies and Services,384199,Miscellaneous Expenses,01/10/2020,3786478-101886,"1,716.00",AUTISM EDUCATION TRUST.
Children and Young Peoples Services,Head of Education and Skills,Supplies and Services,384199,Miscellaneous Expenses,01/10/2020,3786714-DURHAMWORKSHOSPITALITY,"2,099.90",SMARTT NORTH EAST LTD.
Neighbourhoods and Climate Change,Environmental Services,Supplies and Services,338099,Services,01/10/2020,3786687-0001,"1,000.00",R ALLIN.
Neighbourhoods and Climate Change,Environmental Services,Third Party Payments,430100,Rendered by Private Contractors,01/10/2020,3786683-10186,"3,069.55",PROBE INDUSTRIES LTD.
Neighbourhoods and Climate Change,Technical Services CM0300,Third Party Payments,430100,Rendered by Private Contractors,01/10/2020,3786556-200801,"9,870.00",FORTNUM & WOOLLEY LTD.
Neighbourhoods and Climate Change,Technical Services CM0300,Third Party Payments,430100,Rendered by Private Contractors,01/10/2020,3786556-200902,"23,030.00",FORTNUM & WOOLLEY LTD.
Neighbourhoods and Climate Change,Technical Services CM0300,Third Party Payments,430100,Rendered by Private Contractors,01/10/2020,3786648-NPSL1214,"3,649.14",NORDIC PRODUCTS & SERVICES LTD.
Neighbourhoods and Climate Change,Technical Services CM0300,Third Party Payments,430100,Rendered by Private Contractors,01/10/2020,3786682-18432,"2,163.38",PRM FABRICATIONS LTD.
Neighbourhoods and Climate Change,Technical Services CM0300,Third Party Payments,430100,Rendered by Private Contractors,01/10/2020,3786774-338,975.00,WHORLTON LAND SURVEYS LTD.
"Regeneration, Economy and Growth",Corporate Property and Land,Third Party Payments,430100,Rendered by Private Contractors,01/10/2020,3786641-29523,"30,800.00",NE & C WINDOWS & DOORS LTD.
"Regeneration, Economy and Growth",Business Durham CL0850,Supplies and Services,340001,Postages E340,01/10/2020,3786642-RED-09-2020-191,"1,000.00",NEOPOST CREDIFON.
"Regeneration, Economy and Growth",Business Durham CL0850,Supplies and Services,340001,Postages E340,01/10/2020,3786642-RED-09-2020-194,"1,000.00",NEOPOST CREDIFON.
Adult and Health Services,Public Health CC0450,Supplies and Services,384155,Miscellaneous Expenses,01/10/2020,3786646-1000066624,"64,959.61",NHS BUSINESS SERVICES AUTHORITY (NHSBSA).
"Regeneration, Economy and Growth",Transport and Contracted Services,Supplies and Services,332029,Printing Stationery and Gen Off Exps,01/10/2020,3786689-18435,"1,225.50",RADECAL SIGNS GRAPHICS & ADVERTISING.
"Regeneration, Economy and Growth",Business Durham CL0850,Supplies and Services,338066,Services,01/10/2020,3786758-INV-13909,"4,318.18",UMI COMMERCIAL LTD.
Neighbourhoods and Climate Change,Environmental Services,Supplies and Services,338066,Services,01/10/2020,3786753-0000003627,"1,500.00",TULLIE HOUSE MUSEUM & ART GALLERY TRUST.
Adult and Health Services,Public Health CC0450,Supplies and Services,338066,Services,01/10/2020,3786492-SIN018352,"52,007.25",BLOOM PROCUREMENT SERVICES LTD (FORMERLY NEPRO LTD).
"Regeneration, Economy and Growth",Culture Sport and Tourism,Vehicles Equipment Furniture and Fittings,912521,Purchase-furniture and fittings,01/10/2020,3786466-169788,"13,306.00",ALBANY OFFICE EQUIPMENT (WHOLESALE) LTD.
Neighbourhoods and Climate Change,Technical Services CM0300,Supplies and Services,384167,Miscellaneous Expenses,01/10/2020,3786709-WWB1150659,"1,055.00",SGS UNITED KINGDOM LTD.
Children and Young Peoples Services,Head of Childrens Social Care,Transport,230005,Contract Hire,01/10/2020,3786522-110376,878.80,CROFT BUSINESS SERVICES (UK) LTD T/A CROFT TAXIS.
Children and Young Peoples Services,Head of Childrens Social Care,Transport,230005,Contract Hire,01/10/2020,3786726-SEP5/STL,"1,060.00",STL CABS.
Children and Young Peoples Services,Head of Childrens Social Care,Transport,230005,Contract Hire,01/10/2020,3786490-QB55,"1,567.50",BIRDS TAXIS LTD.
Children and Young Peoples Services,Head of Childrens Social Care,Transport,230005,Contract Hire,01/10/2020,3786510-CLUB2039D,500.00,CLUBMAN CABS.
Children and Young Peoples Services,Head of Childrens Social Care,Transport,230005,Contract Hire,01/10/2020,3786522-110378,521.20,CROFT BUSINESS SERVICES (UK) LTD T/A CROFT TAXIS.
Children and Young Peoples Services,Head of Childrens Social Care,Transport,230005,Contract Hire,01/10/2020,3786510-CLUB2039B,592.00,CLUBMAN CABS.
Dedicated Schools Grant BG0015,DSG High Needs Block,Third Party Payments,486004,Service level agreements E486,01/10/2020,3786737-4810018670,"1,188.32",TEES ESK & WEAR VALLEYS NHS FOUNDATION TRUST.
Neighbourhoods and Climate Change,Technical Services CM0300,Stock A926,926004,Stock,01/10/2020,3786509-400026427,"10,671.50",CLEVELAND POTASH LTD T/A ICL FERTILIZERS.
Neighbourhoods and Climate Change,Technical Services CM0300,Stock A926,926004,Stock,01/10/2020,3786509-400026428,"2,699.20",CLEVELAND POTASH LTD T/A ICL FERTILIZERS.
Neighbourhoods and Climate Change,Technical Services CM0300,Stock A926,926004,Stock,01/10/2020,3786509-400026468,"14,972.30",CLEVELAND POTASH LTD T/A ICL FERTILIZERS.
Neighbourhoods and Climate Change,Technical Services CM0300,Stock A926,926004,Stock,01/10/2020,3786509-400026469,"14,973.00",CLEVELAND POTASH LTD T/A ICL FERTILIZERS.
Neighbourhoods and Climate Change,Technical Services CM0300,Stock A926,926004,Stock,01/10/2020,3786509-400026470,"10,084.20",CLEVELAND POTASH LTD T/A ICL FERTILIZERS.
Neighbourhoods and Climate Change,Technical Services CM0300,Stock A926,926004,Stock,01/10/2020,3786509-400026471,"14,709.10",CLEVELAND POTASH LTD T/A ICL FERTILIZERS.
Neighbourhoods and Climate Change,Technical Services CM0300,Stock A926,926004,Stock,01/10/2020,3786509-400026556,"12,974.50",CLEVELAND POTASH LTD T/A ICL FERTILIZERS.
Neighbourhoods and Climate Change,Technical Services CM0300,Stock A926,926004,Stock,01/10/2020,3786509-6188089,"20,811.70",CLEVELAND POTASH LTD T/A ICL FERTILIZERS.
Neighbourhoods and Climate Change,Technical Services CM0300,Stock A926,926900,Stock in hand-Inventory system,01/10/2020,3786502-140002010,"3,284.00",CARLISLE CONSTRUCTION MATERIALS LTD.
Neighbourhoods and Climate Change,Technical Services CM0300,Stock A926,926900,Stock in hand-Inventory system,01/10/2020,3786550-134108,"13,202.80",FABRIKAT (NOTTINGHAM) LTD.
Neighbourhoods and Climate Change,Technical Services CM0300,Stock A926,926900,Stock in hand-Inventory system,01/10/2020,3786665-XL259961,"1,099.50",PARK ELECTRICAL DISTRIBUTORS LTD.
Neighbourhoods and Climate Change,Technical Services CM0300,Stock A926,926900,Stock in hand-Inventory system,01/10/2020,3786665-XL259963,928.00,PARK ELECTRICAL DISTRIBUTORS LTD.
Resources BK0010,Digital and Customer Services,Stock A926,926900,Stock in hand-Inventory system,01/10/2020,3786529-7402648284,"1,030.00",DELL COMPUTER CORPORATION LTD.
Resources BK0010,Digital and Customer Services,Stock A926,926900,Stock in hand-Inventory system,01/10/2020,3786781-KX38532,"1,268.32",XMA LTD.
Resources BK0010,Digital and Customer Services,Stock A926,926900,Stock in hand-Inventory system,01/10/2020,3786781-KX38932,861.00,XMA LTD.
Resources BK0010,Digital and Customer Services,Stock A926,926900,Stock in hand-Inventory system,01/10/2020,3786781-KX39159,511.08,XMA LTD.
Resources BK0010,Digital and Customer Services,Stock A926,926900,Stock in hand-Inventory system,01/10/2020,3786781-KX39212,"1,902.48",XMA LTD.
Resources BK0010,Digital and Customer Services,Stock A926,926900,Stock in hand-Inventory system,01/10/2020,3786781-KX39295,511.08,XMA LTD.
Adult and Health Services,Head of Adults,Third Party Payments,478101,Purchase of Care,01/10/2020,3786627-ADDITIONALUPLIFT6/45,708.34,MEARS EXTRA CARE LTD.
Children and Young Peoples Services,Head of Childrens Social Care,Third Party Payments,440038,Other third party payments E440,02/10/2020,3786980-1627,"2,683.40",ROC SOLID LTD.
Children and Young Peoples Services,Head of Childrens Social Care,Third Party Payments,440038,Other third party payments E440,02/10/2020,3786980-1629,"2,082.60",ROC SOLID LTD.
Children and Young Peoples Services,Head of Childrens Social Care,Third Party Payments,440038,Other third party payments E440,02/10/2020,3786980-1630,"3,485.40",ROC SOLID LTD.
Children and Young Peoples Services,Head of Childrens Social Care,Third Party Payments,440038,Other third party payments E440,02/10/2020,3786980-1631,558.93,ROC SOLID LTD.
"Regeneration, Economy and Growth",Transport and Contracted Services,Supplies and Services,336005,Advertising E336,02/10/2020,3786918-341482,720.00,JPI MEDIA PUBLISHING LTD T/A SHEFFIELD NEWSPAPERS.
Resources BK0010,Digital and Customer Services,Supplies and Services,304040,Equipment and Materials,02/10/2020,3786985-I20090040,"1,161.51",SAPPHIRE TECHNOLOGIES LTD.*
Children and Young Peoples Services,Head of Education and Skills,Transfer Payments,510035,School Children,02/10/2020,3786846-CAS-10-2020-002,"1,000.00",DENE HOUSE PRIMARY SCHOOL (ACADEMY).
Children and Young Peoples Services,Head of Education and Skills,Transfer Payments,510035,School Children,02/10/2020,3786943-CAS-10-2020-003,"1,990.00",NORTH DURHAM ACADEMY.
Resources BK0010,Legal & Democratic Services,Supplies and Services,338042,Services,02/10/2020,3786848-349261/INVLW338,700.00,DERE STREET BARRISTERS.
Resources BK0010,Legal & Democratic Services,Supplies and Services,338042,Services,02/10/2020,3786848-352112/INVCSM492,"3,000.00",DERE STREET BARRISTERS.
Resources BK0010,Legal & Democratic Services,Supplies and Services,338042,Services,02/10/2020,3786848-353875/INVHMU393,"2,400.00",DERE STREET BARRISTERS.
Resources BK0010,Legal & Democratic Services,Supplies and Services,338042,Services,02/10/2020,3786848-354089/INVSEB1X257,"1,000.00",DERE STREET BARRISTERS.
Resources BK0010,Legal & Democratic Services,Supplies and Services,338042,Services,02/10/2020,3786848-357151/INVFM462,850.00,DERE STREET BARRISTERS.
Resources BK0010,Legal & Democratic Services,Supplies and Services,338042,Services,02/10/2020,3786848-358207/INVBD160,"1,800.00",DERE STREET BARRISTERS.
Resources BK0010,Legal & Democratic Services,Supplies and Services,338042,Services,02/10/2020,3786848-359648/INVKVR120,"1,800.00",DERE STREET BARRISTERS.
Resources BK0010,Legal & Democratic Services,Supplies and Services,338042,Services,02/10/2020,3786848-359720/INVHS49,850.00,DERE STREET BARRISTERS.
Resources BK0010,Legal & Democratic Services,Supplies and Services,338042,Services,02/10/2020,3786848-359914/INVCSM493,550.00,DERE STREET BARRISTERS.
Adult and Health Services,Head of Adults,Supplies and Services,328041,Clothing uniforms and laundry E328,02/10/2020,3787024-NSIN00043399,552.04,THOMAS OWEN & SONS (NEWCASTLE) LTD.
"Regeneration, Economy and Growth",Corporate Property and Land,Premises,106080,Centrally Controlled Rep and Maint,02/10/2020,3786913-22471,"2,322.00",JC MAINTENANCE SERVICES LTD.
"Regeneration, Economy and Growth",Culture Sport and Tourism,Premises,106080,Centrally Controlled Rep and Maint,02/10/2020,3786905-CD200193067,"12,059.81",INTEGRATED WATER SERVICES LTD.
Resources BK0010,Digital and Customer Services,Supplies and Services,342033,Computers and Communications,02/10/2020,3787011-134387,"20,233.17",SWITCHSHOP LTD.
Resources BK0010,Digital and Customer Services,Supplies and Services,342033,Computers and Communications,02/10/2020,3787011-134417,886.00,SWITCHSHOP LTD.
Resources BK0010,Digital and Customer Services,Supplies and Services,342051,Computers and Communications,02/10/2020,3786931-12525994,"8,008.00",MAINTEL EUROPE LTD.
Resources BK0010,Digital and Customer Services,Supplies and Services,342051,Computers and Communications,02/10/2020,3786931-12533342,"1,435.00",MAINTEL EUROPE LTD.
Neighbourhoods and Climate Change,Technical Services CM0300,Supplies and Services,352001,Conference Expenses,02/10/2020,3787014-SI-699,"2,209.00",TAILORED HIGHWAY SUPPORT LTD T/A THS TRAINING.
Neighbourhoods and Climate Change,Technical Services CM0300,Supplies and Services,352001,Conference Expenses,02/10/2020,3787014-SI-708,"2,149.00",TAILORED HIGHWAY SUPPORT LTD T/A THS TRAINING.
"Regeneration, Economy and Growth",Corporate Property and Land,Construction work A908,908105,Construction work,02/10/2020,3786813-14140,"1,061.36",BROWN & ILLINGWORTH LTD.
Neighbourhoods and Climate Change,Environmental Services,Third Party Payments,430103,Rendered by Private Contractors,02/10/2020,3787019-NEI-EXP-09-2020-006,"16,208.52",TEESDALE CONSERVATION VOLUNTEERS.
Adult and Health Services,Public Health CC0450,Supplies and Services,384899,Miscellaneous Expenses,02/10/2020,3786991-CREE20/21,"3,000.00",SEAHAM EASTLEA & DISTRICT COMMUNITY ASSOCIATION.
Neighbourhoods and Climate Change,Environmental Services,Supplies and Services,304221,Equipment and Materials,02/10/2020,3786977-RSIN0349878,"1,278.22",RIGBY TAYLOR LTD.
Neighbourhoods and Climate Change,Technical Services CM0300,Supplies and Services,304221,Equipment and Materials,02/10/2020,3786808-BMPR/343/BJW,528.00,BISHOP MIDDLEHAM PLANT & RECYCLING LTD.
Neighbourhoods and Climate Change,Technical Services CM0300,Supplies and Services,304221,Equipment and Materials,02/10/2020,3786880-1014568,540.00,GRAB & DELIVER LTD.
Neighbourhoods and Climate Change,Technical Services CM0300,Supplies and Services,304221,Equipment and Materials,02/10/2020,3787015-9042176611,"3,669.40",TARMAC TRADING LTD.
Neighbourhoods and Climate Change,Technical Services CM0300,Supplies and Services,304221,Equipment and Materials,02/10/2020,3787015-9042182820,"1,462.50",TARMAC TRADING LTD.
Neighbourhoods and Climate Change,Technical Services CM0300,Supplies and Services,304221,Equipment and Materials,02/10/2020,3787015-9042203033,928.77,TARMAC TRADING LTD.
Neighbourhoods and Climate Change,Technical Services CM0300,Supplies and Services,304221,Equipment and Materials,02/10/2020,3787026-35405,"1,550.00",TODDS HIGHWAY MAINTENANCE LTD.
Neighbourhoods and Climate Change,Technical Services CM0300,Supplies and Services,304221,Equipment and Materials,02/10/2020,3787026-35407,580.00,TODDS HIGHWAY MAINTENANCE LTD.
Neighbourhoods and Climate Change,Technical Services CM0300,Supplies and Services,304221,Equipment and Materials,02/10/2020,3787026-35408,"1,300.00",TODDS HIGHWAY MAINTENANCE LTD.
Neighbourhoods and Climate Change,Technical Services CM0300,Supplies and Services,304221,Equipment and Materials,02/10/2020,3787026-35410,750.00,TODDS HIGHWAY MAINTENANCE LTD.
Neighbourhoods and Climate Change,Technical Services CM0300,Supplies and Services,304221,Equipment and Materials,02/10/2020,3787034-213251,950.30,TYNEDALE ROADSTONE LTD.
Neighbourhoods and Climate Change,Technical Services CM0300,Supplies and Services,304221,Equipment and Materials,02/10/2020,3787034-213253,"1,070.20",TYNEDALE ROADSTONE LTD.
Neighbourhoods and Climate Change,Technical Services CM0300,Supplies and Services,304221,Equipment and Materials,02/10/2020,3787034-214186,877.45,TYNEDALE ROADSTONE LTD.
Neighbourhoods and Climate Change,Technical Services CM0300,Supplies and Services,304221,Equipment and Materials,02/10/2020,3787034-214195,728.45,TYNEDALE ROADSTONE LTD.
Neighbourhoods and Climate Change,Technical Services CM0300,Supplies and Services,304221,Equipment and Materials,02/10/2020,3787034-214196,724.49,TYNEDALE ROADSTONE LTD.
Neighbourhoods and Climate Change,Technical Services CM0300,Supplies and Services,304221,Equipment and Materials,02/10/2020,3787034-214203,940.67,TYNEDALE ROADSTONE LTD.
Neighbourhoods and Climate Change,Technical Services CM0300,Supplies and Services,304221,Equipment and Materials,02/10/2020,3787034-214207,765.08,TYNEDALE ROADSTONE LTD.
Neighbourhoods and Climate Change,Technical Services CM0300,Supplies and Services,304221,Equipment and Materials,02/10/2020,3787034-214210,584.90,TYNEDALE ROADSTONE LTD.
Neighbourhoods and Climate Change,Technical Services CM0300,Supplies and Services,304221,Equipment and Materials,02/10/2020,3787034-214312,627.47,TYNEDALE ROADSTONE LTD.
Neighbourhoods and Climate Change,Technical Services CM0300,Supplies and Services,304221,Equipment and Materials,02/10/2020,3787034-214313,586.88,TYNEDALE ROADSTONE LTD.
Neighbourhoods and Climate Change,Technical Services CM0300,Supplies and Services,304221,Equipment and Materials,02/10/2020,3787034-214317,737.36,TYNEDALE ROADSTONE LTD.
Neighbourhoods and Climate Change,Technical Services CM0300,Supplies and Services,304221,Equipment and Materials,02/10/2020,3787034-214409,740.33,TYNEDALE ROADSTONE LTD.
Neighbourhoods and Climate Change,Technical Services CM0300,Supplies and Services,304221,Equipment and Materials,02/10/2020,3787034-214413,725.48,TYNEDALE ROADSTONE LTD.
Neighbourhoods and Climate Change,Technical Services CM0300,Supplies and Services,304221,Equipment and Materials,02/10/2020,3787034-214422,898.16,TYNEDALE ROADSTONE LTD.
Neighbourhoods and Climate Change,Technical Services CM0300,Supplies and Services,304221,Equipment and Materials,02/10/2020,3787034-214488,786.86,TYNEDALE ROADSTONE LTD.
Neighbourhoods and Climate Change,Technical Services CM0300,Supplies and Services,304221,Equipment and Materials,02/10/2020,3787034-214492,858.34,TYNEDALE ROADSTONE LTD.
Neighbourhoods and Climate Change,Technical Services CM0300,Supplies and Services,304221,Equipment and Materials,02/10/2020,3787034-214563,801.52,TYNEDALE ROADSTONE LTD.
Neighbourhoods and Climate Change,Technical Services CM0300,Supplies and Services,304221,Equipment and Materials,02/10/2020,3787034-214564,601.73,TYNEDALE ROADSTONE LTD.
Neighbourhoods and Climate Change,Technical Services CM0300,Supplies and Services,304221,Equipment and Materials,02/10/2020,3787034-214565,739.34,TYNEDALE ROADSTONE LTD.
Neighbourhoods and Climate Change,Technical Services CM0300,Supplies and Services,304221,Equipment and Materials,02/10/2020,3787034-214568,845.47,TYNEDALE ROADSTONE LTD.
Neighbourhoods and Climate Change,Technical Services CM0300,Supplies and Services,304221,Equipment and Materials,02/10/2020,3787034-214569,"1,038.77",TYNEDALE ROADSTONE LTD.
Neighbourhoods and Climate Change,Technical Services CM0300,Supplies and Services,304221,Equipment and Materials,02/10/2020,3787034-214570,846.46,TYNEDALE ROADSTONE LTD.
Neighbourhoods and Climate Change,Technical Services CM0300,Supplies and Services,304221,Equipment and Materials,02/10/2020,3787034-214676,843.29,TYNEDALE ROADSTONE LTD.
Neighbourhoods and Climate Change,Technical Services CM0300,Supplies and Services,304221,Equipment and Materials,02/10/2020,3787034-214677,"1,083.46",TYNEDALE ROADSTONE LTD.
"Regeneration, Economy and Growth",Corporate Property and Land,Supplies and Services,304221,Equipment and Materials,02/10/2020,3787012-450476,"3,118.85",T CROSSLING & CO LTD.
"Regeneration, Economy and Growth",Corporate Property and Land,Supplies and Services,304221,Equipment and Materials,02/10/2020,3787012-451774,"1,353.27",T CROSSLING & CO LTD.
"Regeneration, Economy and Growth",Corporate Property and Land,Supplies and Services,304221,Equipment and Materials,02/10/2020,3787012-451850,"1,980.07",T CROSSLING & CO LTD.
"Regeneration, Economy and Growth",Corporate Property and Land,Supplies and Services,304221,Equipment and Materials,02/10/2020,3787012-452370,541.74,T CROSSLING & CO LTD.
"Regeneration, Economy and Growth",Corporate Property and Land,Supplies and Services,304221,Equipment and Materials,02/10/2020,3787039-6890348491,663.00,VIESSMANN LTD.
"Regeneration, Economy and Growth",Culture Sport and Tourism,Supplies and Services,304259,Equipment and Materials,02/10/2020,3786793-169731,"1,110.00",ALBANY OFFICE EQUIPMENT (WHOLESALE) LTD.
"Regeneration, Economy and Growth",Corporate Property and Land,Supplies and Services,304259,Equipment and Materials,02/10/2020,3786946-449821,530.00,NORTHERN TOOLS & ACCESSORIES.
Adult and Health Services,Head of Adults,Supplies and Services,304259,Equipment and Materials,02/10/2020,3786828-CN30045180,988.50,CITRON HYGIENE UK LTD.
"Regeneration, Economy and Growth",Culture Sport and Tourism,Cap Exp on Grants & Other Financial Assistance (REFCUS),918501,Exp assets not owned by authority,02/10/2020,3787022-NEI-HCL-10-2020-001,"100,000.00",THE REDHILLS APPEAL.
"Regeneration, Economy and Growth",Development and Housing,Cap Exp on Grants & Other Financial Assistance (REFCUS),918501,Exp assets not owned by authority,02/10/2020,3786956-RED-10-2020-001,"50,000.00",PAUL O`HEHIR T/A THE DAY CENTRE LTD.
Neighbourhoods and Climate Change,Environmental Services,Premises,108099,Service Repairs and Maintenance,02/10/2020,3786913-22470,"4,887.00",JC MAINTENANCE SERVICES LTD.
"Regeneration, Economy and Growth",Corporate Property and Land,Premises,108099,Service Repairs and Maintenance,02/10/2020,3786905-CD200182874,880.00,INTEGRATED WATER SERVICES LTD.
"Regeneration, Economy and Growth",Business Durham CL0850,Premises,108099,Service Repairs and Maintenance,02/10/2020,3786819-7268,"4,374.53",CATHEDRAL LOCK & SAFE SERVICES LTD.
Children and Young Peoples Services,Head of Early Help Inclusion & Vulnerable Children.,Premises,108099,Service Repairs and Maintenance,02/10/2020,3786805-220942,750.00,BELLWOOD REWINDS LTD.
Adult and Health Services,Head of Adults,Third Party Payments,472101,Purchase of Care,02/10/2020,3786844-SUSPENDEDCALLS13/8,913.02,DALE CARE LTD.
Neighbourhoods and Climate Change,Environmental Services,Supplies and Services,304357,Equipment and Materials,02/10/2020,3786937-28988,"3,100.00",MJ HICKEY PLANT HIRE & CONTRACTS LTD.
Neighbourhoods and Climate Change,Partnerships & Community Engagement Div.,Supplies and Services,384086,Miscellaneous Expenses,02/10/2020,3787044-VOUCHER20NB-EDUR006,"5,000.00",WHEATLEY HILL COMMUNITY ASSOCIATION.
Resources BK0010,Digital and Customer Services,Supplies and Services,304303,Equipment and Materials,02/10/2020,3786886-INV0180348,566.00,GV MULTIMEDIA LTD.
Resources BK0010,Digital and Customer Services,Supplies and Services,304303,Equipment and Materials,02/10/2020,3787048-KX38944,628.00,XMA LTD.
Adult and Health Services,Head of Adults,Third Party Payments,474101,Purchase of Care,02/10/2020,3786809-RESNURSADDITIONAL 6/3,566.00,BONDCARE WILLINGTON LTD.
Adult and Health Services,Head of Adults,Third Party Payments,474101,Purchase of Care,02/10/2020,3786961-RESNURSADDITIONAL 6/4,"7,082.40",PERFECT CARE LTD.
Adult and Health Services,Commissioning inc Supporting People,Third Party Payments,479101,Purchase of Care,02/10/2020,3787018-4810018637,"1,910.09",TEES ESK & WEAR VALLEYS NHS FOUNDATION TRUST.
Neighbourhoods and Climate Change,Environmental Services,Third Party Payments,430100,Rendered by Private Contractors,02/10/2020,3786804-46060578,"1,356.11",BELL TRUCK SALES LTD T/A BELL TRUCK & VAN.
Neighbourhoods and Climate Change,Environmental Services,Third Party Payments,430100,Rendered by Private Contractors,02/10/2020,3786825-421531,567.85,CHATFIELDS T/A EVANS HALSHAW.
Neighbourhoods and Climate Change,Environmental Services,Third Party Payments,430100,Rendered by Private Contractors,02/10/2020,3786877-90024967,578.28,GEESINK NORBA LTD.
Neighbourhoods and Climate Change,Environmental Services,Third Party Payments,430100,Rendered by Private Contractors,02/10/2020,3786932-33726,"1,214.37",MAJOR & ASPINALL LTD.
Neighbourhoods and Climate Change,Environmental Services,Third Party Payments,430100,Rendered by Private Contractors,02/10/2020,3786964-TYN15741,516.88,PIRTEK TYNE & WEAR.
"Regeneration, Economy and Growth",Corporate Property and Land,Third Party Payments,430100,Rendered by Private Contractors,02/10/2020,3786819-7232,800.00,CATHEDRAL LOCK & SAFE SERVICES LTD.
"Regeneration, Economy and Growth",Corporate Property and Land,Third Party Payments,430100,Rendered by Private Contractors,02/10/2020,3786875-11416,"2,030.00",FROSTREE LTD.
"Regeneration, Economy and Growth",Corporate Property and Land,Third Party Payments,430100,Rendered by Private Contractors,02/10/2020,3786879-INV-0281,"3,230.00",GLENFIELD ENERGY SOLUTIONS LTD.
"Regeneration, Economy and Growth",Corporate Property and Land,Third Party Payments,430100,Rendered by Private Contractors,02/10/2020,3786798-2027,"3,750.00",AWR ROOFING & ALUMIN RAINWATER SYSTEMS LTD.
Dedicated Schools Grant BG0015,DSG Early Years Block,Transfer Payments,510030,School Children,02/10/2020,3786857-21200,"3,891.58",EDEN ACADEMY TRUST LTD T/A BLUEBELL MEADOW PRIMARY SCHOOL.
Resources BK0010,Corporate Finance & Commercial Services,Third Party Payments,479112,Purchase of Care,02/10/2020,3786837-21151,"1,718.75",CONNECT HEALTH LTD.
Resources BK0010,Finance & Transactional Services,Supplies and Services,340001,Postages E340,02/10/2020,3786982-9061523999,"11,828.69",ROYAL MAIL GROUP PLC.
Neighbourhoods and Climate Change,Environmental Services,Supplies and Services,338066,Services,02/10/2020,3786797-SLINV/00000065,"2,485.00",ASKHAM BRYAN COLLEGE.
Adult and Health Services,Head of Adults,Supplies and Services,338429,Services,02/10/2020,3786835-JOB001/20106,550.00,COLIN JOBLING T/A RAINBOW INTERNATIONAL.
Resources BK0010,Finance & Transactional Services,Supplies and Services,338429,Services,02/10/2020,3786872-INV-0169,"1,390.00",FOXTONS HOUSE CLEARANCE.
"Regeneration, Economy and Growth",Business Durham CL0850,Vehicles Equipment Furniture and Fittings,912529,Purchase-equipment,02/10/2020,3787011-134493,"4,566.00",SWITCHSHOP LTD.
Children and Young Peoples Services,Head of Childrens Social Care,Third Party Payments,425021,Rendered by Voluntary Organisations,02/10/2020,3786902-KR07,"6,558.72",INCLUDE IN AUTISM.
Children and Young Peoples Services,Head of Childrens Social Care,Third Party Payments,425021,Rendered by Voluntary Organisations,02/10/2020,3786902-KR08,"6,558.72",INCLUDE IN AUTISM.
Adult and Health Services,Head of Adults,Third Party Payments,470101,Purchase of Care,02/10/2020,3787006-RESNURSADDITIONAL 6/9,"5,346.00",SUNNY OKUKPOLOR HUMPHREYS.
Adult and Health Services,Head of Adults,Third Party Payments,471101,Purchase of Care,02/10/2020,3786935-RESNURSADDITIONAL 6/6,"4,420.00",MARIPOSA CARE LTD.
"Regeneration, Economy and Growth",Culture Sport and Tourism,Premises,106082,Centrally Controlled Rep and Maint,02/10/2020,3786791-IN7543,"11,252.60",ACROL AIR CONDITIONING CO LTD.
"Regeneration, Economy and Growth",Business Durham CL0850,Premises,106082,Centrally Controlled Rep and Maint,02/10/2020,3786913-22478,"8,873.42",JC MAINTENANCE SERVICES LTD.
"Regeneration, Economy and Growth",Culture Sport and Tourism,Premises,106082,Centrally Controlled Rep and Maint,02/10/2020,3786913-22469,"9,103.98",JC MAINTENANCE SERVICES LTD.
Children and Young Peoples Services,Head of Childrens Social Care,Premises,106082,Centrally Controlled Rep and Maint,02/10/2020,3786893-7080841194,529.20,HONEYWELL NOVAR SYSTEMS LTD.
Neighbourhoods and Climate Change,Environmental Services,Stock A926,926004,Stock,02/10/2020,3786941-INVDUR003I4067,755.66,NE TRUCK SPARES LTD (NETS).
Neighbourhoods and Climate Change,Technical Services CM0300,Stock A926,926900,Stock in hand-Inventory system,02/10/2020,3787008-5937677,508.00,BANNER GROUP LTD (FORMERLY SUPPLIES TEAM LTD).
Neighbourhoods and Climate Change,Technical Services CM0300,Stock A926,926900,Stock in hand-Inventory system,02/10/2020,3786954-XL260075,540.00,PARK ELECTRICAL DISTRIBUTORS LTD.
Neighbourhoods and Climate Change,Technical Services CM0300,Stock A926,926900,Stock in hand-Inventory system,02/10/2020,3786954-XL260079,715.08,PARK ELECTRICAL DISTRIBUTORS LTD.
Neighbourhoods and Climate Change,Technical Services CM0300,Stock A926,926900,Stock in hand-Inventory system,02/10/2020,3786999-194065,"3,202.92",SNAPFAST.
Children and Young Peoples Services,Head of Education and Skills,Supplies and Services,372009,Subscriptions E372,02/10/2020,3786812-CAS-10-2020-001,565.00,BRITISH YOUTH COUNCIL.
Neighbourhoods and Climate Change,Environmental Services,Transport,210057,Repair and Maintenance of Vehicles,02/10/2020,3786945-21857126,673.89,NORTH EAST TRUCK & VAN LTD.
Children and Young Peoples Services,Head of Education and Skills,Transfer Payments,510035,School Children,05/10/2020,3787308-CAS-10-2020-006,"2,000.00",KING JAMES I ACADEMY.
Resources BK0010,Legal & Democratic Services,Supplies and Services,338042,Services,05/10/2020,3787205-351587/INVBD161,850.00,DERE STREET BARRISTERS.
"Regeneration, Economy and Growth",Culture Sport and Tourism,Premises,145023,Cleaning and Domestic Supplies,05/10/2020,3787246-06/082391,866.56,GREENHAM TRADING LTD.
Children and Young Peoples Services,Central Charges (CYPS),Supplies and Services,384197,Miscellaneous Expenses,05/10/2020,3787137-A0022118,617.19,BOX IT NORTH.
Children and Young Peoples Services,Central Charges (CYPS),Supplies and Services,384197,Miscellaneous Expenses,05/10/2020,3787137-A0022119,"1,672.86",BOX IT NORTH.
Resources BK0010,Digital and Customer Services,Supplies and Services,342051,Computers and Communications,05/10/2020,3787140-676027,"1,370.66",BYTES SOFTWARE SERVICES LTD.
Neighbourhoods and Climate Change,Technical Services CM0300,Construction work A908,908105,Construction work,05/10/2020,3787274-24571,"1,264.25",JACK COUPE & SONS LTD T/A COUPE LINE.
Neighbourhoods and Climate Change,Technical Services CM0300,Construction work A908,908105,Construction work,05/10/2020,3787274-24572,"7,518.17",JACK COUPE & SONS LTD T/A COUPE LINE.
"Regeneration, Economy and Growth",Transport and Contracted Services,Construction work A908,908105,Construction work,05/10/2020,3787396-1269377,"128,228.59",NETWORK RAIL.
"Regeneration, Economy and Growth",Transport and Contracted Services,Construction work A908,908105,Construction work,05/10/2020,3787396-1269424,"50,445.15",NETWORK RAIL.
"Regeneration, Economy and Growth",Development and Housing,Supplies and Services,338027,Services,05/10/2020,3787179-INV-0409,500.00,CP VIABILITY LTD.
Resources BK0010,Transformation,Supplies and Services,338027,Services,05/10/2020,3787102-84473593,"4,650.00",APEX ACOUSTICS LTD.
"Regeneration, Economy and Growth",Culture Sport and Tourism,Premises,145050,Cleaning and Domestic Supplies,05/10/2020,3787160-CN30051568,"1,064.82",CITRON HYGIENE UK LTD.
Children and Young Peoples Services,Head of Education and Skills,Transport,230034,Contract Hire,05/10/2020,3787432-COVID19-3422-EST-SEPT-CYPS-142,858.00,PETER`S TAXIS.
Children and Young Peoples Services,Head of Education and Skills,Transport,230034,Contract Hire,05/10/2020,3787470-COVID19-3370-EST-SEPT-CYPS-124,"2,013.00",SHOTTON PRIVATE HIRE.
Children and Young Peoples Services,Head of Education and Skills,Transport,230034,Contract Hire,05/10/2020,3787486-COVID19-1247-EST-SEPT-CYPS-026,"1,105.50",STANLEY TRAVEL (NORTH EAST) LTD.
Children and Young Peoples Services,Head of Education and Skills,Transport,230034,Contract Hire,05/10/2020,3787182-COVID19-1261-EST-SEPT-CYPS-031,697.50,CRAIG MASSEY`S TAXIS.
Children and Young Peoples Services,Head of Education and Skills,Transport,230034,Contract Hire,05/10/2020,3787448-1234,832.00,RDS TAXI.
Children and Young Peoples Services,Head of Education and Skills,Transport,230034,Contract Hire,05/10/2020,3787307-COVID19-7348-EST-SEPT-CYPS-328,858.00,KEVIN WALKER T/A CENTRAL TAXIS.
Children and Young Peoples Services,Head of Education and Skills,Transport,230034,Contract Hire,05/10/2020,3787307-CTD026/20,650.00,KEVIN WALKER T/A CENTRAL TAXIS.
Children and Young Peoples Services,Head of Education and Skills,Transport,230034,Contract Hire,05/10/2020,3787357-227,"1,040.00",MR BRIAN JOHNSON T/A BRYS TAXIS.
Children and Young Peoples Services,Head of Education and Skills,Transport,230034,Contract Hire,05/10/2020,3787357-COVID19-4411-EST-SEPT-CYPS-213,"1,353.00",MR BRIAN JOHNSON T/A BRYS TAXIS.
Children and Young Peoples Services,Head of Education and Skills,Transport,230034,Contract Hire,05/10/2020,3787375-COVID19-4421-EST-SEPT-CYPS-220,"1,287.00",MR MARIUSZ LASOTA T/A BM TAXI.
Children and Young Peoples Services,Head of Education and Skills,Transport,230034,Contract Hire,05/10/2020,3787142-COVID19-4418-EST-SEPT-CYPS-216,"1,980.00",CA MUSGROVE.
Children and Young Peoples Services,Head of Education and Skills,Transport,230034,Contract Hire,05/10/2020,3787288-COVID19-3075-EST-SEPT-CYPS-077,"1,188.00",JOHN CRAKE & SONS MINI BUSES LTD.
Children and Young Peoples Services,Head of Education and Skills,Transport,230034,Contract Hire,05/10/2020,3787341-COVID19-3434-EST-SEPT-CYPS-153,"1,584.00",MEKLEC CARS.
Children and Young Peoples Services,Head of Education and Skills,Transport,230034,Contract Hire,05/10/2020,3787281-COVID19-4292-EST-SEPT-CYPS-192,"1,016.07",JDS PRIVATE HIRE DURHAM.
Children and Young Peoples Services,Head of Education and Skills,Transport,230034,Contract Hire,05/10/2020,3787431-COVID19-5279-EST-SEPT-CYPS-294,769.50,PETER`S PRIVATE HIRE/PETER BEST.
Children and Young Peoples Services,Head of Education and Skills,Transport,230034,Contract Hire,05/10/2020,3787105-COVID19-3426-EST-SEPT-CYPS-146,"1,171.50",AT TAXIS LTD.
Children and Young Peoples Services,Head of Education and Skills,Transport,230034,Contract Hire,05/10/2020,3787525-1021,"1,056.00",TONYS TAXIS (A BIRCH).
Children and Young Peoples Services,Head of Education and Skills,Transport,230034,Contract Hire,05/10/2020,3787526-COVID19-4406-EST-SEPT-CYPS-210,"1,089.00",TONYS TAXIS (A BIRCH).
Children and Young Peoples Services,Head of Education and Skills,Transport,230034,Contract Hire,05/10/2020,3787130-COVID19-1265-EST-SEPT-CYPS-034,858.00,BLUELINE TAXIS.
Children and Young Peoples Services,Head of Education and Skills,Transport,230034,Contract Hire,05/10/2020,3787435-COVID19-4415-EST-SEPT-CYPS-215,990.00,PHOENIX TAXIS T/A PRATT`S TAXIS.
Children and Young Peoples Services,Head of Education and Skills,Transport,230034,Contract Hire,05/10/2020,3787278-COVID19-1250-EST-SEPT-CYPS-028,"1,353.00",JAYS TAXIS/JOHN GARLAND (TAXIS).
Children and Young Peoples Services,Head of Education and Skills,Transport,230034,Contract Hire,05/10/2020,3787103-COVID19-3386-EST-SEPT-CYPS-129,924.00,ARMSTRONG`S TAXIS.
Children and Young Peoples Services,Head of Education and Skills,Transport,230034,Contract Hire,05/10/2020,3787375-COVID19-5254-EST-SEPT-CYPS-281,"1,563.21",MR MARIUSZ LASOTA T/A BM TAXI.
Children and Young Peoples Services,Head of Education and Skills,Transport,230034,Contract Hire,05/10/2020,3787261-COVID19-3432-EST-SEPT-CYPS-150,627.00,HORNDALE TAXIS LTD.
Children and Young Peoples Services,Head of Education and Skills,Transport,230034,Contract Hire,05/10/2020,3787347-COVID19-5263-EST-SEPT-CYPS-286,"1,470.98",MICKS TAXIS - MURTON.
Children and Young Peoples Services,Head of Education and Skills,Transport,230034,Contract Hire,05/10/2020,3787348-COVID19-5260-EST-SEPT-CYPS-284,"1,188.00",MICKS TAXIS - MURTON.
Children and Young Peoples Services,Head of Education and Skills,Transport,230034,Contract Hire,05/10/2020,3787281-COVID19-1264-EST-SEPT-CYPS-033,"1,600.50",JDS PRIVATE HIRE DURHAM.
Children and Young Peoples Services,Head of Education and Skills,Transport,230034,Contract Hire,05/10/2020,3787320-COVID19-1005-EST-SEPT-CYPS-002,"1,858.73",LINCAB TAXIS.
Children and Young Peoples Services,Head of Education and Skills,Transport,230034,Contract Hire,05/10/2020,3787056-COVID19-5227-EST-SEPT-CYPS-269,"1,600.50",24/7 TAXI SERVICES LTD.
Children and Young Peoples Services,Head of Education and Skills,Transport,230034,Contract Hire,05/10/2020,3787348-COVID19-5292-EST-SEPT-CYPS-303,825.00,MICKS TAXIS - MURTON.
Children and Young Peoples Services,Head of Education and Skills,Transport,230034,Contract Hire,05/10/2020,3787428-COVID19-5262-EST-SEPT-CYPS-285,"1,980.00",PETERLEE EXECUTIVE CARS.
Children and Young Peoples Services,Head of Education and Skills,Transport,230034,Contract Hire,05/10/2020,3787367-COVID19-3423-EST-SEPT-CYPS-143,839.28,MR IAN KELSEY T/A KDK TAXIS.
Children and Young Peoples Services,Head of Education and Skills,Transport,230034,Contract Hire,05/10/2020,3787285-COVID19-3403-EST-SEPT-CYPS-136,"1,350.00",JL EBDON. T/A DIAL-A-CAB.
Children and Young Peoples Services,Head of Education and Skills,Transport,230034,Contract Hire,05/10/2020,3787242-COVID19-2072-EST-SEPT-CYPS-042,"1,570.47",GORDON`S TAXIS.
Children and Young Peoples Services,Head of Education and Skills,Transport,230034,Contract Hire,05/10/2020,3787392-COVID19-4420-EST-SEPT-CYPS-219,"1,618.32",ND TAXIS.
Children and Young Peoples Services,Head of Education and Skills,Transport,230034,Contract Hire,05/10/2020,3787376-COVID19-4423-EST-SEPT-CYPS-222,"1,146.23",MR MARK WILE T/A HARRY`S TAXIS.
Children and Young Peoples Services,Head of Education and Skills,Transport,230034,Contract Hire,05/10/2020,3787496-COVID19-4399-EST-SEPT-CYPS-207,"1,405.31",STEVEN HENDERSON T/A HENDYS TAXIS.
Children and Young Peoples Services,Head of Education and Skills,Transport,230034,Contract Hire,05/10/2020,3787130-COVID19-5256-EST-SEPT-CYPS-282,741.75,BLUELINE TAXIS.
Children and Young Peoples Services,Head of Education and Skills,Transport,230034,Contract Hire,05/10/2020,3787491-COVID19-5289-EST-SEPT-CYPS-300,924.83,STEPHEN BRACE T/A JAFFA`S TAXI (SEAHAM).
Children and Young Peoples Services,Head of Education and Skills,Transport,230034,Contract Hire,05/10/2020,3787130-COVID19-5243-EST-SEPT-CYPS-274,"1,188.00",BLUELINE TAXIS.
Children and Young Peoples Services,Head of Education and Skills,Transport,230034,Contract Hire,05/10/2020,3787056-COVID19-5288-EST-SEPT-CYPS-299,"1,353.00",24/7 TAXI SERVICES LTD.
Children and Young Peoples Services,Head of Education and Skills,Transport,230034,Contract Hire,05/10/2020,3787428-COVID19-5184-EST-SEPT-CYPS-255,"1,796.19",PETERLEE EXECUTIVE CARS.
Children and Young Peoples Services,Head of Education and Skills,Transport,230034,Contract Hire,05/10/2020,3787264-COVID19-6039-EST-SEPT-CYPS-316,"1,427.25",IAN CLYDESDALE T/A BURNOPFIELD TAXIS.
Children and Young Peoples Services,Head of Education and Skills,Transport,230034,Contract Hire,05/10/2020,3787356-COVID19-6048-EST-SEPT-CYPS-318,858.00,MR AG WILSON T/A ALAN`S TAXIS (DURHAM CITY).
Children and Young Peoples Services,Head of Education and Skills,Transport,230034,Contract Hire,05/10/2020,3787291-COVID19-1240-EST-SEPT-CYPS-024,874.50,JOHN ROBSON T/A ACE TAXIS.
Children and Young Peoples Services,Head of Education and Skills,Transport,230034,Contract Hire,05/10/2020,3787432-COVID19-N103-EST-SEPT-CYPS-893,"1,353.00",PETER`S TAXIS.
Children and Young Peoples Services,Head of Education and Skills,Transport,230035,Contract Hire,05/10/2020,3787359-COVID19-1004-EST-SEPT-CYPS-001,"1,227.60",MR CT WALKER T/A CW TAXIS.
Children and Young Peoples Services,Head of Education and Skills,Transport,230035,Contract Hire,05/10/2020,3787189-COVID19-3415-EST-SEPT-CYPS-138,990.63,D IRVING T/A BJ TAXIS.
Children and Young Peoples Services,Head of Education and Skills,Transport,230035,Contract Hire,05/10/2020,3787208-COVID19-2067-EST-SEPT-CYPS-040,"1,817.15",DIANE GOOCH T/A COLLINS TAXIS.
Children and Young Peoples Services,Head of Education and Skills,Transport,230035,Contract Hire,05/10/2020,3787326-COVID19-2077-EST-SEPT-CYPS-046,"1,023.00",M BUTCHER T/A M & M`S TAXIS.
Children and Young Peoples Services,Head of Education and Skills,Transport,230035,Contract Hire,05/10/2020,3787417-COVID19-5286-EST-SEPT-CYPS-298,"1,322.91",PAUL BURRELL T/A PAUL BURRELL TAXIS.
Children and Young Peoples Services,Head of Education and Skills,Transport,230035,Contract Hire,05/10/2020,3787486-COVID19-1198-EST-SEPT-CYPS-015,"1,681.35",STANLEY TRAVEL (NORTH EAST) LTD.
Children and Young Peoples Services,Head of Education and Skills,Transport,230013,Contract Hire,05/10/2020,3787486-COVID19-1260-EST-SEPT-CYPS-030,943.80,STANLEY TRAVEL (NORTH EAST) LTD.
Children and Young Peoples Services,Head of Education and Skills,Transport,230007,Contract Hire,05/10/2020,3787105-COVID19-3436-EST-SEPT-CYPS-155,"1,425.00",AT TAXIS LTD.
Children and Young Peoples Services,Head of Education and Skills,Transport,230007,Contract Hire,05/10/2020,3787258-COVID19-3067-EST-SEPT-CYPS-073,"1,656.42",HODGSONS COACH OPERATORS LTD.
Children and Young Peoples Services,Head of Education and Skills,Transport,230007,Contract Hire,05/10/2020,3787486-COVID19-1038-EST-SEPT-CYPS-008,817.74,STANLEY TRAVEL (NORTH EAST) LTD.
Children and Young Peoples Services,Head of Education and Skills,Transport,230007,Contract Hire,05/10/2020,3787165-COVID19-4079-EST-SEPT-CYPS-180,929.12,CLIVE HUBERY.
Children and Young Peoples Services,Head of Education and Skills,Transport,230007,Contract Hire,05/10/2020,3787547-COVID19-4361-EST-SEPT-CYPS-196,"1,336.50",WEARDALE MOTOR SERVICES LTD.
Children and Young Peoples Services,Head of Education and Skills,Transport,230007,Contract Hire,05/10/2020,3787548-COVID19-4391-EST-SEPT-CYPS-205,825.00,WEARDALE PRIVATE HIRE.
Children and Young Peoples Services,Head of Education and Skills,Transport,230007,Contract Hire,05/10/2020,3787547-COVID19-4042-EST-SEPT-CYPS-174,"2,296.80",WEARDALE MOTOR SERVICES LTD.
Children and Young Peoples Services,Head of Education and Skills,Transport,230007,Contract Hire,05/10/2020,3787378-COVID19-2060-EST-SEPT-CYPS-039,"1,188.00",MR PETER YOUNG.
Children and Young Peoples Services,Head of Education and Skills,Transport,230007,Contract Hire,05/10/2020,3787335-COVID19-3431-EST-SEPT-CYPS-149,858.00,MARK O`NEILL T/A KWIK CABS.
Children and Young Peoples Services,Head of Education and Skills,Transport,230007,Contract Hire,05/10/2020,3787440-COVID19-5298-EST-SEPT-CYPS-309,"1,633.50",PRESTYS HACKNEY & PRIVATE HIRE TAXIS.
Children and Young Peoples Services,Head of Education and Skills,Transport,230007,Contract Hire,05/10/2020,3787458-1823,812.44,RON`S TAXIS (FISHBURN).
Children and Young Peoples Services,Head of Education and Skills,Transport,230007,Contract Hire,05/10/2020,3787302-COVID19-3382-EST-SEPT-CYPS-126,787.50,KEN HINDS.
Children and Young Peoples Services,Head of Education and Skills,Transport,230007,Contract Hire,05/10/2020,3787192-COVID19-3416-EST-SEPT-CYPS-139,693.00,DA TRAVEL.
Children and Young Peoples Services,Head of Education and Skills,Transport,230007,Contract Hire,05/10/2020,3787258-COVID19-3273-EST-SEPT-CYPS-105,821.04,HODGSONS COACH OPERATORS LTD.
Children and Young Peoples Services,Head of Education and Skills,Transport,230007,Contract Hire,05/10/2020,3787092-COVID19-3030-EST-SEPT-CYPS-059,"1,192.13",ALSTON ROAD GARAGE.
Children and Young Peoples Services,Head of Education and Skills,Transport,230007,Contract Hire,05/10/2020,3787423-COVID19-3065-EST-SEPT-CYPS-072,"1,683.00",PBS TRAVEL LTD.
Children and Young Peoples Services,Head of Education and Skills,Transport,230007,Contract Hire,05/10/2020,3787258-COVID19-3226-EST-SEPT-CYPS-100,843.32,HODGSONS COACH OPERATORS LTD.
Children and Young Peoples Services,Head of Education and Skills,Transport,230007,Contract Hire,05/10/2020,3787168-COVID19-4374-EST-SEPT-CYPS-202,"3,069.00",COCHRANES T/A KELVIN TRAVEL.
Children and Young Peoples Services,Head of Education and Skills,Transport,230007,Contract Hire,05/10/2020,3787431-COVID19-4330-EST-SEPT-CYPS-195,"1,909.22",PETER`S PRIVATE HIRE/PETER BEST.
Children and Young Peoples Services,Head of Education and Skills,Transport,230007,Contract Hire,05/10/2020,3787345-COVID19-5295-EST-SEPT-CYPS-306,775.50,MICHAEL TAYLOR (TAXIS).
Children and Young Peoples Services,Head of Education and Skills,Transport,230007,Contract Hire,05/10/2020,3787299-1092,"1,683.00",K & R TAXIS (STANLEY).
Children and Young Peoples Services,Head of Education and Skills,Transport,230007,Contract Hire,05/10/2020,3787073-COVID19-4422-EST-SEPT-CYPS-221,926.25,A & C TAXIS.
Children and Young Peoples Services,Head of Education and Skills,Transport,230007,Contract Hire,05/10/2020,3787258-COVID19-3338-EST-SEPT-CYPS-120,610.50,HODGSONS COACH OPERATORS LTD.
Children and Young Peoples Services,Head of Education and Skills,Transport,230007,Contract Hire,05/10/2020,3787543-COVID19-3402-EST-SEPT-CYPS-135,775.50,WALTONS TAXIS.
Children and Young Peoples Services,Head of Education and Skills,Transport,230007,Contract Hire,05/10/2020,3787088-COVID19-3314-EST-SEPT-CYPS-116,"1,188.00",ALANS TAXIS BARNARD CASTLE.
Children and Young Peoples Services,Head of Education and Skills,Transport,230007,Contract Hire,05/10/2020,3787088-COVID19-3294-EST-SEPT-CYPS-109,"1,006.50",ALANS TAXIS BARNARD CASTLE.
Children and Young Peoples Services,Head of Education and Skills,Transport,230007,Contract Hire,05/10/2020,3787258-COVID19-3077-EST-SEPT-CYPS-079,577.17,HODGSONS COACH OPERATORS LTD.
Children and Young Peoples Services,Head of Education and Skills,Transport,230007,Contract Hire,05/10/2020,3787258-COVID19-3290-EST-SEPT-CYPS-107,581.30,HODGSONS COACH OPERATORS LTD.
Children and Young Peoples Services,Head of Education and Skills,Transport,230007,Contract Hire,05/10/2020,3787486-COVID19-1245-EST-SEPT-CYPS-025,872.43,STANLEY TRAVEL (NORTH EAST) LTD.
Children and Young Peoples Services,Head of Education and Skills,Transport,230007,Contract Hire,05/10/2020,3787384-COVID19-4078-EST-SEPT-CYPS-179,841.50,MR STUART SCOTT T/A AIRPORT CARS DURHAM
Children and Young Peoples Services,Head of Education and Skills,Transport,230007,Contract Hire,05/10/2020,3787130-COVID19-5245-EST-SEPT-CYPS-275,957.00,BLUELINE TAXIS.
Children and Young Peoples Services,Head of Education and Skills,Transport,230007,Contract Hire,05/10/2020,3787212-COVID19-5299-EST-SEPT-CYPS-310,"2,112.00",EAST DURHAM TAXIS.
Children and Young Peoples Services,Head of Education and Skills,Transport,230007,Contract Hire,05/10/2020,3787217-COVID19-5234-EST-SEPT-CYPS-272,"2,079.00",ELLIOTTS OF TRIMDON.
Children and Young Peoples Services,Head of Education and Skills,Transport,230007,Contract Hire,05/10/2020,3787282-COVID19-5233-EST-SEPT-CYPS-271,"2,145.00",JEFF ANDERSON COACHES LTD.
Children and Young Peoples Services,Head of Education and Skills,Transport,230007,Contract Hire,05/10/2020,3787400-COVID19-5050-EST-SEPT-CYPS-244,"1,975.71",NORTH EAST COACHWAYS LTD.
Children and Young Peoples Services,Head of Education and Skills,Transport,230007,Contract Hire,05/10/2020,3787254-COVID19-3074-EST-SEPT-CYPS-076,"2,359.50",HARRY`S TAXI`S.
Children and Young Peoples Services,Head of Education and Skills,Transport,230007,Contract Hire,05/10/2020,3787126-COVID19-3282-EST-SEPT-CYPS-106,660.00,BIRDS TAXIS LTD.
Children and Young Peoples Services,Head of Education and Skills,Transport,230007,Contract Hire,05/10/2020,3787447-COVID19-4062-EST-SEPT-CYPS-177,"1,334.69",RAYNERS COACHES.
Children and Young Peoples Services,Head of Education and Skills,Transport,230007,Contract Hire,05/10/2020,3787435-COVID19-4413-EST-SEPT-CYPS-214,759.00,PHOENIX TAXIS T/A PRATT`S TAXIS.
Children and Young Peoples Services,Head of Education and Skills,Transport,230007,Contract Hire,05/10/2020,3787130-COVID19-5235-EST-SEPT-CYPS-273,528.00,BLUELINE TAXIS.
Children and Young Peoples Services,Head of Education and Skills,Transport,230007,Contract Hire,05/10/2020,3787347-306,820.05,MICKS TAXIS - MURTON.
Children and Young Peoples Services,Head of Education and Skills,Transport,230007,Contract Hire,05/10/2020,3787056-COVID19-5269-EST-SEPT-CYPS-288,525.43,24/7 TAXI SERVICES LTD.
Children and Young Peoples Services,Head of Education and Skills,Transport,230007,Contract Hire,05/10/2020,3787127-COVID19-5281-EST-SEPT-CYPS-295,"2,013.00",BL CARS.
Children and Young Peoples Services,Head of Education and Skills,Transport,230007,Contract Hire,05/10/2020,3787130-COVID19-5231-EST-SEPT-CYPS-270,"1,175.96",BLUELINE TAXIS.
Children and Young Peoples Services,Head of Education and Skills,Transport,230007,Contract Hire,05/10/2020,3787342-COVID19-5293-EST-SEPT-CYPS-304,"1,080.00",MGD TAXIS.
Children and Young Peoples Services,Head of Education and Skills,Transport,230007,Contract Hire,05/10/2020,3787372-COVID19-5284-EST-SEPT-CYPS-297,"1,353.00",MR LJ TARRY T/A TARRY`S TAXI`S.
Children and Young Peoples Services,Head of Education and Skills,Transport,230007,Contract Hire,05/10/2020,3787510-COVID19-5268-EST-SEPT-CYPS-287,"1,107.00",TARNS TAXIS LTD.
Children and Young Peoples Services,Head of Education and Skills,Transport,230007,Contract Hire,05/10/2020,3787366-COVID19-5008-EST-SEPT-CYPS-225,"1,361.25",MR GS ANDERSON.
Children and Young Peoples Services,Head of Education and Skills,Transport,230007,Contract Hire,05/10/2020,3787226-COVID19-1006-EST-SEPT-CYPS-003,"1,030.76",FMR SILVA PITA.
Children and Young Peoples Services,Head of Education and Skills,Transport,230007,Contract Hire,05/10/2020,3787320-COVID19-L001-EST-SEPT-CYPS-730,773.85,LINCAB TAXIS.
Children and Young Peoples Services,Head of Education and Skills,Transport,230007,Contract Hire,05/10/2020,3787426-COVID19-L002-EST-SEPT-CYPS-731,940.50,PETER NAYLOR.
Children and Young Peoples Services,Head of Education and Skills,Transport,230007,Contract Hire,05/10/2020,3787229-COVID19-1223-EST-SEPT-CYPS-019,"1,254.75",G & P JOHNSON LTD T/A NIGHTINGALE COACHES.
Children and Young Peoples Services,Head of Education and Skills,Transport,230007,Contract Hire,05/10/2020,3787229-COVID19-1238-EST-SEPT-CYPS-023,"1,709.40",G & P JOHNSON LTD T/A NIGHTINGALE COACHES.
Children and Young Peoples Services,Head of Education and Skills,Transport,230007,Contract Hire,05/10/2020,3787426-COVID19-1233-EST-SEPT-CYPS-021,"1,457.28",PETER NAYLOR.
Children and Young Peoples Services,Head of Education and Skills,Transport,230007,Contract Hire,05/10/2020,3787231-COVID19-4034-EST-SEPT-CYPS-169,"2,278.98",GARNETTS LTD (COACHES).
Children and Young Peoples Services,Head of Education and Skills,Transport,230007,Contract Hire,05/10/2020,3787231-COVID19-4035-EST-SEPT-CYPS-170,"2,009.37",GARNETTS LTD (COACHES).
Children and Young Peoples Services,Head of Education and Skills,Transport,230007,Contract Hire,05/10/2020,3787231-COVID19-4036-EST-SEPT-CYPS-171,"2,278.98",GARNETTS LTD (COACHES).
Children and Young Peoples Services,Head of Education and Skills,Transport,230007,Contract Hire,05/10/2020,3787231-COVID19-4037-EST-SEPT-CYPS-172,"4,019.07",GARNETTS LTD (COACHES).
Children and Young Peoples Services,Head of Education and Skills,Transport,230007,Contract Hire,05/10/2020,3787231-COVID19-4038-EST-SEPT-CYPS-173,"2,108.37",GARNETTS LTD (COACHES).
Children and Young Peoples Services,Head of Education and Skills,Transport,230007,Contract Hire,05/10/2020,3787244-COVID19-4370-EST-SEPT-CYPS-198,"2,047.50",GRAHAM WILLIAMS T/A BUS 2 MINIBUS HIRE.
Children and Young Peoples Services,Head of Education and Skills,Transport,230007,Contract Hire,05/10/2020,3787505-COVID19-4369-EST-SEPT-CYPS-197,"1,460.25",T MOORE & SON.
Children and Young Peoples Services,Head of Education and Skills,Transport,230007,Contract Hire,05/10/2020,3787120-COVID19-4408-EST-SEPT-CYPS-211,"1,666.50",BENNETTS TAXIS.
Children and Young Peoples Services,Head of Education and Skills,Transport,230007,Contract Hire,05/10/2020,3787320-COVID19-4046-EST-SEPT-CYPS-175,623.31,LINCAB TAXIS.
Children and Young Peoples Services,Head of Education and Skills,Transport,230007,Contract Hire,05/10/2020,3787505-COVID19-4156-EST-SEPT-CYPS-185,"1,639.11",T MOORE & SON.
Children and Young Peoples Services,Head of Education and Skills,Transport,230007,Contract Hire,05/10/2020,3787548-COVID19-4170-EST-SEPT-CYPS-186,741.02,WEARDALE PRIVATE HIRE.
Children and Young Peoples Services,Head of Education and Skills,Transport,230007,Contract Hire,05/10/2020,3787546-COVID19-3293-EST-SEPT-CYPS-108,"1,037.85",WAYNE`S TAXIS.
Children and Young Peoples Services,Head of Education and Skills,Transport,230007,Contract Hire,05/10/2020,3787292-COVID19-3430-EST-SEPT-CYPS-148,693.00,JOHN W CROOK T/A CORPORATE TRAVEL.
Children and Young Peoples Services,Head of Education and Skills,Transport,230007,Contract Hire,05/10/2020,3787315-8367,"1,019.88",LEE`S COACHES LTD.
Children and Young Peoples Services,Head of Education and Skills,Transport,230007,Contract Hire,05/10/2020,3787315-8368,"1,937.25",LEE`S COACHES LTD.
Children and Young Peoples Services,Head of Education and Skills,Transport,230007,Contract Hire,05/10/2020,3787315-COVID19-3056-EST-SEPT-CYPS-070,"3,217.50",LEE`S COACHES LTD.
Children and Young Peoples Services,Head of Education and Skills,Transport,230007,Contract Hire,05/10/2020,3787315-COVID19-3192-EST-SEPT-CYPS-090,"1,740.75",LEE`S COACHES LTD.
Children and Young Peoples Services,Head of Education and Skills,Transport,230007,Contract Hire,05/10/2020,3787490-COVID19-3347-EST-SEPT-CYPS-121,528.00,STEPHEN BALL T/A ABBIE`S TAXIS..
Children and Young Peoples Services,Head of Education and Skills,Transport,230007,Contract Hire,05/10/2020,3787545-COVID19-3193-EST-SEPT-CYPS-091,643.50,WATSON OF SPENNYMOOR.
Children and Young Peoples Services,Head of Education and Skills,Transport,230007,Contract Hire,05/10/2020,3787079-COVID19-3389-EST-SEPT-CYPS-130,989.67,AABAT TAXIS.
Children and Young Peoples Services,Head of Education and Skills,Transport,230007,Contract Hire,05/10/2020,3787083-COVID19-3399-EST-SEPT-CYPS-133,"1,023.00",ACE TAXIS (WINSTON).
Children and Young Peoples Services,Head of Education and Skills,Transport,230007,Contract Hire,05/10/2020,3787231-COVID19-3254-EST-SEPT-CYPS-101,"2,557.50",GARNETTS LTD (COACHES).
Children and Young Peoples Services,Head of Education and Skills,Transport,230007,Contract Hire,05/10/2020,3787362-COVID19-3393-EST-SEPT-CYPS-131,693.00,MR DAVID CULLEN T/A JED`S TAXIS.
Children and Young Peoples Services,Head of Education and Skills,Transport,230007,Contract Hire,05/10/2020,3787547-COVID19-3182-EST-SEPT-CYPS-089,"2,970.00",WEARDALE MOTOR SERVICES LTD.
Children and Young Peoples Services,Head of Education and Skills,Transport,230007,Contract Hire,05/10/2020,3787134-COVID19-3425-EST-SEPT-CYPS-145,"1,980.00",BOBS TAXIS.
Children and Young Peoples Services,Head of Education and Skills,Transport,230007,Contract Hire,05/10/2020,3787223-COVID19-3069-EST-SEPT-CYPS-075,"2,029.17",FIGGY BUS (TAXI).
Children and Young Peoples Services,Head of Education and Skills,Transport,230007,Contract Hire,05/10/2020,3787231-COVID19-3029-EST-SEPT-CYPS-058,"2,458.50",GARNETTS LTD (COACHES).
Children and Young Peoples Services,Head of Education and Skills,Transport,230007,Contract Hire,05/10/2020,3787231-COVID19-3199-EST-SEPT-CYPS-093,"2,343.00",GARNETTS LTD (COACHES).
Children and Young Peoples Services,Head of Education and Skills,Transport,230007,Contract Hire,05/10/2020,3787258-COVID19-3076-EST-SEPT-CYPS-078,675.18,HODGSONS COACH OPERATORS LTD.
Children and Young Peoples Services,Head of Education and Skills,Transport,230007,Contract Hire,05/10/2020,3787369-COVID19-3212-EST-SEPT-CYPS-096,985.88,MR JOHN ALLINSON T/A AALPHA TAXIS.
Children and Young Peoples Services,Head of Education and Skills,Transport,230007,Contract Hire,05/10/2020,3787391-COVID19-3093-EST-SEPT-CYPS-084,"1,472.63",NC TAXI`S.
Children and Young Peoples Services,Head of Education and Skills,Transport,230007,Contract Hire,05/10/2020,3787543-COVID19-3334-EST-SEPT-CYPS-118,"1,340.63",WALTONS TAXIS.
Children and Young Peoples Services,Head of Education and Skills,Transport,230007,Contract Hire,05/10/2020,3787088-COVID19-3045-EST-SEPT-CYPS-066,"1,666.50",ALANS TAXIS BARNARD CASTLE.
Children and Young Peoples Services,Head of Education and Skills,Transport,230007,Contract Hire,05/10/2020,3787088-COVID19-3371-EST-SEPT-CYPS-125,858.00,ALANS TAXIS BARNARD CASTLE.
Children and Young Peoples Services,Head of Education and Skills,Transport,230007,Contract Hire,05/10/2020,3787092-COVID19-3039-EST-SEPT-CYPS-063,"2,123.71",ALSTON ROAD GARAGE.
Children and Young Peoples Services,Head of Education and Skills,Transport,230007,Contract Hire,05/10/2020,3787245-COVID19-3048-EST-SEPT-CYPS-069,"1,584.00",GRAHAMS MOTOR SERVICES LTD.
Children and Young Peoples Services,Head of Education and Skills,Transport,230007,Contract Hire,05/10/2020,3787258-COVID19-3033-EST-SEPT-CYPS-060,"1,596.05",HODGSONS COACH OPERATORS LTD.
Children and Young Peoples Services,Head of Education and Skills,Transport,230007,Contract Hire,05/10/2020,3787258-COVID19-3036-EST-SEPT-CYPS-061,"1,980.00",HODGSONS COACH OPERATORS LTD.
Children and Young Peoples Services,Head of Education and Skills,Transport,230007,Contract Hire,05/10/2020,3787258-COVID19-3042-EST-SEPT-CYPS-064,"2,899.05",HODGSONS COACH OPERATORS LTD.
Children and Young Peoples Services,Head of Education and Skills,Transport,230007,Contract Hire,05/10/2020,3787258-COVID19-3044-EST-SEPT-CYPS-065,"2,742.80",HODGSONS COACH OPERATORS LTD.
Children and Young Peoples Services,Head of Education and Skills,Transport,230007,Contract Hire,05/10/2020,3787258-COVID19-3047-EST-SEPT-CYPS-068,"3,397.85",HODGSONS COACH OPERATORS LTD.
Children and Young Peoples Services,Head of Education and Skills,Transport,230007,Contract Hire,05/10/2020,3787258-COVID19-3068-EST-SEPT-CYPS-074,"1,547.04",HODGSONS COACH OPERATORS LTD.
Children and Young Peoples Services,Head of Education and Skills,Transport,230007,Contract Hire,05/10/2020,3787258-COVID19-3088-EST-SEPT-CYPS-081,"1,183.55",HODGSONS COACH OPERATORS LTD.
Children and Young Peoples Services,Head of Education and Skills,Transport,230007,Contract Hire,05/10/2020,3787258-COVID19-3090-EST-SEPT-CYPS-082,"1,481.54",HODGSONS COACH OPERATORS LTD.
Children and Young Peoples Services,Head of Education and Skills,Transport,230007,Contract Hire,05/10/2020,3787258-COVID19-3119-EST-SEPT-CYPS-085,650.93,HODGSONS COACH OPERATORS LTD.
Children and Young Peoples Services,Head of Education and Skills,Transport,230007,Contract Hire,05/10/2020,3787258-COVID19-3122-EST-SEPT-CYPS-086,"2,095.50",HODGSONS COACH OPERATORS LTD.
Children and Young Peoples Services,Head of Education and Skills,Transport,230007,Contract Hire,05/10/2020,3787258-COVID19-3177-EST-SEPT-CYPS-088,"3,122.30",HODGSONS COACH OPERATORS LTD.
Children and Young Peoples Services,Head of Education and Skills,Transport,230007,Contract Hire,05/10/2020,3787419-COVID19-3046-EST-SEPT-CYPS-067,"2,029.50",PAUL WATSON TRAVEL.
Children and Young Peoples Services,Head of Education and Skills,Transport,230007,Contract Hire,05/10/2020,3787423-COVID19-3037-EST-SEPT-CYPS-062,"1,617.01",PBS TRAVEL LTD.
Children and Young Peoples Services,Head of Education and Skills,Transport,230007,Contract Hire,05/10/2020,3787423-COVID19-3058-EST-SEPT-CYPS-071,"1,402.50",PBS TRAVEL LTD.
Children and Young Peoples Services,Head of Education and Skills,Transport,230007,Contract Hire,05/10/2020,3787493-COVID19-3195-EST-SEPT-CYPS-092,"1,740.75",STEPHEN MAUDE LTD T/A MAUDES COACHES.
Children and Young Peoples Services,Head of Education and Skills,Transport,230007,Contract Hire,05/10/2020,3787282-COVID19-2012-EST-SEPT-CYPS-035,"1,372.14",JEFF ANDERSON COACHES LTD.
Children and Young Peoples Services,Head of Education and Skills,Transport,230007,Contract Hire,05/10/2020,3787335-COVID19-2069-EST-SEPT-CYPS-041,858.00,MARK O`NEILL T/A KWIK CABS.
Children and Young Peoples Services,Head of Education and Skills,Transport,230007,Contract Hire,05/10/2020,3787532-COVID19-2073-EST-SEPT-CYPS-043,660.00,TRAVEL 6.
Children and Young Peoples Services,Head of Education and Skills,Transport,230007,Contract Hire,05/10/2020,3787105-COVID19-2053-EST-SEPT-CYPS-038,"1,425.00",AT TAXIS LTD.
Children and Young Peoples Services,Head of Education and Skills,Transport,230007,Contract Hire,05/10/2020,3787079-COVID19-3365-EST-SEPT-CYPS-123,841.50,AABAT TAXIS.
Children and Young Peoples Services,Head of Education and Skills,Transport,230007,Contract Hire,05/10/2020,3787231-COVID19-3007-EST-SEPT-CYPS-052,"2,138.24",GARNETTS LTD (COACHES).
Children and Young Peoples Services,Head of Education and Skills,Transport,230007,Contract Hire,05/10/2020,3787231-COVID19-3435-EST-SEPT-CYPS-154,"2,613.75",GARNETTS LTD (COACHES).
Children and Young Peoples Services,Head of Education and Skills,Transport,230007,Contract Hire,05/10/2020,3787495-COVID19-3383-EST-SEPT-CYPS-127,934.13,STEPHEN VALLANCE T/A SELECT CABS.
Children and Young Peoples Services,Head of Education and Skills,Transport,230007,Contract Hire,05/10/2020,3787217-COVID19-4402-EST-SEPT-CYPS-208,605.55,ELLIOTTS OF TRIMDON.
Children and Young Peoples Services,Head of Education and Skills,Transport,230007,Contract Hire,05/10/2020,3787226-COVID19-4393-EST-SEPT-CYPS-206,995.24,FMR SILVA PITA.
Children and Young Peoples Services,Head of Education and Skills,Transport,230007,Contract Hire,05/10/2020,3787231-COVID19-4118-EST-SEPT-CYPS-183,"5,329.50",GARNETTS LTD (COACHES).
Children and Young Peoples Services,Head of Education and Skills,Transport,230007,Contract Hire,05/10/2020,3787240-COVID19-4274-EST-SEPT-CYPS-191,"6,944.19",GO GATESHEAD LTD.
Children and Young Peoples Services,Head of Education and Skills,Transport,230007,Contract Hire,05/10/2020,3787284-COVID19-4003-EST-SEPT-CYPS-156,"3,085.50",JIM HUGHES COACHES LTD.
Children and Young Peoples Services,Head of Education and Skills,Transport,230007,Contract Hire,05/10/2020,3787513-COVID19-4055-EST-SEPT-CYPS-176,"3,069.00",TED WILFORD COACHES.
Children and Young Peoples Services,Head of Education and Skills,Transport,230007,Contract Hire,05/10/2020,3787513-COVID19-4297-EST-SEPT-CYPS-193,"3,069.00",TED WILFORD COACHES.
Children and Young Peoples Services,Head of Education and Skills,Transport,230007,Contract Hire,05/10/2020,3787435-COVID19-4253-EST-SEPT-CYPS-189,711.48,PHOENIX TAXIS T/A PRATT`S TAXIS.
Children and Young Peoples Services,Head of Education and Skills,Transport,230007,Contract Hire,05/10/2020,3787130-COVID19-4381-EST-SEPT-CYPS-203,"1,781.34",BLUELINE TAXIS.
Children and Young Peoples Services,Head of Education and Skills,Transport,230007,Contract Hire,05/10/2020,3787281-COVID19-4311-EST-SEPT-CYPS-194,"1,083.23",JDS PRIVATE HIRE DURHAM.
Children and Young Peoples Services,Head of Education and Skills,Transport,230007,Contract Hire,05/10/2020,3787315-COVID19-4006-EST-SEPT-CYPS-158,"1,831.83",LEE`S COACHES LTD.
Children and Young Peoples Services,Head of Education and Skills,Transport,230007,Contract Hire,05/10/2020,3787315-COVID19-4371-EST-SEPT-CYPS-199,"3,477.05",LEE`S COACHES LTD.
Children and Young Peoples Services,Head of Education and Skills,Transport,230007,Contract Hire,05/10/2020,3787315-COVID19-4372-EST-SEPT-CYPS-200,"3,477.05",LEE`S COACHES LTD.
Children and Young Peoples Services,Head of Education and Skills,Transport,230007,Contract Hire,05/10/2020,3787315-COVID19-4373-EST-SEPT-CYPS-201,"1,788.11",LEE`S COACHES LTD.
Children and Young Peoples Services,Head of Education and Skills,Transport,230007,Contract Hire,05/10/2020,3787447-COVID19-1011-EST-SEPT-CYPS-007,"2,030.66",RAYNERS COACHES.
Children and Young Peoples Services,Head of Education and Skills,Transport,230007,Contract Hire,05/10/2020,3787447-COVID19-4005-EST-SEPT-CYPS-157,"3,535.95",RAYNERS COACHES.
Children and Young Peoples Services,Head of Education and Skills,Transport,230007,Contract Hire,05/10/2020,3787231-COVID19-4227-EST-SEPT-CYPS-188,"3,052.50",GARNETTS LTD (COACHES).
Children and Young Peoples Services,Head of Education and Skills,Transport,230007,Contract Hire,05/10/2020,3787231-COVID19-4404-EST-SEPT-CYPS-209,"11,958.00",GARNETTS LTD (COACHES).
Children and Young Peoples Services,Head of Education and Skills,Transport,230007,Contract Hire,05/10/2020,3787359-COVID19-4409-EST-SEPT-CYPS-212,"1,494.74",MR CT WALKER T/A CW TAXIS.
Children and Young Peoples Services,Head of Education and Skills,Transport,230007,Contract Hire,05/10/2020,3787130-COVID19-5247-EST-SEPT-CYPS-277,"1,452.00",BLUELINE TAXIS.
Children and Young Peoples Services,Head of Education and Skills,Transport,230007,Contract Hire,05/10/2020,3787252-COVID19-5291-EST-SEPT-CYPS-302,708.00,HARDIP SINGH MAHIL T/A AMBER CARS.
Children and Young Peoples Services,Head of Education and Skills,Transport,230007,Contract Hire,05/10/2020,3787332-COVID19-5145-EST-SEPT-CYPS-253,714.00,MARK & JOHN CHISHOLM T/A (CHEVRON).
Children and Young Peoples Services,Head of Education and Skills,Transport,230007,Contract Hire,05/10/2020,3787332-COVID19-5209-EST-SEPT-CYPS-264,"1,295.58",MARK & JOHN CHISHOLM T/A (CHEVRON).
Children and Young Peoples Services,Head of Education and Skills,Transport,230007,Contract Hire,05/10/2020,3787130-COVID19-5225-EST-SEPT-CYPS-268,755.70,BLUELINE TAXIS.
Children and Young Peoples Services,Head of Education and Skills,Transport,230007,Contract Hire,05/10/2020,3787130-COVID19-5246-EST-SEPT-CYPS-276,"2,025.71",BLUELINE TAXIS.
Children and Young Peoples Services,Head of Education and Skills,Transport,230007,Contract Hire,05/10/2020,3787168-COVID19-5017-EST-SEPT-CYPS-227,"4,269.54",COCHRANES T/A KELVIN TRAVEL.
Children and Young Peoples Services,Head of Education and Skills,Transport,230007,Contract Hire,05/10/2020,3787217-COVID19-5124-EST-SEPT-CYPS-249,749.27,ELLIOTTS OF TRIMDON.
Children and Young Peoples Services,Head of Education and Skills,Transport,230007,Contract Hire,05/10/2020,3787231-COVID19-5022-EST-SEPT-CYPS-229,"4,207.50",GARNETTS LTD (COACHES).
Children and Young Peoples Services,Head of Education and Skills,Transport,230007,Contract Hire,05/10/2020,3787257-COVID19-5021-EST-SEPT-CYPS-228,"1,200.00",HEPWORTHS TRAVEL.
Children and Young Peoples Services,Head of Education and Skills,Transport,230007,Contract Hire,05/10/2020,3787130-COVID19-5251-EST-SEPT-CYPS-278,"1,093.79",BLUELINE TAXIS.
Children and Young Peoples Services,Head of Education and Skills,Transport,230007,Contract Hire,05/10/2020,3787158-COVID19-5037-EST-SEPT-CYPS-236,"3,850.94",CHRISTOPHER JAMES GRIERSON T/A GRIERSONS COACHES.
Children and Young Peoples Services,Head of Education and Skills,Transport,230007,Contract Hire,05/10/2020,3787400-COVID19-5039-EST-SEPT-CYPS-238,"1,815.00",NORTH EAST COACHWAYS LTD.
Children and Young Peoples Services,Head of Education and Skills,Transport,230007,Contract Hire,05/10/2020,3787400-COVID19-5040-EST-SEPT-CYPS-239,"2,161.50",NORTH EAST COACHWAYS LTD.
Children and Young Peoples Services,Head of Education and Skills,Transport,230007,Contract Hire,05/10/2020,3787400-COVID19-5220-EST-SEPT-CYPS-266,"2,047.50",NORTH EAST COACHWAYS LTD.
Children and Young Peoples Services,Head of Education and Skills,Transport,230007,Contract Hire,05/10/2020,3787431-COVID19-5259-EST-SEPT-CYPS-283,"1,495.89",PETER`S PRIVATE HIRE/PETER BEST.
Children and Young Peoples Services,Head of Education and Skills,Transport,230007,Contract Hire,05/10/2020,3787455-COVID19-5038-EST-SEPT-CYPS-237,"2,637.20",ROBERTS TOURS.
Children and Young Peoples Services,Head of Education and Skills,Transport,230007,Contract Hire,05/10/2020,3787455-COVID19-5078-EST-SEPT-CYPS-247,"2,506.02",ROBERTS TOURS.
Children and Young Peoples Services,Head of Education and Skills,Transport,230007,Contract Hire,05/10/2020,3787455-COVID19-5133-EST-SEPT-CYPS-250,"2,107.55",ROBERTS TOURS.
Children and Young Peoples Services,Head of Education and Skills,Transport,230007,Contract Hire,05/10/2020,3787455-COVID19-5297-EST-SEPT-CYPS-308,"2,970.00",ROBERTS TOURS.
Children and Young Peoples Services,Head of Education and Skills,Transport,230007,Contract Hire,05/10/2020,3787130-COVID19-5047-EST-SEPT-CYPS-243,"1,239.98",BLUELINE TAXIS.
Children and Young Peoples Services,Head of Education and Skills,Transport,230007,Contract Hire,05/10/2020,3787158-COVID19-5046-EST-SEPT-CYPS-242,"4,224.00",CHRISTOPHER JAMES GRIERSON T/A GRIERSONS COACHES.
Children and Young Peoples Services,Head of Education and Skills,Transport,230007,Contract Hire,05/10/2020,3787273-COVID19-5134-EST-SEPT-CYPS-251,620.24,J YOUNG T/A VIP TAXIS.
Children and Young Peoples Services,Head of Education and Skills,Transport,230007,Contract Hire,05/10/2020,3787510-COVID19-5122-EST-SEPT-CYPS-248,"1,023.00",TARNS TAXIS LTD.
Children and Young Peoples Services,Head of Education and Skills,Transport,230007,Contract Hire,05/10/2020,3787231-COVID19-5199-EST-SEPT-CYPS-261,"4,141.50",GARNETTS LTD (COACHES).
Children and Young Peoples Services,Head of Education and Skills,Transport,230007,Contract Hire,05/10/2020,3787400-COVID19-5001-EST-SEPT-CYPS-223,"3,136.82",NORTH EAST COACHWAYS LTD.
Children and Young Peoples Services,Head of Education and Skills,Transport,230007,Contract Hire,05/10/2020,3787400-COVID19-5200-EST-SEPT-CYPS-262,"1,936.50",NORTH EAST COACHWAYS LTD.
Children and Young Peoples Services,Head of Education and Skills,Transport,230007,Contract Hire,05/10/2020,3787079-COVID19-3219-EST-SEPT-CYPS-097,"1,188.00",AABAT TAXIS.
Children and Young Peoples Services,Head of Education and Skills,Transport,230007,Contract Hire,05/10/2020,3787254-COVID19-3410-EST-SEPT-CYPS-137,"1,848.00",HARRY`S TAXI`S.
Children and Young Peoples Services,Head of Education and Skills,Transport,230007,Contract Hire,05/10/2020,3787101-COVID19-6033-EST-SEPT-CYPS-315,"1,672.11",ANTHONY HOBSON (TAXI).
Children and Young Peoples Services,Head of Education and Skills,Transport,230007,Contract Hire,05/10/2020,3787130-COVID19-6032-EST-SEPT-CYPS-314,894.30,BLUELINE TAXIS.
Children and Young Peoples Services,Head of Education and Skills,Transport,230007,Contract Hire,05/10/2020,3787134-COVID19-3424-EST-SEPT-CYPS-144,"1,848.00",BOBS TAXIS.
Children and Young Peoples Services,Head of Education and Skills,Transport,230007,Contract Hire,05/10/2020,3787251-COVID19-5272-EST-SEPT-CYPS-290,"1,496.55",HAMLET TAXIS.
Children and Young Peoples Services,Head of Education and Skills,Transport,230007,Contract Hire,05/10/2020,3787258-COVID19-6031-EST-SEPT-CYPS-313,853.88,HODGSONS COACH OPERATORS LTD.
Children and Young Peoples Services,Head of Education and Skills,Transport,230007,Contract Hire,05/10/2020,3787264-392,950.55,IAN CLYDESDALE T/A BURNOPFIELD TAXIS.
Children and Young Peoples Services,Head of Education and Skills,Transport,230007,Contract Hire,05/10/2020,3787304-COVID19-3419-EST-SEPT-CYPS-140,"1,527.24",KEVIN EDMUNDSON.
Children and Young Peoples Services,Head of Education and Skills,Transport,230007,Contract Hire,05/10/2020,3787326-COVID19-5277-EST-SEPT-CYPS-293,750.75,M BUTCHER T/A M & M`S TAXIS.
Children and Young Peoples Services,Head of Education and Skills,Transport,230007,Contract Hire,05/10/2020,3787348-COVID19-6006-EST-SEPT-CYPS-312,851.90,MICKS TAXIS - MURTON.
Children and Young Peoples Services,Head of Education and Skills,Transport,230007,Contract Hire,05/10/2020,3787378-COVID19-6046-EST-SEPT-CYPS-317,"1,188.00",MR PETER YOUNG.
Children and Young Peoples Services,Head of Education and Skills,Transport,230007,Contract Hire,05/10/2020,3787467-COVID19-5275-EST-SEPT-CYPS-292,"1,848.00",SHAUN MILLS T/A ASM TRAVEL.
Children and Young Peoples Services,Head of Education and Skills,Transport,230007,Contract Hire,05/10/2020,3787107-COVID19-1154-EST-SEPT-CYPS-012,693.00,ATLAS TAXIS CONSETT.
Children and Young Peoples Services,Head of Education and Skills,Transport,230007,Contract Hire,05/10/2020,3787426-COVID19-1237-EST-SEPT-CYPS-022,950.40,PETER NAYLOR.
Children and Young Peoples Services,Head of Education and Skills,Transport,230007,Contract Hire,05/10/2020,3787486-COVID19-1229-EST-SEPT-CYPS-020,"2,008.05",STANLEY TRAVEL (NORTH EAST) LTD.
Children and Young Peoples Services,Head of Education and Skills,Transport,230007,Contract Hire,05/10/2020,3787232-COVID19-1202-EST-SEPT-CYPS-016,"1,107.15",GARY JACKSON PRIVATE HIRE.
Children and Young Peoples Services,Head of Education and Skills,Transport,230003,Contract Hire,05/10/2020,3787486-COVID19-1195-EST-SEPT-CYPS-014,"8,514.00",STANLEY TRAVEL (NORTH EAST) LTD.
Children and Young Peoples Services,Head of Education and Skills,Transport,230003,Contract Hire,05/10/2020,3787158-COVID19-3310-EST-SEPT-CYPS-114,"2,739.00",CHRISTOPHER JAMES GRIERSON T/A GRIERSONS COACHES.
Children and Young Peoples Services,Head of Education and Skills,Transport,230003,Contract Hire,05/10/2020,3787158-COVID19-3335-EST-SEPT-CYPS-119,"5,032.50",CHRISTOPHER JAMES GRIERSON T/A GRIERSONS COACHES.
Children and Young Peoples Services,Head of Education and Skills,Transport,230003,Contract Hire,05/10/2020,3787547-COVID19-3255-EST-SEPT-CYPS-102,"3,399.00",WEARDALE MOTOR SERVICES LTD.
Children and Young Peoples Services,Head of Education and Skills,Transport,230003,Contract Hire,05/10/2020,3787231-COVID19-3020-EST-SEPT-CYPS-054,"2,475.00",GARNETTS LTD (COACHES).
Children and Young Peoples Services,Head of Education and Skills,Transport,230003,Contract Hire,05/10/2020,3787231-COVID19-3024-EST-SEPT-CYPS-055,"2,062.50",GARNETTS LTD (COACHES).
Children and Young Peoples Services,Head of Education and Skills,Transport,230003,Contract Hire,05/10/2020,3787231-COVID19-3027-EST-SEPT-CYPS-056,"2,194.50",GARNETTS LTD (COACHES).
Children and Young Peoples Services,Head of Education and Skills,Transport,230003,Contract Hire,05/10/2020,3787231-COVID19-3028-EST-SEPT-CYPS-057,"2,392.50",GARNETTS LTD (COACHES).
Children and Young Peoples Services,Head of Education and Skills,Transport,230003,Contract Hire,05/10/2020,3787419-COVID19-3208-EST-SEPT-CYPS-095,"2,369.40",PAUL WATSON TRAVEL.
Children and Young Peoples Services,Head of Education and Skills,Transport,230003,Contract Hire,05/10/2020,3787158-COVID19-5188-EST-SEPT-CYPS-256,"2,739.00",CHRISTOPHER JAMES GRIERSON T/A GRIERSONS COACHES.
Children and Young Peoples Services,Head of Education and Skills,Transport,230003,Contract Hire,05/10/2020,3787158-COVID19-5189-EST-SEPT-CYPS-257,"2,656.50",CHRISTOPHER JAMES GRIERSON T/A GRIERSONS COACHES.
Children and Young Peoples Services,Head of Education and Skills,Transport,230003,Contract Hire,05/10/2020,3787158-COVID19-5191-EST-SEPT-CYPS-258,"2,821.50",CHRISTOPHER JAMES GRIERSON T/A GRIERSONS COACHES.
Children and Young Peoples Services,Head of Education and Skills,Transport,230003,Contract Hire,05/10/2020,3787231-COVID19-3301-EST-SEPT-CYPS-110,"2,953.50",GARNETTS LTD (COACHES).
Children and Young Peoples Services,Head of Education and Skills,Transport,230003,Contract Hire,05/10/2020,3787231-COVID19-3302-EST-SEPT-CYPS-111,"2,953.50",GARNETTS LTD (COACHES).
Children and Young Peoples Services,Head of Education and Skills,Transport,230003,Contract Hire,05/10/2020,3787231-COVID19-3303-EST-SEPT-CYPS-112,"2,953.50",GARNETTS LTD (COACHES).
Children and Young Peoples Services,Head of Education and Skills,Transport,230003,Contract Hire,05/10/2020,3787315-8369,"2,792.25",LEE`S COACHES LTD.
Children and Young Peoples Services,Head of Education and Skills,Transport,230003,Contract Hire,05/10/2020,3787315-COVID19-3304-EST-SEPT-CYPS-113,"2,710.13",LEE`S COACHES LTD.
Children and Young Peoples Services,Head of Education and Skills,Transport,230003,Contract Hire,05/10/2020,3787400-COVID19-5045-EST-SEPT-CYPS-241,"3,069.00",NORTH EAST COACHWAYS LTD.
Children and Young Peoples Services,Head of Education and Skills,Transport,230003,Contract Hire,05/10/2020,3787484-COVID19-5193-EST-SEPT-CYPS-259,"3,778.50",STAGECOACH SERVICES LTD.
Children and Young Peoples Services,Head of Education and Skills,Transport,230003,Contract Hire,05/10/2020,3787484-COVID19-5197-EST-SEPT-CYPS-260,"3,778.50",STAGECOACH SERVICES LTD.
Children and Young Peoples Services,Head of Education and Skills,Transport,230003,Contract Hire,05/10/2020,3787117-COVID19-3003-EST-SEPT-CYPS-049,"2,409.00",BELL BROTHERS TRAVEL.
Children and Young Peoples Services,Head of Education and Skills,Transport,230003,Contract Hire,05/10/2020,3787231-COVID19-3004-EST-SEPT-CYPS-050,"2,805.00",GARNETTS LTD (COACHES).
Children and Young Peoples Services,Head of Education and Skills,Transport,230003,Contract Hire,05/10/2020,3787231-COVID19-3005-EST-SEPT-CYPS-051,"5,016.00",GARNETTS LTD (COACHES).
Children and Young Peoples Services,Head of Education and Skills,Transport,230003,Contract Hire,05/10/2020,3787231-COVID19-3008-EST-SEPT-CYPS-053,"2,887.50",GARNETTS LTD (COACHES).
Children and Young Peoples Services,Head of Education and Skills,Transport,230003,Contract Hire,05/10/2020,3787231-COVID19-3203-EST-SEPT-CYPS-094,"2,722.50",GARNETTS LTD (COACHES).
Children and Young Peoples Services,Head of Education and Skills,Transport,230003,Contract Hire,05/10/2020,3787231-COVID19-3223-EST-SEPT-CYPS-099,"5,346.00",GARNETTS LTD (COACHES).
Children and Young Peoples Services,Head of Education and Skills,Transport,230003,Contract Hire,05/10/2020,3787231-COVID19-3262-EST-SEPT-CYPS-104,"3,085.50",GARNETTS LTD (COACHES).
Children and Young Peoples Services,Head of Education and Skills,Transport,230003,Contract Hire,05/10/2020,3787231-COVID19-3333-EST-SEPT-CYPS-117,"2,871.00",GARNETTS LTD (COACHES).
Children and Young Peoples Services,Head of Education and Skills,Transport,230003,Contract Hire,05/10/2020,3787132-COVID19-4270-EST-SEPT-CYPS-190,"1,990.64",BOB SMITH COACHES.
Children and Young Peoples Services,Head of Education and Skills,Transport,230003,Contract Hire,05/10/2020,3787236-COVID19-4022-EST-SEPT-CYPS-165,"2,955.15",GEM TRAVEL.
Children and Young Peoples Services,Head of Education and Skills,Transport,230003,Contract Hire,05/10/2020,3787236-COVID19-4030-EST-SEPT-CYPS-168,"3,078.90",GEM TRAVEL.
Children and Young Peoples Services,Head of Education and Skills,Transport,230003,Contract Hire,05/10/2020,3787284-COVID19-4025-EST-SEPT-CYPS-167,"3,646.50",JIM HUGHES COACHES LTD.
Children and Young Peoples Services,Head of Education and Skills,Transport,230003,Contract Hire,05/10/2020,3787315-COVID19-4015-EST-SEPT-CYPS-159,"3,226.91",LEE`S COACHES LTD.
Children and Young Peoples Services,Head of Education and Skills,Transport,230003,Contract Hire,05/10/2020,3787315-COVID19-4017-EST-SEPT-CYPS-160,"4,050.75",LEE`S COACHES LTD.
Children and Young Peoples Services,Head of Education and Skills,Transport,230003,Contract Hire,05/10/2020,3787315-COVID19-4020-EST-SEPT-CYPS-163,"3,885.75",LEE`S COACHES LTD.
Children and Young Peoples Services,Head of Education and Skills,Transport,230003,Contract Hire,05/10/2020,3787460-COVID19-4018-EST-SEPT-CYPS-161,"4,059.00",ROXBYS BUS HIRE.
Children and Young Peoples Services,Head of Education and Skills,Transport,230003,Contract Hire,05/10/2020,3787484-COVID19-4021-EST-SEPT-CYPS-164,"3,877.50",STAGECOACH SERVICES LTD.
Children and Young Peoples Services,Head of Education and Skills,Transport,230003,Contract Hire,05/10/2020,3787486-COVID19-4023-EST-SEPT-CYPS-166,"3,448.50",STANLEY TRAVEL (NORTH EAST) LTD.
Children and Young Peoples Services,Head of Education and Skills,Transport,230003,Contract Hire,05/10/2020,3787505-COVID19-4107-EST-SEPT-CYPS-182,"1,254.00",T MOORE & SON.
Children and Young Peoples Services,Head of Education and Skills,Transport,230003,Contract Hire,05/10/2020,3787505-COVID19-4155-EST-SEPT-CYPS-184,"1,454.97",T MOORE & SON.
Children and Young Peoples Services,Head of Education and Skills,Transport,230003,Contract Hire,05/10/2020,3787547-COVID19-4019-EST-SEPT-CYPS-162,"2,833.88",WEARDALE MOTOR SERVICES LTD.
Children and Young Peoples Services,Head of Education and Skills,Transport,230003,Contract Hire,05/10/2020,3787158-COVID19-5300-EST-SEPT-CYPS-311,774.00,CHRISTOPHER JAMES GRIERSON T/A GRIERSONS COACHES.
Children and Young Peoples Services,Head of Education and Skills,Transport,230003,Contract Hire,05/10/2020,3787168-COVID19-5029-EST-SEPT-CYPS-231,"2,310.00",COCHRANES T/A KELVIN TRAVEL.
Children and Young Peoples Services,Head of Education and Skills,Transport,230003,Contract Hire,05/10/2020,3787168-COVID19-5031-EST-SEPT-CYPS-233,"2,549.25",COCHRANES T/A KELVIN TRAVEL.
Children and Young Peoples Services,Head of Education and Skills,Transport,230003,Contract Hire,05/10/2020,3787257-COVID19-5041-EST-SEPT-CYPS-240,"1,081.50",HEPWORTHS TRAVEL.
Children and Young Peoples Services,Head of Education and Skills,Transport,230003,Contract Hire,05/10/2020,3787400-COVID19-5033-EST-SEPT-CYPS-234,"1,914.00",NORTH EAST COACHWAYS LTD.
Children and Young Peoples Services,Head of Education and Skills,Transport,230003,Contract Hire,05/10/2020,3787460-COVID19-5024-EST-SEPT-CYPS-230,"6,733.65",ROXBYS BUS HIRE.
Children and Young Peoples Services,Head of Education and Skills,Transport,230003,Contract Hire,05/10/2020,3787460-COVID19-5034-EST-SEPT-CYPS-235,"2,244.00",ROXBYS BUS HIRE.
Children and Young Peoples Services,Head of Education and Skills,Transport,230003,Contract Hire,05/10/2020,3787513-COVID19-5030-EST-SEPT-CYPS-232,"2,538.36",TED WILFORD COACHES.
Children and Young Peoples Services,Head of Education and Skills,Transport,230003,Contract Hire,05/10/2020,3787505-COVID19-4223-EST-SEPT-CYPS-187,"1,064.25",T MOORE & SON.
Children and Young Peoples Services,Head of Education and Skills,Transport,230003,Contract Hire,05/10/2020,3787486-COVID19-1008-EST-SEPT-CYPS-005,"2,871.00",STANLEY TRAVEL (NORTH EAST) LTD.
Children and Young Peoples Services,Head of Education and Skills,Transport,230003,Contract Hire,05/10/2020,3787486-COVID19-1127-EST-SEPT-CYPS-009,"2,953.50",STANLEY TRAVEL (NORTH EAST) LTD.
Children and Young Peoples Services,Head of Education and Skills,Transport,230003,Contract Hire,05/10/2020,3787486-COVID19-1131-EST-SEPT-CYPS-010,"3,052.50",STANLEY TRAVEL (NORTH EAST) LTD.
Children and Young Peoples Services,Head of Education and Skills,Transport,230003,Contract Hire,05/10/2020,3787486-COVID19-1132-EST-SEPT-CYPS-011,"3,151.50",STANLEY TRAVEL (NORTH EAST) LTD.
Children and Young Peoples Services,Head of Education and Skills,Transport,230003,Contract Hire,05/10/2020,3787486-COVID19-1180-EST-SEPT-CYPS-013,"2,574.00",STANLEY TRAVEL (NORTH EAST) LTD.
Children and Young Peoples Services,Head of Education and Skills,Transport,230009,Contract Hire,05/10/2020,3787486-COVID19-7303-EST-SEPT-CYPS-321,556.38,STANLEY TRAVEL (NORTH EAST) LTD.
Children and Young Peoples Services,Head of Education and Skills,Transport,230009,Contract Hire,05/10/2020,3787486-COVID19-1252-EST-SEPT-CYPS-029,"1,158.45",STANLEY TRAVEL (NORTH EAST) LTD.
Children and Young Peoples Services,Head of Education and Skills,Transport,230009,Contract Hire,05/10/2020,3787074-COVID19-7357-EST-SEPT-CYPS-332,858.00,A & P TAXIS.
Children and Young Peoples Services,Head of Education and Skills,Transport,230009,Contract Hire,05/10/2020,3787230-COVID19-7368-EST-SEPT-CYPS-335,"1,188.00",G ANGHEL T/A A TAXI.
Children and Young Peoples Services,Head of Education and Skills,Transport,230009,Contract Hire,05/10/2020,3787110-COVID19-7371-EST-SEPT-CYPS-337,"1,485.00",AVALON TAXIS.
Children and Young Peoples Services,Head of Education and Skills,Transport,230009,Contract Hire,05/10/2020,3787420-COVID19-7311-EST-SEPT-CYPS-324,"1,864.50",PAUL WILSON.
Children and Young Peoples Services,Head of Education and Skills,Transport,230009,Contract Hire,05/10/2020,3787547-COVID19-7346-EST-SEPT-CYPS-327,"2,948.72",WEARDALE MOTOR SERVICES LTD.
Children and Young Peoples Services,Head of Education and Skills,Transport,230009,Contract Hire,05/10/2020,3787332-COVID19-7361-EST-SEPT-CYPS-333,"1,609.58",MARK & JOHN CHISHOLM T/A (CHEVRON).
Children and Young Peoples Services,Head of Education and Skills,Transport,230009,Contract Hire,05/10/2020,3787335-COVID19-7372-EST-SEPT-CYPS-338,720.72,MARK O`NEILL T/A KWIK CABS.
Children and Young Peoples Services,Head of Education and Skills,Transport,230009,Contract Hire,05/10/2020,3787126-COVID19-7317-EST-SEPT-CYPS-325,"1,136.36",BIRDS TAXIS LTD.
Children and Young Peoples Services,Head of Education and Skills,Transport,230009,Contract Hire,05/10/2020,3787377-COVID19-7345-EST-SEPT-CYPS-326,"1,023.00",MR NEIL LEONARD T/A LENNY`S TAXIS.
Children and Young Peoples Services,Head of Education and Skills,Transport,230009,Contract Hire,05/10/2020,3787281-COVID19-7259-EST-SEPT-CYPS-320,702.74,JDS PRIVATE HIRE DURHAM.
Children and Young Peoples Services,Head of Education and Skills,Transport,230009,Contract Hire,05/10/2020,3787281-COVID19-7364-EST-SEPT-CYPS-334,"1,188.00",JDS PRIVATE HIRE DURHAM.
Children and Young Peoples Services,Head of Education and Skills,Transport,230009,Contract Hire,05/10/2020,3787428-COVID19-7378-EST-SEPT-CYPS-341,660.00,PETERLEE EXECUTIVE CARS.
Children and Young Peoples Services,Head of Education and Skills,Transport,230009,Contract Hire,05/10/2020,3787367-COVID19-4390-EST-SEPT-CYPS-204,550.44,MR IAN KELSEY T/A KDK TAXIS.
Children and Young Peoples Services,Head of Education and Skills,Transport,230009,Contract Hire,05/10/2020,3787130-COVID19-7003-EST-SEPT-CYPS-319,"1,155.00",BLUELINE TAXIS.
Children and Young Peoples Services,Head of Education and Skills,Transport,230009,Contract Hire,05/10/2020,3787229-COVID19-7369-EST-SEPT-CYPS-336,"1,430.67",G & P JOHNSON LTD T/A NIGHTINGALE COACHES.
Dedicated Schools Grant BG0015,DSG High Needs Block,Transport,230009,Contract Hire,05/10/2020,3787188-COVID19-G020-EST-SEPT-CYPS-726,900.00,D CROOK T/A CK TAXIS.
Dedicated Schools Grant BG0015,DSG High Needs Block,Transport,230009,Contract Hire,05/10/2020,3787199-COVID19-G018-EST-SEPT-CYPS-724,764.25,DAVID WILKINSON (TAXIS).
Dedicated Schools Grant BG0015,DSG High Needs Block,Transport,230009,Contract Hire,05/10/2020,3787332-COVID19-G019-EST-SEPT-CYPS-725,777.00,MARK & JOHN CHISHOLM T/A (CHEVRON).
Children and Young Peoples Services,Head of Education and Skills,Transport,230004,Contract Hire,05/10/2020,3787548-COVID19-F756-EST-SEPT-CYPS-635,558.03,WEARDALE PRIVATE HIRE.
Children and Young Peoples Services,Head of Education and Skills,Transport,230004,Contract Hire,05/10/2020,3787548-COVID19-F814-EST-SEPT-CYPS-665,648.00,WEARDALE PRIVATE HIRE.
Adult and Health Services,Central/Other,Transport,230006,Contract Hire,05/10/2020,3787435-COVID19-F839-EST-SEPT-CYPS-684,972.00,PHOENIX TAXIS T/A PRATT`S TAXIS.
Children and Young Peoples Services,Head of Education and Skills,Transport,230006,Contract Hire,05/10/2020,3787126-COVID19-F777-EST-SEPT-CYPS-640,604.94,BIRDS TAXIS LTD.
Children and Young Peoples Services,Head of Education and Skills,Transport,230006,Contract Hire,05/10/2020,3787079-COVID19-F791-EST-SEPT-CYPS-654,511.88,AABAT TAXIS.
Children and Young Peoples Services,Head of Education and Skills,Transport,230006,Contract Hire,05/10/2020,3787107-COVID19-F785-EST-SEPT-CYPS-647,"1,104.00",ATLAS TAXIS CONSETT.
Children and Young Peoples Services,Head of Education and Skills,Transport,230006,Contract Hire,05/10/2020,3787157-COVID19-F797-EST-SEPT-CYPS-659,861.00,CHRIS BELL T/A MEGAN`S TAXIS.
Children and Young Peoples Services,Head of Education and Skills,Transport,230006,Contract Hire,05/10/2020,3787184-110309,"2,512.80",CROFT BUSINESS SERVICES (UK) LTD T/A CROFT TAXIS.
Children and Young Peoples Services,Head of Education and Skills,Transport,230006,Contract Hire,05/10/2020,3787184-110340,"3,685.44",CROFT BUSINESS SERVICES (UK) LTD T/A CROFT TAXIS.
Children and Young Peoples Services,Head of Education and Skills,Transport,230006,Contract Hire,05/10/2020,3787276-COVID19-F786-EST-SEPT-CYPS-648,"1,435.50",JACKSON`S TAXI.
Children and Young Peoples Services,Head of Education and Skills,Transport,230006,Contract Hire,05/10/2020,3787494-COVID19-F790-EST-SEPT-CYPS-652,"2,154.00",STEPHEN REED T/A STEVE`S TAXIS.
Children and Young Peoples Services,Head of Education and Skills,Transport,230006,Contract Hire,05/10/2020,3787212-COVID19-E004-EST-SEPT-CYPS-507,"2,244.00",EAST DURHAM TAXIS.
Children and Young Peoples Services,Head of Education and Skills,Transport,230006,Contract Hire,05/10/2020,3787359-COVID19-N061-EST-SEPT-CYPS-852,719.10,MR CT WALKER T/A CW TAXIS.
Children and Young Peoples Services,Head of Education and Skills,Transport,230006,Contract Hire,05/10/2020,3787479-00114,926.25,SPENNYMOOR TAXIS.
Children and Young Peoples Services,Head of Education and Skills,Transport,230006,Contract Hire,05/10/2020,3787479-CB00104,"1,650.00",SPENNYMOOR TAXIS.
Children and Young Peoples Services,Head of Education and Skills,Transport,230006,Contract Hire,05/10/2020,3787479-CB00116,975.00,SPENNYMOOR TAXIS.
Children and Young Peoples Services,Head of Education and Skills,Transport,230006,Contract Hire,05/10/2020,3787184-110305,"2,229.60",CROFT BUSINESS SERVICES (UK) LTD T/A CROFT TAXIS.
Children and Young Peoples Services,Head of Education and Skills,Transport,230006,Contract Hire,05/10/2020,3787233-COVID19-A052-EST-SEPT-CYPS-376,"1,384.50",GATESHEAD CENTRAL TAXIS LTD.
Children and Young Peoples Services,Head of Education and Skills,Transport,230006,Contract Hire,05/10/2020,3787263-383,"1,384.50",IAN CLYDESDALE T/A BURNOPFIELD TAXIS.
Children and Young Peoples Services,Head of Education and Skills,Transport,230006,Contract Hire,05/10/2020,3787542-COVID19-F702-EST-SEPT-CYPS-620,567.00,WAINE SANDERSON T/A 1A CAB.
Children and Young Peoples Services,Head of Education and Skills,Transport,230006,Contract Hire,05/10/2020,3787056-COVID19-F717-EST-SEPT-CYPS-622,"1,192.45",24/7 TAXI SERVICES LTD.
Children and Young Peoples Services,Head of Education and Skills,Transport,230006,Contract Hire,05/10/2020,3787056-COVID19-F841-EST-SEPT-CYPS-686,"1,874.25",24/7 TAXI SERVICES LTD.
Children and Young Peoples Services,Head of Education and Skills,Transport,230006,Contract Hire,05/10/2020,3787074-COVID19-F856-EST-SEPT-CYPS-697,682.50,A & P TAXIS.
Children and Young Peoples Services,Head of Education and Skills,Transport,230006,Contract Hire,05/10/2020,3787075-COVID19-F757-EST-SEPT-CYPS-636,603.00,A BARKER.
Children and Young Peoples Services,Head of Education and Skills,Transport,230006,Contract Hire,05/10/2020,3787076-COVID19-F793-EST-SEPT-CYPS-656,"1,401.75",A HENDERSON T/A CHUCKS TAXIS.
Children and Young Peoples Services,Head of Education and Skills,Transport,230006,Contract Hire,05/10/2020,3787088-COVID19-F787-EST-SEPT-CYPS-649,"2,125.12",ALANS TAXIS BARNARD CASTLE.
Children and Young Peoples Services,Head of Education and Skills,Transport,230006,Contract Hire,05/10/2020,3787098-COVID19-F534-EST-SEPT-CYPS-609,"1,086.60",ANDREW ROBSON`S TAXI.
Children and Young Peoples Services,Head of Education and Skills,Transport,230006,Contract Hire,05/10/2020,3787100-COVID19-F614-EST-SEPT-CYPS-611,540.00,ANGIE`S TAXIS.
Children and Young Peoples Services,Head of Education and Skills,Transport,230006,Contract Hire,05/10/2020,3787107-COVID19-F808-EST-SEPT-CYPS-663,"1,053.00",ATLAS TAXIS CONSETT.
Children and Young Peoples Services,Head of Education and Skills,Transport,230006,Contract Hire,05/10/2020,3787119-COVID19-F792-EST-SEPT-CYPS-655,"1,627.50",BELMONT TAXIS.
Children and Young Peoples Services,Head of Education and Skills,Transport,230006,Contract Hire,05/10/2020,3787124-COVID19-F738-EST-SEPT-CYPS-630,"1,469.50",BIG MAMA`S TAXI.
Children and Young Peoples Services,Head of Education and Skills,Transport,230006,Contract Hire,05/10/2020,3787128-COVID19-F780-EST-SEPT-CYPS-642,540.00,BL TAXIS.
Children and Young Peoples Services,Head of Education and Skills,Transport,230006,Contract Hire,05/10/2020,3787154-COVID19-F748-EST-SEPT-CYPS-633,"1,371.75",CHAPMAN TRAVEL.
Children and Young Peoples Services,Head of Education and Skills,Transport,230006,Contract Hire,05/10/2020,3787182-COVID19-F844-EST-SEPT-CYPS-688,"1,291.19",CRAIG MASSEY`S TAXIS.
Children and Young Peoples Services,Head of Education and Skills,Transport,230006,Contract Hire,05/10/2020,3787184-110341,"1,620.36",CROFT BUSINESS SERVICES (UK) LTD T/A CROFT TAXIS.
Children and Young Peoples Services,Head of Education and Skills,Transport,230006,Contract Hire,05/10/2020,3787184-COVID19-F876-EST-SEPT-CYPS-714,"1,130.52",CROFT BUSINESS SERVICES (UK) LTD T/A CROFT TAXIS.
Children and Young Peoples Services,Head of Education and Skills,Transport,230006,Contract Hire,05/10/2020,3787192-COVID19-F664-EST-SEPT-CYPS-613,858.00,DA TRAVEL.
Children and Young Peoples Services,Head of Education and Skills,Transport,230006,Contract Hire,05/10/2020,3787192-COVID19-F795-EST-SEPT-CYPS-657,"1,212.75",DA TRAVEL.
Children and Young Peoples Services,Head of Education and Skills,Transport,230006,Contract Hire,05/10/2020,3787194-COVID19-F679-EST-SEPT-CYPS-618,945.00,DALELINK PRIVATE HIRE.
Children and Young Peoples Services,Head of Education and Skills,Transport,230006,Contract Hire,05/10/2020,3787209-COVID19-F776-EST-SEPT-CYPS-639,"1,996.83",DMG PRIVATE HIRE.
Children and Young Peoples Services,Head of Education and Skills,Transport,230006,Contract Hire,05/10/2020,3787212-COVID19-F825-EST-SEPT-CYPS-672,816.00,EAST DURHAM TAXIS.
Children and Young Peoples Services,Head of Education and Skills,Transport,230006,Contract Hire,05/10/2020,3787251-COVID19-F733-EST-SEPT-CYPS-628,672.00,HAMLET TAXIS.
Children and Young Peoples Services,Head of Education and Skills,Transport,230006,Contract Hire,05/10/2020,3787252-43,759.00,HARDIP SINGH MAHIL T/A AMBER CARS.
Children and Young Peoples Services,Head of Education and Skills,Transport,230006,Contract Hire,05/10/2020,3787261-COVID19-F827-EST-SEPT-CYPS-673,792.00,HORNDALE TAXIS LTD.
Children and Young Peoples Services,Head of Education and Skills,Transport,230006,Contract Hire,05/10/2020,3787273-COVID19-F813-EST-SEPT-CYPS-664,670.44,J YOUNG T/A VIP TAXIS.
Children and Young Peoples Services,Head of Education and Skills,Transport,230006,Contract Hire,05/10/2020,3787273-COVID19-F840-EST-SEPT-CYPS-685,540.00,J YOUNG T/A VIP TAXIS.
Children and Young Peoples Services,Head of Education and Skills,Transport,230006,Contract Hire,05/10/2020,3787287-COVID19-F774-EST-SEPT-CYPS-638,996.30,JOHN BELL TAXI.
Children and Young Peoples Services,Head of Education and Skills,Transport,230006,Contract Hire,05/10/2020,3787332-COVID19-F842-EST-SEPT-CYPS-687,780.00,MARK & JOHN CHISHOLM T/A (CHEVRON).
Children and Young Peoples Services,Head of Education and Skills,Transport,230006,Contract Hire,05/10/2020,3787359-COVID19-F852-EST-SEPT-CYPS-693,511.80,MR CT WALKER T/A CW TAXIS.
Children and Young Peoples Services,Head of Education and Skills,Transport,230006,Contract Hire,05/10/2020,3787368-COVID19-F831-EST-SEPT-CYPS-676,990.00,MR J AGAR T/A PARK TAXIS.
Children and Young Peoples Services,Head of Education and Skills,Transport,230006,Contract Hire,05/10/2020,3787369-COVID19-F592-EST-SEPT-CYPS-610,699.00,MR JOHN ALLINSON T/A AALPHA TAXIS.
Children and Young Peoples Services,Head of Education and Skills,Transport,230006,Contract Hire,05/10/2020,3787375-COVID19-F728-EST-SEPT-CYPS-626,"1,150.50",MR MARIUSZ LASOTA T/A BM TAXI.
Children and Young Peoples Services,Head of Education and Skills,Transport,230006,Contract Hire,05/10/2020,3787375-COVID19-F832-EST-SEPT-CYPS-677,736.50,MR MARIUSZ LASOTA T/A BM TAXI.
Children and Young Peoples Services,Head of Education and Skills,Transport,230006,Contract Hire,05/10/2020,3787375-COVID19-F834-EST-SEPT-CYPS-679,738.00,MR MARIUSZ LASOTA T/A BM TAXI.
Children and Young Peoples Services,Head of Education and Skills,Transport,230006,Contract Hire,05/10/2020,3787375-COVID19-F835-EST-SEPT-CYPS-680,"1,053.00",MR MARIUSZ LASOTA T/A BM TAXI.
Children and Young Peoples Services,Head of Education and Skills,Transport,230006,Contract Hire,05/10/2020,3787420-COVID19-F848-EST-SEPT-CYPS-689,787.50,PAUL WILSON.
Children and Young Peoples Services,Head of Education and Skills,Transport,230006,Contract Hire,05/10/2020,3787431-COVID19-F816-EST-SEPT-CYPS-667,"1,282.50",PETER`S PRIVATE HIRE/PETER BEST.
Children and Young Peoples Services,Head of Education and Skills,Transport,230006,Contract Hire,05/10/2020,3787432-COVID19-F789-EST-SEPT-CYPS-651,"1,765.50",PETER`S TAXIS.
Children and Young Peoples Services,Head of Education and Skills,Transport,230006,Contract Hire,05/10/2020,3787435-COVID19-F675-EST-SEPT-CYPS-617,945.00,PHOENIX TAXIS T/A PRATT`S TAXIS.
Children and Young Peoples Services,Head of Education and Skills,Transport,230006,Contract Hire,05/10/2020,3787435-COVID19-F721-EST-SEPT-CYPS-623,841.50,PHOENIX TAXIS T/A PRATT`S TAXIS.
Children and Young Peoples Services,Head of Education and Skills,Transport,230006,Contract Hire,05/10/2020,3787435-COVID19-F722-EST-SEPT-CYPS-624,"1,381.50",PHOENIX TAXIS T/A PRATT`S TAXIS.
Children and Young Peoples Services,Head of Education and Skills,Transport,230006,Contract Hire,05/10/2020,3787435-COVID19-F741-EST-SEPT-CYPS-631,"1,404.00",PHOENIX TAXIS T/A PRATT`S TAXIS.
Children and Young Peoples Services,Head of Education and Skills,Transport,230006,Contract Hire,05/10/2020,3787435-COVID19-F745-EST-SEPT-CYPS-632,675.00,PHOENIX TAXIS T/A PRATT`S TAXIS.
Children and Young Peoples Services,Head of Education and Skills,Transport,230006,Contract Hire,05/10/2020,3787435-COVID19-F783-EST-SEPT-CYPS-645,996.00,PHOENIX TAXIS T/A PRATT`S TAXIS.
Children and Young Peoples Services,Head of Education and Skills,Transport,230006,Contract Hire,05/10/2020,3787435-COVID19-F803-EST-SEPT-CYPS-662,"1,277.55",PHOENIX TAXIS T/A PRATT`S TAXIS.
Children and Young Peoples Services,Head of Education and Skills,Transport,230006,Contract Hire,05/10/2020,3787446-COVID19-F857-EST-SEPT-CYPS-698,"1,080.00",RAYMOND CHURNSIDE T/A S & L TAXI.
Children and Young Peoples Services,Head of Education and Skills,Transport,230006,Contract Hire,05/10/2020,3787470-COVID19-F853-EST-SEPT-CYPS-694,780.00,SHOTTON PRIVATE HIRE.
Children and Young Peoples Services,Head of Education and Skills,Transport,230006,Contract Hire,05/10/2020,3787470-COVID19-F854-EST-SEPT-CYPS-695,600.00,SHOTTON PRIVATE HIRE.
Children and Young Peoples Services,Head of Education and Skills,Transport,230006,Contract Hire,05/10/2020,3787472-COVID19-F796-EST-SEPT-CYPS-658,"1,079.61",SIMONS TAXIS.
Children and Young Peoples Services,Head of Education and Skills,Transport,230006,Contract Hire,05/10/2020,3787478-COVID19-F802-EST-SEPT-CYPS-661,501.75,SPENNYMOOR TAXIS.
Children and Young Peoples Services,Head of Education and Skills,Transport,230006,Contract Hire,05/10/2020,3787489-COVID19-F766-EST-SEPT-CYPS-637,"1,248.00",STEELYS TAXIS.
Children and Young Peoples Services,Head of Education and Skills,Transport,230006,Contract Hire,05/10/2020,3787496-COVID19-F784-EST-SEPT-CYPS-646,643.50,STEVEN HENDERSON T/A HENDYS TAXIS.
Children and Young Peoples Services,Head of Education and Skills,Transport,230006,Contract Hire,05/10/2020,3787497-COVID19-F781-EST-SEPT-CYPS-643,810.00,STEVEN PRATT T/A PTL TAXIS DURHAM.
Children and Young Peoples Services,Head of Education and Skills,Transport,230006,Contract Hire,05/10/2020,3787498-COVID19-F674-EST-SEPT-CYPS-616,544.83,STEVES TAXIS.
Children and Young Peoples Services,Head of Education and Skills,Transport,230006,Contract Hire,05/10/2020,3787505-COVID19-F673-EST-SEPT-CYPS-615,"1,168.50",T MOORE & SON.
Children and Young Peoples Services,Head of Education and Skills,Transport,230010,Contract Hire,05/10/2020,3787085-006JULY2020,"1,463.70",AIRPORT TRANSFER DURHAM.
Children and Young Peoples Services,Head of Education and Skills,Transport,230010,Contract Hire,05/10/2020,3787085-COVID19-BL029-EST-SEPT-CYPS-436,"2,077.97",AIRPORT TRANSFER DURHAM.
Children and Young Peoples Services,Head of Education and Skills,Transport,230010,Contract Hire,05/10/2020,3787077-COVID19-B007-EST-SEPT-CYPS-418,"1,498.46",AJ JOBLING T/A CASTLE TAXIS.
Children and Young Peoples Services,Head of Education and Skills,Transport,230010,Contract Hire,05/10/2020,3787184-110311,"2,006.55",CROFT BUSINESS SERVICES (UK) LTD T/A CROFT TAXIS.
Children and Young Peoples Services,Head of Education and Skills,Transport,230010,Contract Hire,05/10/2020,3787184-110320,"1,438.05",CROFT BUSINESS SERVICES (UK) LTD T/A CROFT TAXIS.
Children and Young Peoples Services,Head of Education and Skills,Transport,230010,Contract Hire,05/10/2020,3787238-COVID19-BL017-EST-SEPT-CYPS-433,"1,569.65",GERARD MCLOUGHLIN T/A GMAC TAXIS.
Children and Young Peoples Services,Head of Education and Skills,Transport,230010,Contract Hire,05/10/2020,3787266-COVID19-B016-EST-SEPT-CYPS-422,"1,187.72",IAN SOULSBY.
Children and Young Peoples Services,Head of Education and Skills,Transport,230010,Contract Hire,05/10/2020,3787281-COVID19-PF016-EST-SEPT-CYPS-922,"2,063.25",JDS PRIVATE HIRE DURHAM.
Children and Young Peoples Services,Head of Education and Skills,Transport,230010,Contract Hire,05/10/2020,3787312-COVID19-B035-EST-SEPT-CYPS-427,"1,890.00",LARS CARS LTD T/A STREETCARS.
Children and Young Peoples Services,Head of Education and Skills,Transport,230010,Contract Hire,05/10/2020,3787320-COVID19-B003-EST-SEPT-CYPS-415,"1,714.07",LINCAB TAXIS.
Children and Young Peoples Services,Head of Education and Skills,Transport,230010,Contract Hire,05/10/2020,3787325-COVID19-B027-EST-SEPT-CYPS-425,"1,131.80",LUMLEY TAXIS.
Children and Young Peoples Services,Head of Education and Skills,Transport,230010,Contract Hire,05/10/2020,3787332-COVID19-B004-EST-SEPT-CYPS-416,"1,543.50",MARK & JOHN CHISHOLM T/A (CHEVRON).
Children and Young Peoples Services,Head of Education and Skills,Transport,230010,Contract Hire,05/10/2020,3787332-COVID19-B005-EST-SEPT-CYPS-417,"2,614.50",MARK & JOHN CHISHOLM T/A (CHEVRON).
Children and Young Peoples Services,Head of Education and Skills,Transport,230010,Contract Hire,05/10/2020,3787332-COVID19-B009-EST-SEPT-CYPS-419,"1,497.20",MARK & JOHN CHISHOLM T/A (CHEVRON).
Children and Young Peoples Services,Head of Education and Skills,Transport,230010,Contract Hire,05/10/2020,3787332-COVID19-B010-EST-SEPT-CYPS-420,"1,497.20",MARK & JOHN CHISHOLM T/A (CHEVRON).
Children and Young Peoples Services,Head of Education and Skills,Transport,230010,Contract Hire,05/10/2020,3787332-COVID19-B020-EST-SEPT-CYPS-423,"1,497.20",MARK & JOHN CHISHOLM T/A (CHEVRON).
Children and Young Peoples Services,Head of Education and Skills,Transport,230010,Contract Hire,05/10/2020,3787332-COVID19-BL001-EST-SEPT-CYPS-428,"1,691.25",MARK & JOHN CHISHOLM T/A (CHEVRON).
Children and Young Peoples Services,Head of Education and Skills,Transport,230010,Contract Hire,05/10/2020,3787335-COVID19-PF014-EST-SEPT-CYPS-921,945.00,MARK O`NEILL T/A KWIK CABS.
Children and Young Peoples Services,Head of Education and Skills,Transport,230010,Contract Hire,05/10/2020,3787347-309,690.57,MICKS TAXIS - MURTON.
Children and Young Peoples Services,Head of Education and Skills,Transport,230010,Contract Hire,05/10/2020,3787380-COVID19-BL030-EST-SEPT-CYPS-437,"1,401.71",MR RICHARD STANDLEY T/A RS TAXI SERVICES.
Children and Young Peoples Services,Head of Education and Skills,Transport,230010,Contract Hire,05/10/2020,3787385-COVID19-B011-EST-SEPT-CYPS-421,"1,291.50",MR TERENCE DOUGHERTY T/A TERRYS TAXIS.
Children and Young Peoples Services,Head of Education and Skills,Transport,230010,Contract Hire,05/10/2020,3787470-COVID19-PF017-EST-SEPT-CYPS-923,"2,079.00",SHOTTON PRIVATE HIRE.
Children and Young Peoples Services,Head of Education and Skills,Transport,230010,Contract Hire,05/10/2020,3787486-COVID19-BL003-EST-SEPT-CYPS-430,"1,361.25",STANLEY TRAVEL (NORTH EAST) LTD.
Children and Young Peoples Services,Head of Education and Skills,Transport,230010,Contract Hire,05/10/2020,3787499-COVID19-B029-EST-SEPT-CYPS-426,949.50,STEVE`S CABS (TAXIS).
Children and Young Peoples Services,Head of Education and Skills,Transport,230010,Contract Hire,05/10/2020,3787510-COVID19-B002-EST-SEPT-CYPS-414,"1,055.25",TARNS TAXIS LTD.
Children and Young Peoples Services,Head of Education and Skills,Transport,230010,Contract Hire,05/10/2020,3787519-BL026JULY20,"1,140.98",THOMAS GLEN.
Children and Young Peoples Services,Head of Education and Skills,Transport,230010,Contract Hire,05/10/2020,3787519-COVID19-BL027-EST-SEPT-CYPS-435,897.59,THOMAS GLEN.
Children and Young Peoples Services,Head of Education and Skills,Transport,230010,Contract Hire,05/10/2020,3787532-COVID19-B001-EST-SEPT-CYPS-413,"1,120.04",TRAVEL 6.
Children and Young Peoples Services,Head of Education and Skills,Transport,230010,Contract Hire,05/10/2020,3787533-COVID19-BL024-EST-SEPT-CYPS-434,"1,426.50",TREVOR GARDNER T/A TCG TAXIS.
Children and Young Peoples Services,Head of Education and Skills,Transport,230010,Contract Hire,05/10/2020,3787548-COVID19-BL004-EST-SEPT-CYPS-431,697.50,WEARDALE PRIVATE HIRE.
Children and Young Peoples Services,Head of Education and Skills,Transport,230010,Contract Hire,05/10/2020,3787550-COVID19-B024-EST-SEPT-CYPS-424,"1,212.75",WEST AUCKLAND TOWN TRAVEL (WATT).
Children and Young Peoples Services,Head of Education and Skills,Transport,230012,Contract Hire,05/10/2020,3787130-COVID19-W004-EST-SEPT-CYPS-1015,"1,692.24",BLUELINE TAXIS.
Children and Young Peoples Services,Head of Education and Skills,Transport,230012,Contract Hire,05/10/2020,3787208-COVID19-M035-EST-SEPT-CYPS-760,"1,996.50",DIANE GOOCH T/A COLLINS TAXIS.
Children and Young Peoples Services,Head of Education and Skills,Transport,230012,Contract Hire,05/10/2020,3787527-COVID19-S018-EST-SEPT-CYPS-938,994.29,TOP STAR TRAVEL.
Children and Young Peoples Services,Head of Education and Skills,Transport,230012,Contract Hire,05/10/2020,3787322-COVID19-E054-EST-SEPT-CYPS-556,"1,270.50",LOCAL TRANSPORT LTD.
Children and Young Peoples Services,Head of Education and Skills,Transport,230012,Contract Hire,05/10/2020,3787328-COVID19-M057-EST-SEPT-CYPS-782,"1,494.08",MACS TAXIS LTD.
Children and Young Peoples Services,Head of Education and Skills,Transport,230012,Contract Hire,05/10/2020,3787359-COVID19-N062-EST-SEPT-CYPS-853,"1,496.55",MR CT WALKER T/A CW TAXIS.
Children and Young Peoples Services,Head of Education and Skills,Transport,230012,Contract Hire,05/10/2020,3787525-1015,907.28,TONYS TAXIS (A BIRCH).
Children and Young Peoples Services,Head of Education and Skills,Transport,230012,Contract Hire,05/10/2020,3787526-COVID19-E041-EST-SEPT-CYPS-544,"1,703.46",TONYS TAXIS (A BIRCH).
Children and Young Peoples Services,Head of Education and Skills,Transport,230012,Contract Hire,05/10/2020,3787526-COVID19-E057-EST-SEPT-CYPS-559,680.46,TONYS TAXIS (A BIRCH).
Children and Young Peoples Services,Head of Education and Skills,Transport,230012,Contract Hire,05/10/2020,3787212-COVID19-E038-EST-SEPT-CYPS-541,"1,881.00",EAST DURHAM TAXIS.
Children and Young Peoples Services,Head of Education and Skills,Transport,230012,Contract Hire,05/10/2020,3787087-COVID19-N319-EST-SEPT-CYPS-911,"1,740.93",ALAN SOUTHERN T/A ALANS TAXIS PELTON FELL.
Children and Young Peoples Services,Head of Education and Skills,Transport,230012,Contract Hire,05/10/2020,3787079-COVID19-M041-EST-SEPT-CYPS-766,"1,089.00",AABAT TAXIS.
Children and Young Peoples Services,Head of Education and Skills,Transport,230012,Contract Hire,05/10/2020,3787079-COVID19-W079-EST-SEPT-CYPS-1083,841.50,AABAT TAXIS.
Children and Young Peoples Services,Head of Education and Skills,Transport,230012,Contract Hire,05/10/2020,3787478-COVID19-E070-EST-SEPT-CYPS-567,874.50,SPENNYMOOR TAXIS.
Children and Young Peoples Services,Head of Education and Skills,Transport,230012,Contract Hire,05/10/2020,3787479-EJ00112,859.69,SPENNYMOOR TAXIS.
Children and Young Peoples Services,Head of Education and Skills,Transport,230012,Contract Hire,05/10/2020,3787079-COVID19-W156-EST-SEPT-CYPS-1105,"1,084.69",AABAT TAXIS.
Children and Young Peoples Services,Head of Education and Skills,Transport,230012,Contract Hire,05/10/2020,3787208-COVID19-M033-EST-SEPT-CYPS-758,"2,072.40",DIANE GOOCH T/A COLLINS TAXIS.
Children and Young Peoples Services,Head of Education and Skills,Transport,230012,Contract Hire,05/10/2020,3787386-COVID19-W009-EST-SEPT-CYPS-1018,810.55,MR THOMAS G GRIFFITHS T/A TNL TAXIS.
Children and Young Peoples Services,Head of Education and Skills,Transport,230012,Contract Hire,05/10/2020,3787080-COVID19-S023-EST-SEPT-CYPS-941,"1,258.29",ABA TAXIS.
Children and Young Peoples Services,Head of Education and Skills,Transport,230012,Contract Hire,05/10/2020,3787081-COVID19-N051-EST-SEPT-CYPS-842,"1,534.50",ABC & OUSTON CABS.
Children and Young Peoples Services,Head of Education and Skills,Transport,230012,Contract Hire,05/10/2020,3787281-COVID19-M004-EST-SEPT-CYPS-734,"1,205.82",JDS PRIVATE HIRE DURHAM.
Children and Young Peoples Services,Head of Education and Skills,Transport,230012,Contract Hire,05/10/2020,3787322-COVID19-E065-EST-SEPT-CYPS-566,"1,186.02",LOCAL TRANSPORT LTD.
Children and Young Peoples Services,Head of Education and Skills,Transport,230012,Contract Hire,05/10/2020,3787349-COVID19-N053-EST-SEPT-CYPS-844,"2,076.36",MJ TIMNEY T/A KDC & C&M TAXIS.
Children and Young Peoples Services,Head of Education and Skills,Transport,230012,Contract Hire,05/10/2020,3787454-COVID19-E008-EST-SEPT-CYPS-511,"1,116.39",ROBBIE`S PRIVATE HIRE.
Children and Young Peoples Services,Head of Education and Skills,Transport,230012,Contract Hire,05/10/2020,3787472-COVID19-W054-EST-SEPT-CYPS-1062,"2,217.75",SIMONS TAXIS.
Children and Young Peoples Services,Head of Education and Skills,Transport,230012,Contract Hire,05/10/2020,3787363-COVID19-E136-EST-SEPT-CYPS-583,826.82,MR DEREK HENDERSON.
Children and Young Peoples Services,Head of Education and Skills,Transport,230012,Contract Hire,05/10/2020,3787229-COVID19-N087-EST-SEPT-CYPS-877,"1,723.10",G & P JOHNSON LTD T/A NIGHTINGALE COACHES.
Children and Young Peoples Services,Head of Education and Skills,Transport,230016,Contract Hire,05/10/2020,3787525-1019,540.00,TONYS TAXIS (A BIRCH).
Children and Young Peoples Services,Head of Education and Skills,Transport,230016,Contract Hire,05/10/2020,3787526-COVID19-E118-EST-SEPT-CYPS-578,"1,023.00",TONYS TAXIS (A BIRCH).
Children and Young Peoples Services,Head of Education and Skills,Transport,230016,Contract Hire,05/10/2020,3787115-SMITH2/JULY20-JUNE,682.00,BEELINE PRIVATE HIRE.
Children and Young Peoples Services,Head of Education and Skills,Transport,230016,Contract Hire,05/10/2020,3787278-46-APRIL20A,607.50,JAYS TAXIS/JOHN GARLAND (TAXIS).
Children and Young Peoples Services,Head of Education and Skills,Transport,230016,Contract Hire,05/10/2020,3787278-47-MAY20,"1,012.50",JAYS TAXIS/JOHN GARLAND (TAXIS).
Children and Young Peoples Services,Head of Education and Skills,Transport,230016,Contract Hire,05/10/2020,3787278-48,"1,485.00",JAYS TAXIS/JOHN GARLAND (TAXIS).
Children and Young Peoples Services,Head of Education and Skills,Transport,230016,Contract Hire,05/10/2020,3787295-COVID19-M110-EST-SEPT-CYPS-787,858.00,JOVIAL PRIVATE HIRE.
Children and Young Peoples Services,Head of Education and Skills,Transport,230016,Contract Hire,05/10/2020,3787451-3281,792.50,RICHARD SHANKS T/A RICHIES TAXIS.
Children and Young Peoples Services,Head of Education and Skills,Transport,230016,Contract Hire,05/10/2020,3787254-COVID19-S046-EST-SEPT-CYPS-949,"2,178.00",HARRY`S TAXI`S.
Children and Young Peoples Services,Head of Education and Skills,Transport,230016,Contract Hire,05/10/2020,3787285-COVID19-M030-EST-SEPT-CYPS-755,"2,343.00",JL EBDON. T/A DIAL-A-CAB.
Children and Young Peoples Services,Head of Education and Skills,Transport,230016,Contract Hire,05/10/2020,3787462-COVID19-S101-EST-SEPT-CYPS-950,"1,864.50",S & S TRAVEL LTD.
Children and Young Peoples Services,Head of Education and Skills,Transport,230008,Contract Hire,05/10/2020,3787105-COVID19-W066-EST-SEPT-CYPS-1074,"1,425.00",AT TAXIS LTD.
Children and Young Peoples Services,Head of Education and Skills,Transport,230008,Contract Hire,05/10/2020,3787351-COVID19-N328-EST-SEPT-CYPS-918,"2,160.00",MOLLY`S TAXIS LTD.
Children and Young Peoples Services,Head of Education and Skills,Transport,230008,Contract Hire,05/10/2020,3787373-COVID19-N109-EST-SEPT-CYPS-898,708.00,MR M FARREY T/A TK TAXIS.
Children and Young Peoples Services,Head of Education and Skills,Transport,230008,Contract Hire,05/10/2020,3787212-COVID19-E202-EST-SEPT-CYPS-590,"2,070.00",EAST DURHAM TAXIS.
Children and Young Peoples Services,Head of Education and Skills,Transport,230008,Contract Hire,05/10/2020,3787129-COVID19-E013-EST-SEPT-CYPS-516,"1,616.34",BLACKHALL TAXIS.
Children and Young Peoples Services,Head of Education and Skills,Transport,230008,Contract Hire,05/10/2020,3787207-COVID19-E040-EST-SEPT-CYPS-543,"2,446.13",DEXTERS PRIVATE HIRE.
Children and Young Peoples Services,Head of Education and Skills,Transport,230008,Contract Hire,05/10/2020,3787281-COVID19-M048-EST-SEPT-CYPS-774,871.20,JDS PRIVATE HIRE DURHAM.
Children and Young Peoples Services,Head of Education and Skills,Transport,230008,Contract Hire,05/10/2020,3787368-COVID19-W062-EST-SEPT-CYPS-1070,"1,190.25",MR J AGAR T/A PARK TAXIS.
Children and Young Peoples Services,Head of Education and Skills,Transport,230008,Contract Hire,05/10/2020,3787428-COVID19-E062-EST-SEPT-CYPS-564,"1,188.00",PETERLEE EXECUTIVE CARS.
Children and Young Peoples Services,Head of Education and Skills,Transport,230008,Contract Hire,05/10/2020,3787524-COVID19-M065-EST-SEPT-CYPS-785,"2,013.00",TONY RIDLEY T/A COLORS TAXIS LTD.
Children and Young Peoples Services,Head of Education and Skills,Transport,230008,Contract Hire,05/10/2020,3787526-COVID19-E058-EST-SEPT-CYPS-560,"1,732.50",TONYS TAXIS (A BIRCH).
Children and Young Peoples Services,Head of Education and Skills,Transport,230008,Contract Hire,05/10/2020,3787337-COVID19-W172-EST-SEPT-CYPS-1110,"1,635.00",MARK WATSON T/A MARK`S TAXIS.
Children and Young Peoples Services,Head of Education and Skills,Transport,230008,Contract Hire,05/10/2020,3787435-COVID19-N326-EST-SEPT-CYPS-916,660.00,PHOENIX TAXIS T/A PRATT`S TAXIS.
Children and Young Peoples Services,Head of Education and Skills,Transport,230008,Contract Hire,05/10/2020,3787056-COVID19-A011-EST-SEPT-CYPS-350,"1,012.50",24/7 TAXI SERVICES LTD.
Children and Young Peoples Services,Head of Education and Skills,Transport,230008,Contract Hire,05/10/2020,3787056-COVID19-A029-EST-SEPT-CYPS-363,"2,465.60",24/7 TAXI SERVICES LTD.
Children and Young Peoples Services,Head of Education and Skills,Transport,230008,Contract Hire,05/10/2020,3787056-COVID19-A050-EST-SEPT-CYPS-374,"1,886.94",24/7 TAXI SERVICES LTD.
Children and Young Peoples Services,Head of Education and Skills,Transport,230008,Contract Hire,05/10/2020,3787056-COVID19-A061-EST-SEPT-CYPS-384,"2,429.13",24/7 TAXI SERVICES LTD.
Children and Young Peoples Services,Head of Education and Skills,Transport,230008,Contract Hire,05/10/2020,3787056-COVID19-A070-EST-SEPT-CYPS-387,900.00,24/7 TAXI SERVICES LTD.
Children and Young Peoples Services,Head of Education and Skills,Transport,230008,Contract Hire,05/10/2020,3787079-COVID19-A043-EST-SEPT-CYPS-369,"1,094.94",AABAT TAXIS.
Children and Young Peoples Services,Head of Education and Skills,Transport,230008,Contract Hire,05/10/2020,3787111-COVID19-A154-EST-SEPT-CYPS-397,891.00,B&C YELLOWCAB TAXI`S.
Children and Young Peoples Services,Head of Education and Skills,Transport,230008,Contract Hire,05/10/2020,3787130-COVID19-A023-EST-SEPT-CYPS-357,"1,320.00",BLUELINE TAXIS.
Children and Young Peoples Services,Head of Education and Skills,Transport,230008,Contract Hire,05/10/2020,3787130-COVID19-A035-EST-SEPT-CYPS-367,"1,815.00",BLUELINE TAXIS.
Children and Young Peoples Services,Head of Education and Skills,Transport,230008,Contract Hire,05/10/2020,3787130-COVID19-A088-EST-SEPT-CYPS-389,"1,001.55",BLUELINE TAXIS.
Children and Young Peoples Services,Head of Education and Skills,Transport,230008,Contract Hire,05/10/2020,3787130-COVID19-A144-EST-SEPT-CYPS-395,"1,485.00",BLUELINE TAXIS.
Children and Young Peoples Services,Head of Education and Skills,Transport,230008,Contract Hire,05/10/2020,3787130-COVID19-A167-EST-SEPT-CYPS-405,"1,080.00",BLUELINE TAXIS.
Children and Young Peoples Services,Head of Education and Skills,Transport,230008,Contract Hire,05/10/2020,3787153-COVID19-A022-EST-SEPT-CYPS-356,"1,980.00",CHANNER`S CABS.
Children and Young Peoples Services,Head of Education and Skills,Transport,230008,Contract Hire,05/10/2020,3787156-COVID19-A049-EST-SEPT-CYPS-373,"2,187.41",CHIPPERS TAXIS.
Children and Young Peoples Services,Head of Education and Skills,Transport,230008,Contract Hire,05/10/2020,3787184-110306,"2,275.20",CROFT BUSINESS SERVICES (UK) LTD T/A CROFT TAXIS.
Children and Young Peoples Services,Head of Education and Skills,Transport,230008,Contract Hire,05/10/2020,3787184-110307,"1,161.90",CROFT BUSINESS SERVICES (UK) LTD T/A CROFT TAXIS.
Children and Young Peoples Services,Head of Education and Skills,Transport,230008,Contract Hire,05/10/2020,3787184-110308,995.40,CROFT BUSINESS SERVICES (UK) LTD T/A CROFT TAXIS.
Children and Young Peoples Services,Head of Education and Skills,Transport,230008,Contract Hire,05/10/2020,3787184-110310,"1,877.70",CROFT BUSINESS SERVICES (UK) LTD T/A CROFT TAXIS.
Children and Young Peoples Services,Head of Education and Skills,Transport,230008,Contract Hire,05/10/2020,3787184-110333,"2,578.56",CROFT BUSINESS SERVICES (UK) LTD T/A CROFT TAXIS.
Children and Young Peoples Services,Head of Education and Skills,Transport,230008,Contract Hire,05/10/2020,3787184-110333/2,873.36,CROFT BUSINESS SERVICES (UK) LTD T/A CROFT TAXIS.
Children and Young Peoples Services,Head of Education and Skills,Transport,230008,Contract Hire,05/10/2020,3787184-110338,"1,703.90",CROFT BUSINESS SERVICES (UK) LTD T/A CROFT TAXIS.
Children and Young Peoples Services,Head of Education and Skills,Transport,230008,Contract Hire,05/10/2020,3787184-110339,"1,459.92",CROFT BUSINESS SERVICES (UK) LTD T/A CROFT TAXIS.
Children and Young Peoples Services,Head of Education and Skills,Transport,230008,Contract Hire,05/10/2020,3787184-COVID19-A019-EST-SEPT-CYPS-355,"3,370.13",CROFT BUSINESS SERVICES (UK) LTD T/A CROFT TAXIS.
Children and Young Peoples Services,Head of Education and Skills,Transport,230008,Contract Hire,05/10/2020,3787184-COVID19-A024-EST-SEPT-CYPS-358,"1,897.50",CROFT BUSINESS SERVICES (UK) LTD T/A CROFT TAXIS.
Children and Young Peoples Services,Head of Education and Skills,Transport,230008,Contract Hire,05/10/2020,3787184-COVID19-A058-EST-SEPT-CYPS-382,"1,733.88",CROFT BUSINESS SERVICES (UK) LTD T/A CROFT TAXIS.
Children and Young Peoples Services,Head of Education and Skills,Transport,230008,Contract Hire,05/10/2020,3787184-COVID19-A136-EST-SEPT-CYPS-392,"2,786.85",CROFT BUSINESS SERVICES (UK) LTD T/A CROFT TAXIS.
Children and Young Peoples Services,Head of Education and Skills,Transport,230008,Contract Hire,05/10/2020,3787184-COVID19-A178-EST-SEPT-CYPS-412,"1,410.63",CROFT BUSINESS SERVICES (UK) LTD T/A CROFT TAXIS.
Children and Young Peoples Services,Head of Education and Skills,Transport,230008,Contract Hire,05/10/2020,3787208-COVID19-A153-EST-SEPT-CYPS-396,"2,887.50",DIANE GOOCH T/A COLLINS TAXIS.
Children and Young Peoples Services,Head of Education and Skills,Transport,230008,Contract Hire,05/10/2020,3787229-COVID19-A009-EST-SEPT-CYPS-348,"2,709.30",G & P JOHNSON LTD T/A NIGHTINGALE COACHES.
Children and Young Peoples Services,Head of Education and Skills,Transport,230008,Contract Hire,05/10/2020,3787273-COVID19-A072-EST-SEPT-CYPS-388,"1,107.60",J YOUNG T/A VIP TAXIS.
Children and Young Peoples Services,Head of Education and Skills,Transport,230008,Contract Hire,05/10/2020,3787273-COVID19-A142-EST-SEPT-CYPS-394,"1,023.00",J YOUNG T/A VIP TAXIS.
Children and Young Peoples Services,Head of Education and Skills,Transport,230008,Contract Hire,05/10/2020,3787278-COVID19-A161-EST-SEPT-CYPS-401,"2,673.00",JAYS TAXIS/JOHN GARLAND (TAXIS).
Children and Young Peoples Services,Head of Education and Skills,Transport,230008,Contract Hire,05/10/2020,3787281-COVID19-A027-EST-SEPT-CYPS-361,"2,063.99",JDS PRIVATE HIRE DURHAM.
Children and Young Peoples Services,Head of Education and Skills,Transport,230008,Contract Hire,05/10/2020,3787281-COVID19-A158-EST-SEPT-CYPS-398,"2,607.00",JDS PRIVATE HIRE DURHAM.
Children and Young Peoples Services,Head of Education and Skills,Transport,230008,Contract Hire,05/10/2020,3787285-COVID19-A026-EST-SEPT-CYPS-360,"2,080.32",JL EBDON. T/A DIAL-A-CAB.
Children and Young Peoples Services,Head of Education and Skills,Transport,230008,Contract Hire,05/10/2020,3787286-17/07/2020H,"1,613.04",JL EBDON. T/A DIAL-A-CAB.
Children and Young Peoples Services,Head of Education and Skills,Transport,230008,Contract Hire,05/10/2020,3787291-COVID19-A017-EST-SEPT-CYPS-354,"1,596.38",JOHN ROBSON T/A ACE TAXIS.
Children and Young Peoples Services,Head of Education and Skills,Transport,230008,Contract Hire,05/10/2020,3787303-COVID19-A097-EST-SEPT-CYPS-390,693.00,KENNAS CABS.
Children and Young Peoples Services,Head of Education and Skills,Transport,230008,Contract Hire,05/10/2020,3787313-1835,"1,388.14",LD TAXIS.
Children and Young Peoples Services,Head of Education and Skills,Transport,230008,Contract Hire,05/10/2020,3787314-COVID19-A003-EST-SEPT-CYPS-344,"1,683.00",LD TAXIS.
Children and Young Peoples Services,Head of Education and Skills,Transport,230008,Contract Hire,05/10/2020,3787314-COVID19-A034-EST-SEPT-CYPS-366,"1,761.87",LD TAXIS.
Children and Young Peoples Services,Head of Education and Skills,Transport,230008,Contract Hire,05/10/2020,3787327-COVID19-A054-EST-SEPT-CYPS-378,"2,013.00",M&C`S CABS LTD.
Children and Young Peoples Services,Head of Education and Skills,Transport,230008,Contract Hire,05/10/2020,3787332-COVID19-A168-EST-SEPT-CYPS-406,507.00,MARK & JOHN CHISHOLM T/A (CHEVRON).
Children and Young Peoples Services,Head of Education and Skills,Transport,230008,Contract Hire,05/10/2020,3787343-COVID19-A138-EST-SEPT-CYPS-393,"1,181.90",MICHAEL A BODDY T/A MBS TAXIS.
Children and Young Peoples Services,Head of Education and Skills,Transport,230008,Contract Hire,05/10/2020,3787427-COVID19-A159-EST-SEPT-CYPS-399,"1,270.50",PETER TAYLOR T/A PT TAXI.
Children and Young Peoples Services,Head of Education and Skills,Transport,230008,Contract Hire,05/10/2020,3787434-60,972.64,PHILLIP BOYD T/A FILS TAXIS.
Children and Young Peoples Services,Head of Education and Skills,Transport,230008,Contract Hire,05/10/2020,3787434-COVID19-A030-EST-SEPT-CYPS-364,"1,722.27",PHILLIP BOYD T/A FILS TAXIS.
Children and Young Peoples Services,Head of Education and Skills,Transport,230008,Contract Hire,05/10/2020,3787435-COVID19-A172-EST-SEPT-CYPS-410,792.00,PHOENIX TAXIS T/A PRATT`S TAXIS.
Children and Young Peoples Services,Head of Education and Skills,Transport,230008,Contract Hire,05/10/2020,3787440-COVID19-A169-EST-SEPT-CYPS-407,"1,559.25",PRESTYS HACKNEY & PRIVATE HIRE TAXIS.
Children and Young Peoples Services,Head of Education and Skills,Transport,230008,Contract Hire,05/10/2020,3787469-COVID19-A038-EST-SEPT-CYPS-368,"1,284.86",SHOEY`S TAXIS.
Children and Young Peoples Services,Head of Education and Skills,Transport,230008,Contract Hire,05/10/2020,3787470-COVID19-A175-EST-SEPT-CYPS-411,"2,235.00",SHOTTON PRIVATE HIRE.
Children and Young Peoples Services,Head of Education and Skills,Transport,230008,Contract Hire,05/10/2020,3787510-COVID19-A166-EST-SEPT-CYPS-404,"1,980.00",TARNS TAXIS LTD.
Children and Young Peoples Services,Head of Education and Skills,Transport,230008,Contract Hire,05/10/2020,3787557-COVID19-A163-EST-SEPT-CYPS-402,"3,003.00",WISS TAXIS.
Children and Young Peoples Services,Head of Education and Skills,Transport,230008,Contract Hire,05/10/2020,3787184-COVID19-W173-EST-SEPT-CYPS-1111,"1,064.88",CROFT BUSINESS SERVICES (UK) LTD T/A CROFT TAXIS.
Children and Young Peoples Services,Head of Education and Skills,Transport,230008,Contract Hire,05/10/2020,3787163-COVID19-E031-EST-SEPT-CYPS-534,"2,895.75",CJ`S EXECUTIVE TRAVEL LTD.
Children and Young Peoples Services,Head of Education and Skills,Transport,230008,Contract Hire,05/10/2020,3787184-110318,"1,504.80",CROFT BUSINESS SERVICES (UK) LTD T/A CROFT TAXIS.
Children and Young Peoples Services,Head of Education and Skills,Transport,230008,Contract Hire,05/10/2020,3787184-110319,"1,531.95",CROFT BUSINESS SERVICES (UK) LTD T/A CROFT TAXIS.
Children and Young Peoples Services,Head of Education and Skills,Transport,230008,Contract Hire,05/10/2020,3787184-COVID19-N042-EST-SEPT-CYPS-834,"2,362.64",CROFT BUSINESS SERVICES (UK) LTD T/A CROFT TAXIS.
Children and Young Peoples Services,Head of Education and Skills,Transport,230008,Contract Hire,05/10/2020,3787184-COVID19-N058-EST-SEPT-CYPS-849,"3,052.50",CROFT BUSINESS SERVICES (UK) LTD T/A CROFT TAXIS.
Children and Young Peoples Services,Head of Education and Skills,Transport,230008,Contract Hire,05/10/2020,3787184-COVID19-N067-EST-SEPT-CYPS-858,"2,640.00",CROFT BUSINESS SERVICES (UK) LTD T/A CROFT TAXIS.
Children and Young Peoples Services,Head of Education and Skills,Transport,230008,Contract Hire,05/10/2020,3787217-COVID19-M042-EST-SEPT-CYPS-767,"1,689.27",ELLIOTTS OF TRIMDON.
Children and Young Peoples Services,Head of Education and Skills,Transport,230008,Contract Hire,05/10/2020,3787254-COVID19-W165-EST-SEPT-CYPS-1108,"1,353.00",HARRY`S TAXI`S.
Children and Young Peoples Services,Head of Education and Skills,Transport,230008,Contract Hire,05/10/2020,3787305-COVID19-N093-EST-SEPT-CYPS-883,"1,885.95",KEVIN HALL T/A KDH TAXIS.
Children and Young Peoples Services,Head of Education and Skills,Transport,230008,Contract Hire,05/10/2020,3787326-COVID19-M055-EST-SEPT-CYPS-781,"1,320.00",M BUTCHER T/A M & M`S TAXIS.
Children and Young Peoples Services,Head of Education and Skills,Transport,230008,Contract Hire,05/10/2020,3787354-COVID19-W007-EST-SEPT-CYPS-1017,"1,200.00",MR A MCKENNA T/A ANDY CABS.
Children and Young Peoples Services,Head of Education and Skills,Transport,230008,Contract Hire,05/10/2020,3787370-COVID19-W102-EST-SEPT-CYPS-1099,"1,755.00",MR JOHN KNIGHTON T/A JK TAXIS.
Children and Young Peoples Services,Head of Education and Skills,Transport,230008,Contract Hire,05/10/2020,3787383-COVID19-W058-EST-SEPT-CYPS-1066,"1,856.91",MR SCOTT MALCOLM MACKENZIE T/A SCOTTS TAXIS.
Children and Young Peoples Services,Head of Education and Skills,Transport,230008,Contract Hire,05/10/2020,3787421-COVID19-N063-EST-SEPT-CYPS-854,"1,020.00",PAUL`S TAXIS..
Children and Young Peoples Services,Head of Education and Skills,Transport,230008,Contract Hire,05/10/2020,3787486-COVID19-N076-EST-SEPT-CYPS-866,"1,947.00",STANLEY TRAVEL (NORTH EAST) LTD.
Children and Young Peoples Services,Head of Education and Skills,Transport,230008,Contract Hire,05/10/2020,3787490-COVID19-W060-EST-SEPT-CYPS-1068,"1,188.00",STEPHEN BALL T/A ABBIE`S TAXIS..
Children and Young Peoples Services,Head of Education and Skills,Transport,230008,Contract Hire,05/10/2020,3787490-COVID19-W086-EST-SEPT-CYPS-1087,787.50,STEPHEN BALL T/A ABBIE`S TAXIS..
Children and Young Peoples Services,Head of Education and Skills,Transport,230008,Contract Hire,05/10/2020,3787490-COVID19-W110-EST-SEPT-CYPS-1101,"1,650.00",STEPHEN BALL T/A ABBIE`S TAXIS..
Children and Young Peoples Services,Head of Education and Skills,Transport,230008,Contract Hire,05/10/2020,3787511-COVID19-S014-EST-SEPT-CYPS-935,"1,338.48",TAYLOR`S TAXIS.
Children and Young Peoples Services,Head of Education and Skills,Transport,230008,Contract Hire,05/10/2020,3787511-COVID19-W061-EST-SEPT-CYPS-1069,"2,277.00",TAYLOR`S TAXIS.
Children and Young Peoples Services,Head of Education and Skills,Transport,230008,Contract Hire,05/10/2020,3787546-COVID19-E125-EST-SEPT-CYPS-581,945.00,WAYNE`S TAXIS.
Children and Young Peoples Services,Head of Education and Skills,Transport,230008,Contract Hire,05/10/2020,3787548-COVID19-W059-EST-SEPT-CYPS-1067,"2,806.65",WEARDALE PRIVATE HIRE.
Children and Young Peoples Services,Head of Education and Skills,Transport,230008,Contract Hire,05/10/2020,3787056-COVID19-E009-EST-SEPT-CYPS-512,"2,175.86",24/7 TAXI SERVICES LTD.
Children and Young Peoples Services,Head of Education and Skills,Transport,230008,Contract Hire,05/10/2020,3787097-COVID19-E064-EST-SEPT-CYPS-565,"1,198.50",ANDREW PYGALL T/A ARP TAXIS.
Children and Young Peoples Services,Head of Education and Skills,Transport,230008,Contract Hire,05/10/2020,3787109-COVID19-N029-EST-SEPT-CYPS-823,"3,052.50",AUCKLAND TRAVEL.
Children and Young Peoples Services,Head of Education and Skills,Transport,230008,Contract Hire,05/10/2020,3787116-COVID19-N047-EST-SEPT-CYPS-839,"1,563.38",BEELINE PRIVATE HIRE.
Children and Young Peoples Services,Head of Education and Skills,Transport,230008,Contract Hire,05/10/2020,3787130-COVID19-E144-EST-SEPT-CYPS-584,"1,023.00",BLUELINE TAXIS.
Children and Young Peoples Services,Head of Education and Skills,Transport,230008,Contract Hire,05/10/2020,3787130-COVID19-M112-EST-SEPT-CYPS-788,"2,148.63",BLUELINE TAXIS.
Children and Young Peoples Services,Head of Education and Skills,Transport,230008,Contract Hire,05/10/2020,3787130-COVID19-S024-EST-SEPT-CYPS-942,"2,425.50",BLUELINE TAXIS.
Children and Young Peoples Services,Head of Education and Skills,Transport,230008,Contract Hire,05/10/2020,3787243-COVID19-N108-EST-SEPT-CYPS-897,"1,500.00",GP TAXIS.
Children and Young Peoples Services,Head of Education and Skills,Transport,230008,Contract Hire,05/10/2020,3787299-COVID19-N097-EST-SEPT-CYPS-887,"2,220.00",K & R TAXIS (STANLEY).
Children and Young Peoples Services,Head of Education and Skills,Transport,230008,Contract Hire,05/10/2020,3787332-COVID19-E072-EST-SEPT-CYPS-569,"1,140.00",MARK & JOHN CHISHOLM T/A (CHEVRON).
Children and Young Peoples Services,Head of Education and Skills,Transport,230008,Contract Hire,05/10/2020,3787332-COVID19-E085-EST-SEPT-CYPS-571,"1,872.00",MARK & JOHN CHISHOLM T/A (CHEVRON).
Children and Young Peoples Services,Head of Education and Skills,Transport,230008,Contract Hire,05/10/2020,3787332-COVID19-N050-EST-SEPT-CYPS-841,"2,425.62",MARK & JOHN CHISHOLM T/A (CHEVRON).
Children and Young Peoples Services,Head of Education and Skills,Transport,230008,Contract Hire,05/10/2020,3787359-COVID19-N065-EST-SEPT-CYPS-856,"1,425.60",MR CT WALKER T/A CW TAXIS.
Children and Young Peoples Services,Head of Education and Skills,Transport,230008,Contract Hire,05/10/2020,3787359-COVID19-N084-EST-SEPT-CYPS-874,"1,640.10",MR CT WALKER T/A CW TAXIS.
Children and Young Peoples Services,Head of Education and Skills,Transport,230008,Contract Hire,05/10/2020,3787379-COVID19-N031-EST-SEPT-CYPS-825,"1,363.40",MR RAYMOND RENWICK T/A RAY`S TAXIS & MINIBUSES.
Children and Young Peoples Services,Head of Education and Skills,Transport,230008,Contract Hire,05/10/2020,3787383-COVID19-W013-EST-SEPT-CYPS-1022,"1,936.77",MR SCOTT MALCOLM MACKENZIE T/A SCOTTS TAXIS.
Children and Young Peoples Services,Head of Education and Skills,Transport,230008,Contract Hire,05/10/2020,3787388-COVID19-M080-EST-SEPT-CYPS-786,"1,364.55",MRS SAMANTHA MACKENZIE T/A SAM`S TAXIS.
Children and Young Peoples Services,Head of Education and Skills,Transport,230008,Contract Hire,05/10/2020,3787422-COVID19-N074-EST-SEPT-CYPS-864,"1,524.44",PB PRIVATE HIRE.
Children and Young Peoples Services,Head of Education and Skills,Transport,230008,Contract Hire,05/10/2020,3787431-COVID19-N049-EST-SEPT-CYPS-840,"2,157.87",PETER`S PRIVATE HIRE/PETER BEST.
Children and Young Peoples Services,Head of Education and Skills,Transport,230008,Contract Hire,05/10/2020,3787445-COVID19-E043-EST-SEPT-CYPS-546,"1,188.00",RAPID MINIBUSES.
Children and Young Peoples Services,Head of Education and Skills,Transport,230008,Contract Hire,05/10/2020,3787453-COVID19-E033-EST-SEPT-CYPS-536,"1,323.63",ROBBIE`S PRIVATE HIRE.
Children and Young Peoples Services,Head of Education and Skills,Transport,230008,Contract Hire,05/10/2020,3787453-COVID19-N073-EST-SEPT-CYPS-863,"1,124.97",ROBBIE`S PRIVATE HIRE.
Children and Young Peoples Services,Head of Education and Skills,Transport,230008,Contract Hire,05/10/2020,3787454-321,801.83,ROBBIE`S PRIVATE HIRE.
Children and Young Peoples Services,Head of Education and Skills,Transport,230008,Contract Hire,05/10/2020,3787551-COVID19-E051-EST-SEPT-CYPS-553,"1,083.23",WESTLEA TAXIS.
Children and Young Peoples Services,Head of Education and Skills,Transport,230008,Contract Hire,05/10/2020,3787557-04-A163,"2,340.00",WISS TAXIS.
Children and Young Peoples Services,Head of Education and Skills,Transport,230008,Contract Hire,05/10/2020,3787056-COVID19-E080-EST-SEPT-CYPS-570,"1,629.00",24/7 TAXI SERVICES LTD.
Children and Young Peoples Services,Head of Education and Skills,Transport,230008,Contract Hire,05/10/2020,3787114-COVID19-N110-EST-SEPT-CYPS-899,"1,485.66",BEELINE MINI BUSES.
Children and Young Peoples Services,Head of Education and Skills,Transport,230008,Contract Hire,05/10/2020,3787130-COVID19-E055-EST-SEPT-CYPS-557,"1,584.00",BLUELINE TAXIS.
Children and Young Peoples Services,Head of Education and Skills,Transport,230008,Contract Hire,05/10/2020,3787184-110313,"1,330.65",CROFT BUSINESS SERVICES (UK) LTD T/A CROFT TAXIS.
Children and Young Peoples Services,Head of Education and Skills,Transport,230008,Contract Hire,05/10/2020,3787184-110317,"1,447.95",CROFT BUSINESS SERVICES (UK) LTD T/A CROFT TAXIS.
Children and Young Peoples Services,Head of Education and Skills,Transport,230008,Contract Hire,05/10/2020,3787184-COVID19-N052-EST-SEPT-CYPS-843,"2,156.72",CROFT BUSINESS SERVICES (UK) LTD T/A CROFT TAXIS.
Children and Young Peoples Services,Head of Education and Skills,Transport,230008,Contract Hire,05/10/2020,3787195-COVID19-N016-EST-SEPT-CYPS-811,"2,202.59",DAVES MINIBUSES.
Children and Young Peoples Services,Head of Education and Skills,Transport,230008,Contract Hire,05/10/2020,3787195-COVID19-N060-EST-SEPT-CYPS-851,"1,650.00",DAVES MINIBUSES.
Children and Young Peoples Services,Head of Education and Skills,Transport,230008,Contract Hire,05/10/2020,3787212-COVID19-M045-EST-SEPT-CYPS-771,"2,340.00",EAST DURHAM TAXIS.
Children and Young Peoples Services,Head of Education and Skills,Transport,230008,Contract Hire,05/10/2020,3787222-COVID19-N090-EST-SEPT-CYPS-880,"1,848.00",FAIR FARE TRAVEL (TAXIS).
Children and Young Peoples Services,Head of Education and Skills,Transport,230008,Contract Hire,05/10/2020,3787226-1502,"1,286.10",FMR SILVA PITA.
Children and Young Peoples Services,Head of Education and Skills,Transport,230008,Contract Hire,05/10/2020,3787226-COVID19-N015-EST-SEPT-CYPS-810,"1,447.71",FMR SILVA PITA.
Children and Young Peoples Services,Head of Education and Skills,Transport,230008,Contract Hire,05/10/2020,3787229-COVID19-N017-EST-SEPT-CYPS-812,"1,569.32",G & P JOHNSON LTD T/A NIGHTINGALE COACHES.
Children and Young Peoples Services,Head of Education and Skills,Transport,230008,Contract Hire,05/10/2020,3787229-COVID19-N020-EST-SEPT-CYPS-814,"1,380.23",G & P JOHNSON LTD T/A NIGHTINGALE COACHES.
Children and Young Peoples Services,Head of Education and Skills,Transport,230008,Contract Hire,05/10/2020,3787229-COVID19-N024-EST-SEPT-CYPS-818,"1,258.29",G & P JOHNSON LTD T/A NIGHTINGALE COACHES.
Children and Young Peoples Services,Head of Education and Skills,Transport,230008,Contract Hire,05/10/2020,3787229-COVID19-N026-EST-SEPT-CYPS-820,"1,848.00",G & P JOHNSON LTD T/A NIGHTINGALE COACHES.
Children and Young Peoples Services,Head of Education and Skills,Transport,230008,Contract Hire,05/10/2020,3787229-COVID19-N057-EST-SEPT-CYPS-848,"1,006.50",G & P JOHNSON LTD T/A NIGHTINGALE COACHES.
Children and Young Peoples Services,Head of Education and Skills,Transport,230008,Contract Hire,05/10/2020,3787229-COVID19-N064-EST-SEPT-CYPS-855,"1,274.79",G & P JOHNSON LTD T/A NIGHTINGALE COACHES.
Children and Young Peoples Services,Head of Education and Skills,Transport,230008,Contract Hire,05/10/2020,3787229-COVID19-N092-EST-SEPT-CYPS-882,"1,252.19",G & P JOHNSON LTD T/A NIGHTINGALE COACHES.
Children and Young Peoples Services,Head of Education and Skills,Transport,230008,Contract Hire,05/10/2020,3787263-390,"1,226.25",IAN CLYDESDALE T/A BURNOPFIELD TAXIS.
Children and Young Peoples Services,Head of Education and Skills,Transport,230008,Contract Hire,05/10/2020,3787263-391,"1,462.50",IAN CLYDESDALE T/A BURNOPFIELD TAXIS.
Children and Young Peoples Services,Head of Education and Skills,Transport,230008,Contract Hire,05/10/2020,3787264-COVID19-N013-EST-SEPT-CYPS-809,"1,831.50",IAN CLYDESDALE T/A BURNOPFIELD TAXIS.
Children and Young Peoples Services,Head of Education and Skills,Transport,230008,Contract Hire,05/10/2020,3787264-COVID19-N077-EST-SEPT-CYPS-867,"2,178.00",IAN CLYDESDALE T/A BURNOPFIELD TAXIS.
Children and Young Peoples Services,Head of Education and Skills,Transport,230008,Contract Hire,05/10/2020,3787276-COVID19-N025-EST-SEPT-CYPS-819,"1,451.01",JACKSON`S TAXI.
Children and Young Peoples Services,Head of Education and Skills,Transport,230008,Contract Hire,05/10/2020,3787281-COVID19-M113-EST-SEPT-CYPS-789,"1,653.80",JDS PRIVATE HIRE DURHAM.
Children and Young Peoples Services,Head of Education and Skills,Transport,230008,Contract Hire,05/10/2020,3787320-COVID19-W097-EST-SEPT-CYPS-1095,"2,500.08",LINCAB TAXIS.
Children and Young Peoples Services,Head of Education and Skills,Transport,230008,Contract Hire,05/10/2020,3787351-COVID19-N018-EST-SEPT-CYPS-813,"2,036.43",MOLLY`S TAXIS LTD.
Children and Young Peoples Services,Head of Education and Skills,Transport,230008,Contract Hire,05/10/2020,3787381-COVID19-W161-EST-SEPT-CYPS-1106,"3,570.44",MR S BOWERS T/A DH7 TAXIS.
Children and Young Peoples Services,Head of Education and Skills,Transport,230008,Contract Hire,05/10/2020,3787486-COVID19-N075-EST-SEPT-CYPS-865,"2,343.00",STANLEY TRAVEL (NORTH EAST) LTD.
Children and Young Peoples Services,Head of Education and Skills,Transport,230008,Contract Hire,05/10/2020,3787486-COVID19-N085-EST-SEPT-CYPS-875,"1,006.50",STANLEY TRAVEL (NORTH EAST) LTD.
Children and Young Peoples Services,Head of Education and Skills,Transport,230008,Contract Hire,05/10/2020,3787486-COVID19-N100-EST-SEPT-CYPS-890,"1,878.00",STANLEY TRAVEL (NORTH EAST) LTD.
Children and Young Peoples Services,Head of Education and Skills,Transport,230008,Contract Hire,05/10/2020,3787486-COVID19-N102-EST-SEPT-CYPS-892,"1,485.00",STANLEY TRAVEL (NORTH EAST) LTD.
Children and Young Peoples Services,Head of Education and Skills,Transport,230008,Contract Hire,05/10/2020,3787486-COVID19-N213-EST-SEPT-CYPS-906,924.00,STANLEY TRAVEL (NORTH EAST) LTD.
Children and Young Peoples Services,Head of Education and Skills,Transport,230008,Contract Hire,05/10/2020,3787486-COVID19-W039-EST-SEPT-CYPS-1047,"1,957.50",STANLEY TRAVEL (NORTH EAST) LTD.
Children and Young Peoples Services,Head of Education and Skills,Transport,230008,Contract Hire,05/10/2020,3787526-COVID19-E056-EST-SEPT-CYPS-558,"1,590.00",TONYS TAXIS (A BIRCH).
Children and Young Peoples Services,Head of Education and Skills,Transport,230008,Contract Hire,05/10/2020,3787549-COVID19-N032-EST-SEPT-CYPS-826,"1,353.00",WENDYS` TAXIS.
Children and Young Peoples Services,Head of Education and Skills,Transport,230008,Contract Hire,05/10/2020,3787556-COVID19-N059-EST-SEPT-CYPS-850,"2,713.92",WISS TAXIS.
Children and Young Peoples Services,Head of Education and Skills,Transport,230008,Contract Hire,05/10/2020,3787056-COVID19-E071-EST-SEPT-CYPS-568,"2,700.74",24/7 TAXI SERVICES LTD.
Children and Young Peoples Services,Head of Education and Skills,Transport,230008,Contract Hire,05/10/2020,3787056-COVID19-M025-EST-SEPT-CYPS-751,"2,508.00",24/7 TAXI SERVICES LTD.
Children and Young Peoples Services,Head of Education and Skills,Transport,230008,Contract Hire,05/10/2020,3787079-COVID19-W041-EST-SEPT-CYPS-1050,"1,921.50",AABAT TAXIS.
Children and Young Peoples Services,Head of Education and Skills,Transport,230008,Contract Hire,05/10/2020,3787106-COVID19-S012-EST-SEPT-CYPS-933,"1,911.00",ATLAS TAXIS BISHOP AUCKLAND.
Children and Young Peoples Services,Head of Education and Skills,Transport,230008,Contract Hire,05/10/2020,3787141-COVID19-W112-EST-SEPT-CYPS-1102,"1,518.00",C & R TAXIS.
Children and Young Peoples Services,Head of Education and Skills,Transport,230008,Contract Hire,05/10/2020,3787184-110314,"2,005.05",CROFT BUSINESS SERVICES (UK) LTD T/A CROFT TAXIS.
Children and Young Peoples Services,Head of Education and Skills,Transport,230008,Contract Hire,05/10/2020,3787184-110342,"2,940.74",CROFT BUSINESS SERVICES (UK) LTD T/A CROFT TAXIS.
Children and Young Peoples Services,Head of Education and Skills,Transport,230008,Contract Hire,05/10/2020,3787192-COVID19-E150-EST-SEPT-CYPS-587,720.00,DA TRAVEL.
Children and Young Peoples Services,Head of Education and Skills,Transport,230008,Contract Hire,05/10/2020,3787281-COVID19-W020-EST-SEPT-CYPS-1029,"2,310.00",JDS PRIVATE HIRE DURHAM.
Children and Young Peoples Services,Head of Education and Skills,Transport,230008,Contract Hire,05/10/2020,3787281-COVID19-W026-EST-SEPT-CYPS-1033,"1,964.66",JDS PRIVATE HIRE DURHAM.
Children and Young Peoples Services,Head of Education and Skills,Transport,230008,Contract Hire,05/10/2020,3787299-1098,"2,551.50",K & R TAXIS (STANLEY).
Children and Young Peoples Services,Head of Education and Skills,Transport,230008,Contract Hire,05/10/2020,3787332-COVID19-E122-EST-SEPT-CYPS-579,"2,343.00",MARK & JOHN CHISHOLM T/A (CHEVRON).
Children and Young Peoples Services,Head of Education and Skills,Transport,230008,Contract Hire,05/10/2020,3787365-COVID19-N079-EST-SEPT-CYPS-869,"2,125.87",MR G FREELAND T/A HUNWICK CARS.
Children and Young Peoples Services,Head of Education and Skills,Transport,230008,Contract Hire,05/10/2020,3787377-COVID19-S102-EST-SEPT-CYPS-951,"1,543.50",MR NEIL LEONARD T/A LENNY`S TAXIS.
Children and Young Peoples Services,Head of Education and Skills,Transport,230008,Contract Hire,05/10/2020,3787421-COVID19-N027-EST-SEPT-CYPS-821,"2,449.59",PAUL`S TAXIS..
Children and Young Peoples Services,Head of Education and Skills,Transport,230008,Contract Hire,05/10/2020,3787459-COVID19-N329-EST-SEPT-CYPS-919,"1,215.00",ROUTE 1.
Children and Young Peoples Services,Head of Education and Skills,Transport,230008,Contract Hire,05/10/2020,3787464-COVID19-E201-EST-SEPT-CYPS-589,"1,417.50",SAFELINE TRAVEL.
Children and Young Peoples Services,Head of Education and Skills,Transport,230008,Contract Hire,05/10/2020,3787464-COVID19-N005-EST-SEPT-CYPS-801,"1,754.45",SAFELINE TRAVEL.
Children and Young Peoples Services,Head of Education and Skills,Transport,230008,Contract Hire,05/10/2020,3787478-COVID19-E048-EST-SEPT-CYPS-551,"2,123.55",SPENNYMOOR TAXIS.
Children and Young Peoples Services,Head of Education and Skills,Transport,230008,Contract Hire,05/10/2020,3787506-COVID19-M052-EST-SEPT-CYPS-778,"1,300.20",TAILORMADE TRAVEL.
Children and Young Peoples Services,Head of Education and Skills,Transport,230008,Contract Hire,05/10/2020,3787511-COVID19-N080-EST-SEPT-CYPS-870,"2,158.37",TAYLOR`S TAXIS.
Children and Young Peoples Services,Head of Education and Skills,Transport,230008,Contract Hire,05/10/2020,3787534-COVID19-N088-EST-SEPT-CYPS-878,"1,366.05",TRIDENT TAXIS.
Children and Young Peoples Services,Head of Education and Skills,Transport,230008,Contract Hire,05/10/2020,3787114-COVID19-N001-EST-SEPT-CYPS-797,"1,394.09",BEELINE MINI BUSES.
Children and Young Peoples Services,Head of Education and Skills,Transport,230008,Contract Hire,05/10/2020,3787126-COVID19-M051-EST-SEPT-CYPS-777,"2,025.00",BIRDS TAXIS LTD.
Children and Young Peoples Services,Head of Education and Skills,Transport,230008,Contract Hire,05/10/2020,3787130-COVID19-E036-EST-SEPT-CYPS-539,"1,716.00",BLUELINE TAXIS.
Children and Young Peoples Services,Head of Education and Skills,Transport,230008,Contract Hire,05/10/2020,3787130-COVID19-N306-EST-SEPT-CYPS-909,"1,155.00",BLUELINE TAXIS.
Children and Young Peoples Services,Head of Education and Skills,Transport,230008,Contract Hire,05/10/2020,3787171-COVID19-N010-EST-SEPT-CYPS-806,"1,258.29",COLIN STEWART T/A STEWART`S TAXIS.
Children and Young Peoples Services,Head of Education and Skills,Transport,230008,Contract Hire,05/10/2020,3787229-COVID19-N002-EST-SEPT-CYPS-798,"1,501.50",G & P JOHNSON LTD T/A NIGHTINGALE COACHES.
Children and Young Peoples Services,Head of Education and Skills,Transport,230008,Contract Hire,05/10/2020,3787229-COVID19-N004-EST-SEPT-CYPS-800,"1,398.38",G & P JOHNSON LTD T/A NIGHTINGALE COACHES.
Children and Young Peoples Services,Head of Education and Skills,Transport,230008,Contract Hire,05/10/2020,3787229-COVID19-N006-EST-SEPT-CYPS-802,"2,264.79",G & P JOHNSON LTD T/A NIGHTINGALE COACHES.
Children and Young Peoples Services,Head of Education and Skills,Transport,230008,Contract Hire,05/10/2020,3787229-COVID19-N008-EST-SEPT-CYPS-804,"1,617.00",G & P JOHNSON LTD T/A NIGHTINGALE COACHES.
Children and Young Peoples Services,Head of Education and Skills,Transport,230008,Contract Hire,05/10/2020,3787229-COVID19-N009-EST-SEPT-CYPS-805,"2,002.94",G & P JOHNSON LTD T/A NIGHTINGALE COACHES.
Children and Young Peoples Services,Head of Education and Skills,Transport,230008,Contract Hire,05/10/2020,3787229-COVID19-N011-EST-SEPT-CYPS-807,"1,372.47",G & P JOHNSON LTD T/A NIGHTINGALE COACHES.
Children and Young Peoples Services,Head of Education and Skills,Transport,230008,Contract Hire,05/10/2020,3787229-COVID19-N012-EST-SEPT-CYPS-808,"1,551.50",G & P JOHNSON LTD T/A NIGHTINGALE COACHES.
Children and Young Peoples Services,Head of Education and Skills,Transport,230008,Contract Hire,05/10/2020,3787229-COVID19-N021-EST-SEPT-CYPS-815,"1,006.50",G & P JOHNSON LTD T/A NIGHTINGALE COACHES.
Children and Young Peoples Services,Head of Education and Skills,Transport,230008,Contract Hire,05/10/2020,3787229-COVID19-N066-EST-SEPT-CYPS-857,988.35,G & P JOHNSON LTD T/A NIGHTINGALE COACHES.
Children and Young Peoples Services,Head of Education and Skills,Transport,230008,Contract Hire,05/10/2020,3787229-COVID19-N095-EST-SEPT-CYPS-885,990.00,G & P JOHNSON LTD T/A NIGHTINGALE COACHES.
Children and Young Peoples Services,Head of Education and Skills,Transport,230008,Contract Hire,05/10/2020,3787229-COVID19-N105-EST-SEPT-CYPS-895,"1,006.50",G & P JOHNSON LTD T/A NIGHTINGALE COACHES.
Children and Young Peoples Services,Head of Education and Skills,Transport,230008,Contract Hire,05/10/2020,3787229-COVID19-N200-EST-SEPT-CYPS-904,"1,785.00",G & P JOHNSON LTD T/A NIGHTINGALE COACHES.
Children and Young Peoples Services,Head of Education and Skills,Transport,230008,Contract Hire,05/10/2020,3787229-COVID19-W070-EST-SEPT-CYPS-1077,"1,497.75",G & P JOHNSON LTD T/A NIGHTINGALE COACHES.
Children and Young Peoples Services,Head of Education and Skills,Transport,230008,Contract Hire,05/10/2020,3787276-COVID19-N091-EST-SEPT-CYPS-881,"1,803.45",JACKSON`S TAXI.
Children and Young Peoples Services,Head of Education and Skills,Transport,230008,Contract Hire,05/10/2020,3787300-COVID19-N083-EST-SEPT-CYPS-873,"2,076.36",KD TAXIS.
Children and Young Peoples Services,Head of Education and Skills,Transport,230008,Contract Hire,05/10/2020,3787394-COVID19-N089-EST-SEPT-CYPS-879,"1,350.00",NEIL PASSMOOR T/A NEIL`S TAXI.
Children and Young Peoples Services,Head of Education and Skills,Transport,230008,Contract Hire,05/10/2020,3787421-COVID19-N007-EST-SEPT-CYPS-803,"1,139.16",PAUL`S TAXIS..
Children and Young Peoples Services,Head of Education and Skills,Transport,230008,Contract Hire,05/10/2020,3787486-COVID19-N081-EST-SEPT-CYPS-871,"1,501.50",STANLEY TRAVEL (NORTH EAST) LTD.
Children and Young Peoples Services,Head of Education and Skills,Transport,230008,Contract Hire,05/10/2020,3787486-COVID19-N099-EST-SEPT-CYPS-889,"2,085.00",STANLEY TRAVEL (NORTH EAST) LTD.
Children and Young Peoples Services,Head of Education and Skills,Transport,230008,Contract Hire,05/10/2020,3787507-COVID19-M040-EST-SEPT-CYPS-765,"1,739.10",TALBOTS TAXIS.
Children and Young Peoples Services,Head of Education and Skills,Transport,230008,Contract Hire,05/10/2020,3787553-COVID19-W001-EST-SEPT-CYPS-1013,"1,397.88",WHITTONSTALL TAXIS SERVICE.
Children and Young Peoples Services,Head of Education and Skills,Transport,230008,Contract Hire,05/10/2020,3787056-COVID19-E148-EST-SEPT-CYPS-586,994.50,24/7 TAXI SERVICES LTD.
Children and Young Peoples Services,Head of Education and Skills,Transport,230008,Contract Hire,05/10/2020,3787056-COVID19-N107-EST-SEPT-CYPS-896,"1,606.50",24/7 TAXI SERVICES LTD.
Children and Young Peoples Services,Head of Education and Skills,Transport,230008,Contract Hire,05/10/2020,3787097-COVID19-M002-EST-SEPT-CYPS-733,"1,631.52",ANDREW PYGALL T/A ARP TAXIS.
Children and Young Peoples Services,Head of Education and Skills,Transport,230008,Contract Hire,05/10/2020,3787103-COVID19-M039-EST-SEPT-CYPS-764,"1,205.82",ARMSTRONG`S TAXIS.
Children and Young Peoples Services,Head of Education and Skills,Transport,230008,Contract Hire,05/10/2020,3787130-COVID19-E028-EST-SEPT-CYPS-531,"1,155.00",BLUELINE TAXIS.
Children and Young Peoples Services,Head of Education and Skills,Transport,230008,Contract Hire,05/10/2020,3787130-COVID19-E112-EST-SEPT-CYPS-576,681.29,BLUELINE TAXIS.
Children and Young Peoples Services,Head of Education and Skills,Transport,230008,Contract Hire,05/10/2020,3787130-COVID19-E146-EST-SEPT-CYPS-585,"1,320.00",BLUELINE TAXIS.
Children and Young Peoples Services,Head of Education and Skills,Transport,230008,Contract Hire,05/10/2020,3787133-COVID19-E026-EST-SEPT-CYPS-529,"1,866.48",BOBBY DOVE PRIVATE HIRE.
Children and Young Peoples Services,Head of Education and Skills,Transport,230008,Contract Hire,05/10/2020,3787138-COVID19-E024-EST-SEPT-CYPS-527,"1,006.17",BREZ`S TAXIS.
Children and Young Peoples Services,Head of Education and Skills,Transport,230008,Contract Hire,05/10/2020,3787138-COVID19-E025-EST-SEPT-CYPS-528,980.43,BREZ`S TAXIS.
Children and Young Peoples Services,Head of Education and Skills,Transport,230008,Contract Hire,05/10/2020,3787197-COVID19-W035-EST-SEPT-CYPS-1042,"1,695.87",DAVID FOREMAN T/A DAVES TAXIS.
Children and Young Peoples Services,Head of Education and Skills,Transport,230008,Contract Hire,05/10/2020,3787212-COVID19-E029-EST-SEPT-CYPS-532,"2,247.96",EAST DURHAM TAXIS.
Children and Young Peoples Services,Head of Education and Skills,Transport,230008,Contract Hire,05/10/2020,3787212-COVID19-E030-EST-SEPT-CYPS-533,"3,167.18",EAST DURHAM TAXIS.
Children and Young Peoples Services,Head of Education and Skills,Transport,230008,Contract Hire,05/10/2020,3787212-COVID19-E100-EST-SEPT-CYPS-572,"1,068.00",EAST DURHAM TAXIS.
Children and Young Peoples Services,Head of Education and Skills,Transport,230008,Contract Hire,05/10/2020,3787217-COVID19-E060-EST-SEPT-CYPS-562,"1,530.38",ELLIOTTS OF TRIMDON.
Children and Young Peoples Services,Head of Education and Skills,Transport,230008,Contract Hire,05/10/2020,3787257-COVID19-E016-EST-SEPT-CYPS-519,"1,584.00",HEPWORTHS TRAVEL.
Children and Young Peoples Services,Head of Education and Skills,Transport,230008,Contract Hire,05/10/2020,3787257-COVID19-E019-EST-SEPT-CYPS-522,"1,567.50",HEPWORTHS TRAVEL.
Children and Young Peoples Services,Head of Education and Skills,Transport,230008,Contract Hire,05/10/2020,3787262-COVID19-E023-EST-SEPT-CYPS-526,"1,880.34",I & R EXECUTIVE TRAVEL.
Children and Young Peoples Services,Head of Education and Skills,Transport,230008,Contract Hire,05/10/2020,3787303-COVID19-E032-EST-SEPT-CYPS-535,528.00,KENNAS CABS.
Children and Young Peoples Services,Head of Education and Skills,Transport,230008,Contract Hire,05/10/2020,3787322-COVID19-E018-EST-SEPT-CYPS-521,"1,328.25",LOCAL TRANSPORT LTD.
Children and Young Peoples Services,Head of Education and Skills,Transport,230008,Contract Hire,05/10/2020,3787322-COVID19-E020-EST-SEPT-CYPS-523,"1,600.50",LOCAL TRANSPORT LTD.
Children and Young Peoples Services,Head of Education and Skills,Transport,230008,Contract Hire,05/10/2020,3787322-COVID19-E022-EST-SEPT-CYPS-525,"1,930.50",LOCAL TRANSPORT LTD.
Children and Young Peoples Services,Head of Education and Skills,Transport,230008,Contract Hire,05/10/2020,3787332-COVID19-E061-EST-SEPT-CYPS-563,"1,512.00",MARK & JOHN CHISHOLM T/A (CHEVRON).
Children and Young Peoples Services,Head of Education and Skills,Transport,230008,Contract Hire,05/10/2020,3787332-COVID19-M028-EST-SEPT-CYPS-754,"1,853.45",MARK & JOHN CHISHOLM T/A (CHEVRON).
Children and Young Peoples Services,Head of Education and Skills,Transport,230008,Contract Hire,05/10/2020,3787358-COVID19-M019-EST-SEPT-CYPS-747,"1,209.38",MR BW YOUNG T/A ESH TAXIS.
Children and Young Peoples Services,Head of Education and Skills,Transport,230008,Contract Hire,05/10/2020,3787366-COVID19-E021-EST-SEPT-CYPS-524,"1,318.68",MR GS ANDERSON.
Children and Young Peoples Services,Head of Education and Skills,Transport,230008,Contract Hire,05/10/2020,3787383-COVID19-W018-EST-SEPT-CYPS-1027,"1,779.03",MR SCOTT MALCOLM MACKENZIE T/A SCOTTS TAXIS.
Children and Young Peoples Services,Head of Education and Skills,Transport,230008,Contract Hire,05/10/2020,3787417-COVID19-N104-EST-SEPT-CYPS-894,"1,320.00",PAUL BURRELL T/A PAUL BURRELL TAXIS.
Children and Young Peoples Services,Head of Education and Skills,Transport,230008,Contract Hire,05/10/2020,3787431-COVID19-E007-EST-SEPT-CYPS-510,647.13,PETER`S PRIVATE HIRE/PETER BEST.
Children and Young Peoples Services,Head of Education and Skills,Transport,230008,Contract Hire,05/10/2020,3787431-COVID19-E012-EST-SEPT-CYPS-515,"1,627.23",PETER`S PRIVATE HIRE/PETER BEST.
Children and Young Peoples Services,Head of Education and Skills,Transport,230008,Contract Hire,05/10/2020,3787431-COVID19-E014-EST-SEPT-CYPS-517,"3,021.15",PETER`S PRIVATE HIRE/PETER BEST.
Children and Young Peoples Services,Head of Education and Skills,Transport,230008,Contract Hire,05/10/2020,3787431-COVID19-E035-EST-SEPT-CYPS-538,"1,419.00",PETER`S PRIVATE HIRE/PETER BEST.
Children and Young Peoples Services,Head of Education and Skills,Transport,230008,Contract Hire,05/10/2020,3787428-COVID19-E101-EST-SEPT-CYPS-573,"1,365.00",PETERLEE EXECUTIVE CARS.
Children and Young Peoples Services,Head of Education and Skills,Transport,230008,Contract Hire,05/10/2020,3787445-COVID19-E015-EST-SEPT-CYPS-518,"1,353.00",RAPID MINIBUSES.
Children and Young Peoples Services,Head of Education and Skills,Transport,230008,Contract Hire,05/10/2020,3787445-COVID19-E017-EST-SEPT-CYPS-520,"1,239.81",RAPID MINIBUSES.
Children and Young Peoples Services,Head of Education and Skills,Transport,230008,Contract Hire,05/10/2020,3787445-COVID19-E027-EST-SEPT-CYPS-530,"1,510.41",RAPID MINIBUSES.
Children and Young Peoples Services,Head of Education and Skills,Transport,230008,Contract Hire,05/10/2020,3787445-COVID19-E059-EST-SEPT-CYPS-561,"1,699.50",RAPID MINIBUSES.
Children and Young Peoples Services,Head of Education and Skills,Transport,230008,Contract Hire,05/10/2020,3787445-COVID19-E103-EST-SEPT-CYPS-575,536.25,RAPID MINIBUSES.
Children and Young Peoples Services,Head of Education and Skills,Transport,230008,Contract Hire,05/10/2020,3787453-COVID19-E010-EST-SEPT-CYPS-513,593.51,ROBBIE`S PRIVATE HIRE.
Children and Young Peoples Services,Head of Education and Skills,Transport,230008,Contract Hire,05/10/2020,3787453-COVID19-M062-EST-SEPT-CYPS-783,864.90,ROBBIE`S PRIVATE HIRE.
Children and Young Peoples Services,Head of Education and Skills,Transport,230008,Contract Hire,05/10/2020,3787470-COVID19-N111-EST-SEPT-CYPS-900,"1,267.50",SHOTTON PRIVATE HIRE.
Children and Young Peoples Services,Head of Education and Skills,Transport,230008,Contract Hire,05/10/2020,3787470-COVID19-S045-EST-SEPT-CYPS-948,"2,343.00",SHOTTON PRIVATE HIRE.
Children and Young Peoples Services,Head of Education and Skills,Transport,230008,Contract Hire,05/10/2020,3787508-COVID19-M044-EST-SEPT-CYPS-769,"1,920.60",TALBOTS TRAVEL LTD.
Children and Young Peoples Services,Head of Education and Skills,Transport,230008,Contract Hire,05/10/2020,3787525-033,949.52,TONYS TAXIS (A BIRCH).
Children and Young Peoples Services,Head of Education and Skills,Transport,230008,Contract Hire,05/10/2020,3787525-1017,"1,606.88",TONYS TAXIS (A BIRCH).
Children and Young Peoples Services,Head of Education and Skills,Transport,230008,Contract Hire,05/10/2020,3787526-COVID19-N055-EST-SEPT-CYPS-846,"1,639.94",TONYS TAXIS (A BIRCH).
Children and Young Peoples Services,Head of Education and Skills,Transport,230008,Contract Hire,05/10/2020,3787079-COVID19-N082-EST-SEPT-CYPS-872,"2,548.59",AABAT TAXIS.
Children and Young Peoples Services,Head of Education and Skills,Transport,230008,Contract Hire,05/10/2020,3787081-COVID19-N056-EST-SEPT-CYPS-847,"1,780.02",ABC & OUSTON CABS.
Children and Young Peoples Services,Head of Education and Skills,Transport,230008,Contract Hire,05/10/2020,3787130-COVID19-E042-EST-SEPT-CYPS-545,"1,897.50",BLUELINE TAXIS.
Children and Young Peoples Services,Head of Education and Skills,Transport,230008,Contract Hire,05/10/2020,3787130-COVID19-N312-EST-SEPT-CYPS-910,"1,815.00",BLUELINE TAXIS.
Children and Young Peoples Services,Head of Education and Skills,Transport,230008,Contract Hire,05/10/2020,3787141-COVID19-S006-EST-SEPT-CYPS-927,"1,108.20",C & R TAXIS.
Children and Young Peoples Services,Head of Education and Skills,Transport,230008,Contract Hire,05/10/2020,3787156-COVID19-W073-EST-SEPT-CYPS-1078,"1,450.68",CHIPPERS TAXIS.
Children and Young Peoples Services,Head of Education and Skills,Transport,230008,Contract Hire,05/10/2020,3787217-COVID19-E128-EST-SEPT-CYPS-582,"2,662.77",ELLIOTTS OF TRIMDON.
Children and Young Peoples Services,Head of Education and Skills,Transport,230008,Contract Hire,05/10/2020,3787254-COVID19-W084-EST-SEPT-CYPS-1086,"2,178.00",HARRY`S TAXI`S.
Children and Young Peoples Services,Head of Education and Skills,Transport,230008,Contract Hire,05/10/2020,3787273-COVID19-M031-EST-SEPT-CYPS-756,846.90,J YOUNG T/A VIP TAXIS.
Children and Young Peoples Services,Head of Education and Skills,Transport,230008,Contract Hire,05/10/2020,3787332-COVID19-E049-EST-SEPT-CYPS-552,"1,691.58",MARK & JOHN CHISHOLM T/A (CHEVRON).
Children and Young Peoples Services,Head of Education and Skills,Transport,230008,Contract Hire,05/10/2020,3787332-COVID19-S007-EST-SEPT-CYPS-928,"2,107.05",MARK & JOHN CHISHOLM T/A (CHEVRON).
Children and Young Peoples Services,Head of Education and Skills,Transport,230008,Contract Hire,05/10/2020,3787335-COVID19-W017-EST-SEPT-CYPS-1026,"1,255.32",MARK O`NEILL T/A KWIK CABS.
Children and Young Peoples Services,Head of Education and Skills,Transport,230008,Contract Hire,05/10/2020,3787361-COVID19-W174-EST-SEPT-CYPS-1112,"1,687.50",MR DANIEL HUTCHINSON T/A ALPHACABS.
Children and Young Peoples Services,Head of Education and Skills,Transport,230008,Contract Hire,05/10/2020,3787388-COVID19-W011-EST-SEPT-CYPS-1020,998.75,MRS SAMANTHA MACKENZIE T/A SAM`S TAXIS.
Children and Young Peoples Services,Head of Education and Skills,Transport,230008,Contract Hire,05/10/2020,3787462-COVID19-W014-EST-SEPT-CYPS-1023,"2,062.68",S & S TRAVEL LTD.
Children and Young Peoples Services,Head of Education and Skills,Transport,230008,Contract Hire,05/10/2020,3787479-COVID19-M024-EST-SEPT-CYPS-750,"1,353.00",SPENNYMOOR TAXIS.
Children and Young Peoples Services,Head of Education and Skills,Transport,230008,Contract Hire,05/10/2020,3787479-LTDD00101,"1,520.00",SPENNYMOOR TAXIS.
Children and Young Peoples Services,Head of Education and Skills,Transport,230008,Contract Hire,05/10/2020,3787497-COVID19-M201-EST-SEPT-CYPS-796,"1,575.00",STEVEN PRATT T/A PTL TAXIS DURHAM.
Children and Young Peoples Services,Head of Education and Skills,Transport,230008,Contract Hire,05/10/2020,3787511-COVID19-N068-EST-SEPT-CYPS-859,"1,650.00",TAYLOR`S TAXIS.
Children and Young Peoples Services,Head of Education and Skills,Transport,230008,Contract Hire,05/10/2020,3787527-COVID19-S035-EST-SEPT-CYPS-946,"1,353.00",TOP STAR TRAVEL.
Children and Young Peoples Services,Head of Education and Skills,Transport,230008,Contract Hire,05/10/2020,3787534-COVID19-W064-EST-SEPT-CYPS-1072,"1,682.18",TRIDENT TAXIS.
Children and Young Peoples Services,Head of Education and Skills,Transport,230008,Contract Hire,05/10/2020,3787081-COVID19-N033-EST-SEPT-CYPS-827,"1,800.98",ABC & OUSTON CABS.
Children and Young Peoples Services,Head of Education and Skills,Transport,230008,Contract Hire,05/10/2020,3787109-COVID19-M047-EST-SEPT-CYPS-773,"1,980.00",AUCKLAND TRAVEL.
Children and Young Peoples Services,Head of Education and Skills,Transport,230008,Contract Hire,05/10/2020,3787109-COVID19-N023-EST-SEPT-CYPS-817,"1,860.00",AUCKLAND TRAVEL.
Children and Young Peoples Services,Head of Education and Skills,Transport,230008,Contract Hire,05/10/2020,3787114-COVID19-M014-EST-SEPT-CYPS-743,"1,655.42",BEELINE MINI BUSES.
Children and Young Peoples Services,Head of Education and Skills,Transport,230008,Contract Hire,05/10/2020,3787115-COVID19-N229-EST-SEPT-CYPS-907,715.61,BEELINE PRIVATE HIRE.
Children and Young Peoples Services,Head of Education and Skills,Transport,230008,Contract Hire,05/10/2020,3787136-COVID19-N036-EST-SEPT-CYPS-829,"1,623.60",BOWES TRAVEL.
Children and Young Peoples Services,Head of Education and Skills,Transport,230008,Contract Hire,05/10/2020,3787142-COVID19-M034-EST-SEPT-CYPS-759,908.16,CA MUSGROVE.
Children and Young Peoples Services,Head of Education and Skills,Transport,230008,Contract Hire,05/10/2020,3787175-COVID19-N039-EST-SEPT-CYPS-831,"2,150.12",CONNORS MINI BUSES.*
Children and Young Peoples Services,Head of Education and Skills,Transport,230008,Contract Hire,05/10/2020,3787175-COVID19-N044-EST-SEPT-CYPS-836,"1,659.90",CONNORS MINI BUSES.*
Children and Young Peoples Services,Head of Education and Skills,Transport,230008,Contract Hire,05/10/2020,3787175-COVID19-N045-EST-SEPT-CYPS-837,"1,913.51",CONNORS MINI BUSES.*
Children and Young Peoples Services,Head of Education and Skills,Transport,230008,Contract Hire,05/10/2020,3787175-COVID19-N046-EST-SEPT-CYPS-838,"1,678.38",CONNORS MINI BUSES.*
Children and Young Peoples Services,Head of Education and Skills,Transport,230008,Contract Hire,05/10/2020,3787184-110315,"1,473.75",CROFT BUSINESS SERVICES (UK) LTD T/A CROFT TAXIS.
Children and Young Peoples Services,Head of Education and Skills,Transport,230008,Contract Hire,05/10/2020,3787184-COVID19-N028-EST-SEPT-CYPS-822,"2,211.00",CROFT BUSINESS SERVICES (UK) LTD T/A CROFT TAXIS.
Children and Young Peoples Services,Head of Education and Skills,Transport,230008,Contract Hire,05/10/2020,3787195-COVID19-M036-EST-SEPT-CYPS-761,"1,739.10",DAVES MINIBUSES.
Children and Young Peoples Services,Head of Education and Skills,Transport,230008,Contract Hire,05/10/2020,3787195-COVID19-N041-EST-SEPT-CYPS-833,"1,487.97",DAVES MINIBUSES.
Children and Young Peoples Services,Head of Education and Skills,Transport,230008,Contract Hire,05/10/2020,3787195-COVID19-N301-EST-SEPT-CYPS-908,"2,017.29",DAVES MINIBUSES.
Children and Young Peoples Services,Head of Education and Skills,Transport,230008,Contract Hire,05/10/2020,3787208-COVID19-S037-EST-SEPT-CYPS-947,"2,761.77",DIANE GOOCH T/A COLLINS TAXIS.
Children and Young Peoples Services,Head of Education and Skills,Transport,230008,Contract Hire,05/10/2020,3787212-COVID19-E044-EST-SEPT-CYPS-548,"2,010.00",EAST DURHAM TAXIS.
Children and Young Peoples Services,Head of Education and Skills,Transport,230008,Contract Hire,05/10/2020,3787229-COVID19-M010-EST-SEPT-CYPS-739,"2,246.31",G & P JOHNSON LTD T/A NIGHTINGALE COACHES.
Children and Young Peoples Services,Head of Education and Skills,Transport,230008,Contract Hire,05/10/2020,3787262-COVID19-E006-EST-SEPT-CYPS-509,"1,695.87",I & R EXECUTIVE TRAVEL.
Children and Young Peoples Services,Head of Education and Skills,Transport,230008,Contract Hire,05/10/2020,3787263-387,"1,957.50",IAN CLYDESDALE T/A BURNOPFIELD TAXIS.
Children and Young Peoples Services,Head of Education and Skills,Transport,230008,Contract Hire,05/10/2020,3787264-COVID19-N038-EST-SEPT-CYPS-830,"2,904.00",IAN CLYDESDALE T/A BURNOPFIELD TAXIS.
Children and Young Peoples Services,Head of Education and Skills,Transport,230008,Contract Hire,05/10/2020,3787276-COVID19-N078-EST-SEPT-CYPS-868,"1,435.50",JACKSON`S TAXI.
Children and Young Peoples Services,Head of Education and Skills,Transport,230008,Contract Hire,05/10/2020,3787278-COVID19-N003-EST-SEPT-CYPS-799,"1,518.00",JAYS TAXIS/JOHN GARLAND (TAXIS).
Children and Young Peoples Services,Head of Education and Skills,Transport,230008,Contract Hire,05/10/2020,3787281-COVID19-M007-EST-SEPT-CYPS-736,"1,363.40",JDS PRIVATE HIRE DURHAM.
Children and Young Peoples Services,Head of Education and Skills,Transport,230008,Contract Hire,05/10/2020,3787281-COVID19-M018-EST-SEPT-CYPS-746,"1,500.18",JDS PRIVATE HIRE DURHAM.
Children and Young Peoples Services,Head of Education and Skills,Transport,230008,Contract Hire,05/10/2020,3787281-COVID19-M043-EST-SEPT-CYPS-768,"1,363.73",JDS PRIVATE HIRE DURHAM.
Children and Young Peoples Services,Head of Education and Skills,Transport,230008,Contract Hire,05/10/2020,3787281-COVID19-M115-EST-SEPT-CYPS-790,"1,221.00",JDS PRIVATE HIRE DURHAM.
Children and Young Peoples Services,Head of Education and Skills,Transport,230008,Contract Hire,05/10/2020,3787281-COVID19-M200-EST-SEPT-CYPS-795,"1,350.00",JDS PRIVATE HIRE DURHAM.
Children and Young Peoples Services,Head of Education and Skills,Transport,230008,Contract Hire,05/10/2020,3787281-COVID19-N072-EST-SEPT-CYPS-862,"1,363.73",JDS PRIVATE HIRE DURHAM.
Children and Young Peoples Services,Head of Education and Skills,Transport,230008,Contract Hire,05/10/2020,3787281-COVID19-N098-EST-SEPT-CYPS-888,"2,070.00",JDS PRIVATE HIRE DURHAM.
Children and Young Peoples Services,Head of Education and Skills,Transport,230008,Contract Hire,05/10/2020,3787295-COVID19-E005-EST-SEPT-CYPS-508,"1,707.42",JOVIAL PRIVATE HIRE.
Children and Young Peoples Services,Head of Education and Skills,Transport,230008,Contract Hire,05/10/2020,3787295-COVID19-M009-EST-SEPT-CYPS-738,"1,357.95",JOVIAL PRIVATE HIRE.
Children and Young Peoples Services,Head of Education and Skills,Transport,230008,Contract Hire,05/10/2020,3787295-COVID19-M015-EST-SEPT-CYPS-744,774.51,JOVIAL PRIVATE HIRE.
Children and Young Peoples Services,Head of Education and Skills,Transport,230008,Contract Hire,05/10/2020,3787295-COVID19-M017-EST-SEPT-CYPS-745,803.06,JOVIAL PRIVATE HIRE.
Children and Young Peoples Services,Head of Education and Skills,Transport,230008,Contract Hire,05/10/2020,3787299-1094,"2,628.56",K & R TAXIS (STANLEY).
Children and Young Peoples Services,Head of Education and Skills,Transport,230008,Contract Hire,05/10/2020,3787299-1095,"1,749.00",K & R TAXIS (STANLEY).
Children and Young Peoples Services,Head of Education and Skills,Transport,230008,Contract Hire,05/10/2020,3787299-COVID19-E002-EST-SEPT-CYPS-506,"2,177.34",K & R TAXIS (STANLEY).
Children and Young Peoples Services,Head of Education and Skills,Transport,230008,Contract Hire,05/10/2020,3787299-COVID19-M063-EST-SEPT-CYPS-784,"1,890.00",K & R TAXIS (STANLEY).
Children and Young Peoples Services,Head of Education and Skills,Transport,230008,Contract Hire,05/10/2020,3787299-COVID19-N069-EST-SEPT-CYPS-860,"2,062.50",K & R TAXIS (STANLEY).
Children and Young Peoples Services,Head of Education and Skills,Transport,230008,Contract Hire,05/10/2020,3787299-COVID19-N071-EST-SEPT-CYPS-861,"1,782.00",K & R TAXIS (STANLEY).
Children and Young Peoples Services,Head of Education and Skills,Transport,230008,Contract Hire,05/10/2020,3787299-COVID19-W100-EST-SEPT-CYPS-1097,"2,661.45",K & R TAXIS (STANLEY).
Children and Young Peoples Services,Head of Education and Skills,Transport,230008,Contract Hire,05/10/2020,3787324-COVID19-M032-EST-SEPT-CYPS-757,"2,090.55",LORRAINES TAXIS.
Children and Young Peoples Services,Head of Education and Skills,Transport,230008,Contract Hire,05/10/2020,3787351-COVID19-N030-EST-SEPT-CYPS-824,"3,183.84",MOLLY`S TAXIS LTD.
Children and Young Peoples Services,Head of Education and Skills,Transport,230008,Contract Hire,05/10/2020,3787351-COVID19-N101-EST-SEPT-CYPS-891,"1,657.50",MOLLY`S TAXIS LTD.
Children and Young Peoples Services,Head of Education and Skills,Transport,230008,Contract Hire,05/10/2020,3787374-COVID19-W050-EST-SEPT-CYPS-1058,"1,504.94",MR M MCNAMARA. T/A MSM TAXIS
Children and Young Peoples Services,Head of Education and Skills,Transport,230008,Contract Hire,05/10/2020,3787377-COVID19-E011-EST-SEPT-CYPS-514,"1,491.77",MR NEIL LEONARD T/A LENNY`S TAXIS.
Children and Young Peoples Services,Head of Education and Skills,Transport,230008,Contract Hire,05/10/2020,3787377-COVID19-W095-EST-SEPT-CYPS-1093,"1,617.00",MR NEIL LEONARD T/A LENNY`S TAXIS.
Children and Young Peoples Services,Head of Education and Skills,Transport,230008,Contract Hire,05/10/2020,3787379-COVID19-N043-EST-SEPT-CYPS-835,"1,433.36",MR RAYMOND RENWICK T/A RAY`S TAXIS & MINIBUSES.
Children and Young Peoples Services,Head of Education and Skills,Transport,230008,Contract Hire,05/10/2020,3787381-COVID19-M046-EST-SEPT-CYPS-772,"2,095.50",MR S BOWERS T/A DH7 TAXIS.
Children and Young Peoples Services,Head of Education and Skills,Transport,230008,Contract Hire,05/10/2020,3787422-COVID19-M012-EST-SEPT-CYPS-741,"1,353.00",PB PRIVATE HIRE.
Children and Young Peoples Services,Head of Education and Skills,Transport,230008,Contract Hire,05/10/2020,3787431-COVID19-M023-EST-SEPT-CYPS-749,"1,080.00",PETER`S PRIVATE HIRE/PETER BEST.
Children and Young Peoples Services,Head of Education and Skills,Transport,230008,Contract Hire,05/10/2020,3787437-COVID19-E039-EST-SEPT-CYPS-542,"2,382.77",PODA TAXIS LTD.
Children and Young Peoples Services,Head of Education and Skills,Transport,230008,Contract Hire,05/10/2020,3787447-COVID19-M008-EST-SEPT-CYPS-737,"2,300.10",RAYNERS COACHES.
Children and Young Peoples Services,Head of Education and Skills,Transport,230008,Contract Hire,05/10/2020,3787451-COVID19-N022-EST-SEPT-CYPS-816,610.50,RICHARD SHANKS T/A RICHIES TAXIS.
Children and Young Peoples Services,Head of Education and Skills,Transport,230008,Contract Hire,05/10/2020,3787470-COVID19-M128-EST-SEPT-CYPS-794,"1,930.50",SHOTTON PRIVATE HIRE.
Children and Young Peoples Services,Head of Education and Skills,Transport,230008,Contract Hire,05/10/2020,3787486-COVID19-N086-EST-SEPT-CYPS-876,"3,570.11",STANLEY TRAVEL (NORTH EAST) LTD.
Children and Young Peoples Services,Head of Education and Skills,Transport,230008,Contract Hire,05/10/2020,3787524-COVID19-M117-EST-SEPT-CYPS-791,"1,435.50",TONY RIDLEY T/A COLORS TAXIS LTD.
Children and Young Peoples Services,Head of Education and Skills,Transport,230008,Contract Hire,05/10/2020,3787093-5,"1,612.00",AMANDA SMITH T/A WEARDALE WHEELS.
Children and Young Peoples Services,Head of Education and Skills,Transport,230008,Contract Hire,05/10/2020,3787093-COVID19-W028-EST-SEPT-CYPS-1035,"2,079.00",AMANDA SMITH T/A WEARDALE WHEELS.
Children and Young Peoples Services,Head of Education and Skills,Transport,230008,Contract Hire,05/10/2020,3787094-COVID19-E204-EST-SEPT-CYPS-592,675.00,AMBER TRAVEL.
Children and Young Peoples Services,Head of Education and Skills,Transport,230008,Contract Hire,05/10/2020,3787106-COVID19-S008-EST-SEPT-CYPS-929,"2,145.00",ATLAS TAXIS BISHOP AUCKLAND.
Children and Young Peoples Services,Head of Education and Skills,Transport,230008,Contract Hire,05/10/2020,3787106-COVID19-S010-EST-SEPT-CYPS-931,"2,194.50",ATLAS TAXIS BISHOP AUCKLAND.
Children and Young Peoples Services,Head of Education and Skills,Transport,230008,Contract Hire,05/10/2020,3787106-COVID19-W027-EST-SEPT-CYPS-1034,"2,407.32",ATLAS TAXIS BISHOP AUCKLAND.
Children and Young Peoples Services,Head of Education and Skills,Transport,230008,Contract Hire,05/10/2020,3787106-COVID19-W037-EST-SEPT-CYPS-1044,"2,840.13",ATLAS TAXIS BISHOP AUCKLAND.
Children and Young Peoples Services,Head of Education and Skills,Transport,230008,Contract Hire,05/10/2020,3787110-COVID19-N325-EST-SEPT-CYPS-915,"1,417.50",AVALON TAXIS.
Children and Young Peoples Services,Head of Education and Skills,Transport,230008,Contract Hire,05/10/2020,3787126-COVID19-W087-EST-SEPT-CYPS-1088,"1,287.00",BIRDS TAXIS LTD.
Children and Young Peoples Services,Head of Education and Skills,Transport,230008,Contract Hire,05/10/2020,3787141-COVID19-W030-EST-SEPT-CYPS-1037,"1,848.00",C & R TAXIS.
Children and Young Peoples Services,Head of Education and Skills,Transport,230008,Contract Hire,05/10/2020,3787163-COVID19-M011-EST-SEPT-CYPS-740,"1,701.32",CJ`S EXECUTIVE TRAVEL LTD.
Children and Young Peoples Services,Head of Education and Skills,Transport,230008,Contract Hire,05/10/2020,3787191-COVID19-W043-EST-SEPT-CYPS-1053,"1,527.24",DA TAXIS.
Children and Young Peoples Services,Head of Education and Skills,Transport,230008,Contract Hire,05/10/2020,3787191-COVID19-W055-EST-SEPT-CYPS-1063,"1,299.87",DA TAXIS.
Children and Young Peoples Services,Head of Education and Skills,Transport,230008,Contract Hire,05/10/2020,3787192-COVID19-W068-EST-SEPT-CYPS-1076,"1,023.00",DA TRAVEL.
Children and Young Peoples Services,Head of Education and Skills,Transport,230008,Contract Hire,05/10/2020,3787200-COVID19-W029-EST-SEPT-CYPS-1036,"1,637.79",DCM TAXIS.
Children and Young Peoples Services,Head of Education and Skills,Transport,230008,Contract Hire,05/10/2020,3787208-COVID19-W016-EST-SEPT-CYPS-1025,"1,766.25",DIANE GOOCH T/A COLLINS TAXIS.
Children and Young Peoples Services,Head of Education and Skills,Transport,230008,Contract Hire,05/10/2020,3787231-COVID19-S011-EST-SEPT-CYPS-932,"2,722.50",GARNETTS LTD (COACHES).
Children and Young Peoples Services,Head of Education and Skills,Transport,230008,Contract Hire,05/10/2020,3787231-COVID19-W099-EST-SEPT-CYPS-1096,"3,151.50",GARNETTS LTD (COACHES).
Children and Young Peoples Services,Head of Education and Skills,Transport,230008,Contract Hire,05/10/2020,3787239-COVID19-W024-EST-SEPT-CYPS-1031,"1,752.00",GMC TAXIS NORTH EAST.
Children and Young Peoples Services,Head of Education and Skills,Transport,230008,Contract Hire,05/10/2020,3787275-COVID19-W089-EST-SEPT-CYPS-1089,"2,386.23",JACKIES TAXIS.
Children and Young Peoples Services,Head of Education and Skills,Transport,230008,Contract Hire,05/10/2020,3787282-COVID19-S013-EST-SEPT-CYPS-934,"1,535.00",JEFF ANDERSON COACHES LTD.
Children and Young Peoples Services,Head of Education and Skills,Transport,230008,Contract Hire,05/10/2020,3787282-COVID19-W078-EST-SEPT-CYPS-1082,"1,450.19",JEFF ANDERSON COACHES LTD.
Children and Young Peoples Services,Head of Education and Skills,Transport,230008,Contract Hire,05/10/2020,3787294-COVID19-S002-EST-SEPT-CYPS-924,"2,209.02",JORA SINGH TAXIS.
Children and Young Peoples Services,Head of Education and Skills,Transport,230008,Contract Hire,05/10/2020,3787299-1091,"2,160.40",K & R TAXIS (STANLEY).
Children and Young Peoples Services,Head of Education and Skills,Transport,230008,Contract Hire,05/10/2020,3787299-COVID19-N321-EST-SEPT-CYPS-912,"2,006.65",K & R TAXIS (STANLEY).
Children and Young Peoples Services,Head of Education and Skills,Transport,230008,Contract Hire,05/10/2020,3787320-COVID19-N034-EST-SEPT-CYPS-828,"2,540.34",LINCAB TAXIS.
Children and Young Peoples Services,Head of Education and Skills,Transport,230008,Contract Hire,05/10/2020,3787320-COVID19-W015-EST-SEPT-CYPS-1024,"2,056.56",LINCAB TAXIS.
Children and Young Peoples Services,Head of Education and Skills,Transport,230008,Contract Hire,05/10/2020,3787326-COVID19-S004-EST-SEPT-CYPS-925,"1,056.00",M BUTCHER T/A M & M`S TAXIS.
Children and Young Peoples Services,Head of Education and Skills,Transport,230008,Contract Hire,05/10/2020,3787326-COVID19-W031-EST-SEPT-CYPS-1038,693.00,M BUTCHER T/A M & M`S TAXIS.
Children and Young Peoples Services,Head of Education and Skills,Transport,230008,Contract Hire,05/10/2020,3787332-COVID19-M026-EST-SEPT-CYPS-752,"2,198.34",MARK & JOHN CHISHOLM T/A (CHEVRON).
Children and Young Peoples Services,Head of Education and Skills,Transport,230008,Contract Hire,05/10/2020,3787332-COVID19-M027-EST-SEPT-CYPS-753,"2,057.55",MARK & JOHN CHISHOLM T/A (CHEVRON).
Children and Young Peoples Services,Head of Education and Skills,Transport,230008,Contract Hire,05/10/2020,3787332-COVID19-N323-EST-SEPT-CYPS-913,"1,674.42",MARK & JOHN CHISHOLM T/A (CHEVRON).
Children and Young Peoples Services,Head of Education and Skills,Transport,230008,Contract Hire,05/10/2020,3787335-COVID19-W081-EST-SEPT-CYPS-1084,528.00,MARK O`NEILL T/A KWIK CABS.
Children and Young Peoples Services,Head of Education and Skills,Transport,230008,Contract Hire,05/10/2020,3787337-COVID19-M053-EST-SEPT-CYPS-779,866.25,MARK WATSON T/A MARK`S TAXIS.
Children and Young Peoples Services,Head of Education and Skills,Transport,230008,Contract Hire,05/10/2020,3787355-COVID19-W036-EST-SEPT-CYPS-1043,"1,967.30",MR A MILLWARD T/A SWISS CABS PRIVATE HIRE.
Children and Young Peoples Services,Head of Education and Skills,Transport,230008,Contract Hire,05/10/2020,3787359-COVID19-M123-EST-SEPT-CYPS-792,"1,663.20",MR CT WALKER T/A CW TAXIS.
Children and Young Peoples Services,Head of Education and Skills,Transport,230008,Contract Hire,05/10/2020,3787388-COVID19-W162-EST-SEPT-CYPS-1107,"1,270.50",MRS SAMANTHA MACKENZIE T/A SAM`S TAXIS.
Children and Young Peoples Services,Head of Education and Skills,Transport,230008,Contract Hire,05/10/2020,3787437-COVID19-M037-EST-SEPT-CYPS-762,"1,500.00",PODA TAXIS LTD.
Children and Young Peoples Services,Head of Education and Skills,Transport,230008,Contract Hire,05/10/2020,3787447-COVID19-W042-EST-SEPT-CYPS-1052,"1,462.50",RAYNERS COACHES.
Children and Young Peoples Services,Head of Education and Skills,Transport,230008,Contract Hire,05/10/2020,3787457-COVID19-E001-EST-SEPT-CYPS-505,"2,539.35",RON`S TAXIS (FISHBURN).
Children and Young Peoples Services,Head of Education and Skills,Transport,230008,Contract Hire,05/10/2020,3787462-COVID19-S009-EST-SEPT-CYPS-930,"2,395.80",S & S TRAVEL LTD.
Children and Young Peoples Services,Head of Education and Skills,Transport,230008,Contract Hire,05/10/2020,3787462-COVID19-W010-EST-SEPT-CYPS-1019,"2,066.46",S & S TRAVEL LTD.
Children and Young Peoples Services,Head of Education and Skills,Transport,230008,Contract Hire,05/10/2020,3787462-COVID19-W032-EST-SEPT-CYPS-1039,"2,359.50",S & S TRAVEL LTD.
Children and Young Peoples Services,Head of Education and Skills,Transport,230008,Contract Hire,05/10/2020,3787470-COVID19-E053-EST-SEPT-CYPS-555,"2,095.50",SHOTTON PRIVATE HIRE.
Children and Young Peoples Services,Head of Education and Skills,Transport,230008,Contract Hire,05/10/2020,3787470-COVID19-E200-EST-SEPT-CYPS-588,"2,185.50",SHOTTON PRIVATE HIRE.
